Body Name:,Transaction Number,Account Code Description,Expenses Type,Service Code,Service Area Categorisation,Supplier Name,Date,Amount
Bath and North East Somerset Council ,10884628,LL8,Individualised Budget,P11,"Adult Care, Health & Wellbeing",REDACTED,01/06/2015,184.02
Bath and North East Somerset Council ,10884628,LL8,Individualised Budget,P11,"Adult Care, Health & Wellbeing",REDACTED,01/06/2015,184.02
Bath and North East Somerset Council ,10884628,LL8,Individualised Budget,P11,"Adult Care, Health & Wellbeing",REDACTED,01/06/2015,184.02
Bath and North East Somerset Council,10878059,LL8,Individualised Budget,P11,"Adult Care, Health & Wellbeing",REDACTED,22/02/2016,484.00
Bath and North East Somerset Council,10878059,LL8,Individualised Budget,P11,"Adult Care, Health & Wellbeing",REDACTED,22/02/2016,484.00
Bath and North East Somerset Council,10878059,LL8,Individualised Budget,P11,"Adult Care, Health & Wellbeing",REDACTED,22/02/2016,484.00
Bath and North East Somerset Council,10878059,LL8,Individualised Budget,P11,"Adult Care, Health & Wellbeing",REDACTED,22/02/2016,484.00
Bath and North East Somerset Council,10878059,LL8,Individualised Budget,P11,"Adult Care, Health & Wellbeing",REDACTED,22/02/2016,484.00
Bath and North East Somerset Council,10878059,LL8,Individualised Budget,P11,"Adult Care, Health & Wellbeing",REDACTED,22/02/2016,484.00
Bath and North East Somerset Council,10878059,LL8,Individualised Budget,P11,"Adult Care, Health & Wellbeing",REDACTED,22/02/2016,484.00
Bath and North East Somerset Council,10878059,LL8,Individualised Budget,P11,"Adult Care, Health & Wellbeing",REDACTED,22/02/2016,484.00
Bath and North East Somerset Council,10878059,LL8,Individualised Budget,P11,"Adult Care, Health & Wellbeing",REDACTED,22/02/2016,484.00
Bath and North East Somerset Council,10878059,LL8,Individualised Budget,P11,"Adult Care, Health & Wellbeing",REDACTED,22/02/2016,484.00
Bath and North East Somerset Council,10878059,LL8,Individualised Budget,P11,"Adult Care, Health & Wellbeing",REDACTED,22/02/2016,484.00
Bath and North East Somerset Council,10878059,LL8,Individualised Budget,P11,"Adult Care, Health & Wellbeing",REDACTED,22/02/2016,484.00
Bath and North East Somerset Council ,10883048,LM1,Volunt Homes Placements Top/Up,P12,Children & Young People,TALOCHER SCHOOL PRIORY,15/07/2017,17643.09
Bath and North East Somerset Council ,10883047,LM1,Volunt Homes Placements Top/Up,P12,Children & Young People,TALOCHER SCHOOL PRIORY,15/11/2017,89685.71
Bath and North East Somerset Council,10878892,LL8,Individualised Budget,P11,"Adult Care, Health & Wellbeing",REDACTED,30/04/2018,4036.08
Bath and North East Somerset Council,10878786,LM3,Residential Care,P11,"Adult Care, Health & Wellbeing",SOMERSET CARE INCOME ACCOUNT,25/06/2018,1488.57
Bath and North East Somerset Council,80780540,LA7,Purchases for Resale,P16,Economic & Community Regeneration,BATH SOCIETY OF ARTISTS,02/07/2018,25.20
Bath and North East Somerset Council,80780540,LA7,Purchases for Resale,P16,Economic & Community Regeneration,BATH SOCIETY OF ARTISTS,02/07/2018,30.00
Bath and North East Somerset Council,80780559,LA7,Purchases for Resale,P16,Economic & Community Regeneration,F H SWIFT,02/07/2018,243.60
Bath and North East Somerset Council,80780690,PB3,Payments to Other Establishments,P12,Children & Young People,BATH & WELLS DIOCESAN ACADEMIES TRUST  BATHAMPTON PRI,02/07/2018,655.00
Bath and North East Somerset Council,80780678,LM8,Home Care,P11,"Adult Care, Health & Wellbeing",CARE SOUTH,02/07/2018,84500.00
Bath and North East Somerset Council,10877256,HE5,Security of Premises,P18,Transport & Environment,KINGDOM SECURITY SERVICES GROUP LTD,02/07/2018,366.73
Bath and North East Somerset Council,10877397,3C4,Building Works,P18,Transport & Environment,QUEENSBURY SHELTERS LTD,02/07/2018,425.00
Bath and North East Somerset Council,10877326,LF1,Printing/Design,P10,Finance & Efficiency,FREESTYLE DESIGNS BATH LTD,02/07/2018,425.38
Bath and North East Somerset Council,10877346,HE1,General Maintenance,P10,Finance & Efficiency,SN SCAFFOLDS (BATH),02/07/2018,485.00
Bath and North East Somerset Council,10877424,LP5,Software Support,P10,Finance & Efficiency,SHINE VISION LTD,02/07/2018,492.66
Bath and North East Somerset Council,10877369,LH2,Advertising,P15,Development & Neighbourhoods,REACH PUBLISHING SERVICES LTD,02/07/2018,538.82
Bath and North East Somerset Council,10877416,3F7,PCB External Fees,P11,"Adult Care, Health & Wellbeing",MDA CONSULTING LTD,02/07/2018,565.00
Bath and North East Somerset Council,80780540,LA7,Purchases for Resale,P16,Economic & Community Regeneration,BATH SOCIETY OF ARTISTS,02/07/2018,573.00
Bath and North East Somerset Council,10877256,HE5,Security of Premises,P18,Transport & Environment,KINGDOM SECURITY SERVICES GROUP LTD,02/07/2018,590.86
Bath and North East Somerset Council,10877256,HE5,Security of Premises,P18,Transport & Environment,KINGDOM SECURITY SERVICES GROUP LTD,02/07/2018,590.86
Bath and North East Somerset Council,10877256,HE5,Security of Premises,P18,Transport & Environment,KINGDOM SECURITY SERVICES GROUP LTD,02/07/2018,590.86
Bath and North East Somerset Council,10877357,LJ4,Contracts,P15,Development & Neighbourhoods,P C JONES,02/07/2018,645.00
Bath and North East Somerset Council,10877399,LA1,Equipment Purchase,P10,Finance & Efficiency,LIONEL SAUNDERS & CO (BRISTOL),02/07/2018,667.88
Bath and North East Somerset Council,10877349,LJ4,Contracts,P15,Development & Neighbourhoods,IMPERIAL COMMERCIALS LTD,02/07/2018,676.66
Bath and North East Somerset Council,80780562,LA7,Purchases for Resale,P16,Economic & Community Regeneration,MACMILLAN DISTRIBUTION LTD,02/07/2018,717.36
Bath and North East Somerset Council,80780552,LA7,Purchases for Resale,P16,Economic & Community Regeneration,ROMAN CANDLES OF BATH LTD,02/07/2018,718.56
Bath and North East Somerset Council,80780687,PB3,Payments to Other Establishments,P12,Children & Young People,PALLADIAN ACADEMY TRUST RE OLDFIELD PARK JUNIOR,02/07/2018,745.00
Bath and North East Somerset Council,80780691,PB3,Payments to Other Establishments,P12,Children & Young People,PALLADIAN ACADEMY TRUST RE WIDCOMBE JU,02/07/2018,745.00
Bath and North East Somerset Council,80780560,LA7,Purchases for Resale,P16,Economic & Community Regeneration,BRITISH FOSSILS,02/07/2018,749.07
Bath and North East Somerset Council,80780676,LM8,Home Care,P11,"Adult Care, Health & Wellbeing",I & S DUTTON LTD T/A CAREWATCH,02/07/2018,37858.08
Bath and North East Somerset Council,80780676,LM8,Home Care,P11,"Adult Care, Health & Wellbeing",I & S DUTTON LTD T/A CAREWATCH,02/07/2018,56787.12
Bath and North East Somerset Council,10876850,HV4,Cleaning Materials,P10,Finance & Efficiency,PHS GROUP LTD,02/07/2018,798.00
Bath and North East Somerset Council,80780684,PB3,Payments to Other Establishments,P12,Children & Young People,BATH & WELLS DIOCESAN ADADEMIES TRUST ST STEPHENS PRI,02/07/2018,835.00
Bath and North East Somerset Council,10877294,HN1,Electricity,P18,Transport & Environment,SOUTHERN ELECTRIC PLC,02/07/2018,846.90
Bath and North East Somerset Council,80780543,LA7,Purchases for Resale,P16,Economic & Community Regeneration,COUNTRY THREADS,02/07/2018,863.52
Bath and North East Somerset Council,10877334,LF4,Stationery,P10,Finance & Efficiency,RIBBONWORKS LTD,02/07/2018,893.50
Bath and North East Somerset Council,10876768,HN2,Gas,P10,Finance & Efficiency,GAZPROM MARKETING & TRADING RETAIL LTD,02/07/2018,944.74
Bath and North East Somerset Council,10877172,LA4,Equipment Hire/Rent,P15,Development & Neighbourhoods,GREENMAN ENVIRONMENTAL MANAGEMENT,02/07/2018,960.00
Bath and North East Somerset Council,80780543,LA7,Purchases for Resale,P16,Economic & Community Regeneration,COUNTRY THREADS,02/07/2018,976.60
Bath and North East Somerset Council,10877389,LJ8,PCB External Fees,P16,Economic & Community Regeneration,SPARK SOUTH WEST,02/07/2018,1000.00
Bath and North East Somerset Council,80780685,PB3,Payments to Other Establishments,P12,Children & Young People,PALLADIAN ACADEMY TRUST RE OLDFIELD PK I,02/07/2018,1015.00
Bath and North East Somerset Council,10877387,LK1,Fees,P12,Children & Young People,ALISON CLIFFE,02/07/2018,1020.00
Bath and North East Somerset Council,10877413,LV9,Compensation Settlements,P15,Development & Neighbourhoods,REDACTED CLIENT ACCOUNT,02/07/2018,14000.00
Bath and North East Somerset Council,10877076,LJ4,Contracts,P16,Economic & Community Regeneration,ROBERT HYMAN,02/07/2018,1155.96
Bath and North East Somerset Council,10877422,3E5,PCB IT Hardware,P16,Economic & Community Regeneration,K22 COMMUNICATIONS,02/07/2018,1200.00
Bath and North East Somerset Council,10877431,3F7,PCB External Fees,P10,Finance & Efficiency,REXON DAY CONSULTING LIMITED,02/07/2018,1200.68
Bath and North East Somerset Council,10877348,LK1,Fees,P12,Children & Young People,REDACTED,02/07/2018,1206.00
Bath and North East Somerset Council,10877210,HP3,Room Hire Charges,P10,Finance & Efficiency,AQUATERRA LEISURE SERVICES LTD,02/07/2018,1297.90
Bath and North East Somerset Council,80780692,LL8,Individualised Budget,P11,"Adult Care, Health & Wellbeing",REDACTED,02/07/2018,1919.60
Bath and North East Somerset Council,10877256,HE5,Security of Premises,P18,Transport & Environment,KINGDOM SECURITY SERVICES GROUP LTD,02/07/2018,1366.73
Bath and North East Somerset Council,10877391,LA3,Equipment Maintenance,P15,Development & Neighbourhoods,AG INDUSTRIES LTD T/A ALLGREEN GROUP,02/07/2018,1375.00
Bath and North East Somerset Council,80780688,PB3,Payments to Other Establishments,P12,Children & Young People,WELLSWAY MULTI ACADEMY TRUST,02/07/2018,1400.00
Bath and North East Somerset Council,10877402,LP1,Hardware Purchase,P10,Finance & Efficiency,VOHKUS LTD,02/07/2018,1409.38
Bath and North East Somerset Council,10877404,LK1,Fees,P12,Children & Young People,FAMILIES FOR CHLDREN ADOPTION,02/07/2018,1500.00
Bath and North East Somerset Council,10877236,3G1,Grants/Advances,P16,Economic & Community Regeneration,DOLPHIN LIFTS (WESTERN) LTD,02/07/2018,1545.00
Bath and North East Somerset Council,80780555,LA7,Purchases for Resale,P16,Economic & Community Regeneration,TOWER MINT LTD,02/07/2018,1551.00
Bath and North East Somerset Council,10877170,HK1,Highway Maintenance,P18,Transport & Environment,DYNNIQ UK LTD,02/07/2018,1582.03
Bath and North East Somerset Council,10877256,HE5,Security of Premises,P18,Transport & Environment,KINGDOM SECURITY SERVICES GROUP LTD,02/07/2018,1590.86
Bath and North East Somerset Council,10877392,LP2,Hardware Support,P18,Transport & Environment,ESP SYSTEX LTD,02/07/2018,1648.87
Bath and North East Somerset Council,10877393,LP2,Hardware Support,P18,Transport & Environment,ESP SYSTEX LTD,02/07/2018,1648.87
Bath and North East Somerset Council,10876974,LL6,Needs & Services,P12,Children & Young People,DAVID SHAW,02/07/2018,1651.20
Bath and North East Somerset Council,10877363,LP1,Hardware Purchase,P10,Finance & Efficiency,MERCATO SOLUTIONS LTD,02/07/2018,1664.66
Bath and North East Somerset Council,10877363,LP1,Hardware Purchase,P10,Finance & Efficiency,MERCATO SOLUTIONS LTD,02/07/2018,1664.67
Bath and North East Somerset Council,10877363,LP1,Hardware Purchase,P10,Finance & Efficiency,MERCATO SOLUTIONS LTD,02/07/2018,1669.67
Bath and North East Somerset Council,10877233,LL2,Personal Needs of Clients,P12,Children & Young People,NEWCROSS HEALTHCARE SOLUTIONS LTD,02/07/2018,1675.66
Bath and North East Somerset Council,80780689,PB3,Payments to Other Establishments,P12,Children & Young People,PALLADIAN ACADEMY TRUST RE COMBE DOWN,02/07/2018,745.00
Bath and North East Somerset Council,10876781,LP1,Hardware Purchase,P17,Transformation & Customer Services,PINACL SOLUTIONS UK LTD,02/07/2018,1700.00
Bath and North East Somerset Council,10876908,LP5,Software Support,P10,Finance & Efficiency,VOHKUS LTD,02/07/2018,1723.75
Bath and North East Somerset Council,80780556,LA7,Purchases for Resale,P16,Economic & Community Regeneration,UNEX DESIGNS LTD,02/07/2018,1784.38
Bath and North East Somerset Council,80780559,LA7,Purchases for Resale,P16,Economic & Community Regeneration,F H SWIFT,02/07/2018,1809.60
Bath and North East Somerset Council,10876852,LL2,Personal Needs of Clients,P12,Children & Young People,NEWCROSS HEALTHCARE SOLUTIONS LTD,02/07/2018,1870.30
Bath and North East Somerset Council,10876908,LP5,Software Support,P10,Finance & Efficiency,VOHKUS LTD,02/07/2018,1943.82
Bath and North East Somerset Council,10877050,LH5,Marketing,P16,Economic & Community Regeneration,APL MEDIA LTD,02/07/2018,2000.00
Bath and North East Somerset Council,80780686,PB3,Payments to Other Establishments,P12,Children & Young People,PALLADIAN ACADEMY TRUST RE ST MARTINS,02/07/2018,2030.00
Bath and North East Somerset Council,10877359,LJ4,Contracts,P12,Children & Young People,SARI,02/07/2018,2057.50
Bath and North East Somerset Council,10877081,LJ4,Contracts,P16,Economic & Community Regeneration,DEREK STUART CLARK,02/07/2018,2247.70
Bath and North East Somerset Council,10877055,LJ4,Contracts,P16,Economic & Community Regeneration,KEITH TEMPEST,02/07/2018,2247.70
Bath and North East Somerset Council,10877286,LJ1,Consultants Fees,P15,Development & Neighbourhoods,PLANNING AND MANAGEMENT LTD,02/07/2018,2250.00
Bath and North East Somerset Council,10877232,3G1,Grants/Advances,P16,Economic & Community Regeneration,J K MOBILITY LTD,02/07/2018,2290.00
Bath and North East Somerset Council,10876867,LA5,Materials,P15,Development & Neighbourhoods,COMPLETE WEED CONTROL NORTH WE,02/07/2018,2340.00
Bath and North East Somerset Council,10877123,LA4,Equipment Hire/Rent,P15,Development & Neighbourhoods,GREENMAN ENVIRONMENTAL MANAGEMENT,02/07/2018,2380.00
Bath and North East Somerset Council,10877309,HV6,Sanitary Disposal,P16,Economic & Community Regeneration,PHS GROUP LTD,02/07/2018,2484.10
Bath and North East Somerset Council,80780677,LM8,Home Care,P11,"Adult Care, Health & Wellbeing",SOMERSET CARE AT HOME,02/07/2018,84188.78
Bath and North East Somerset Council,80780677,LM8,Home Care,P11,"Adult Care, Health & Wellbeing",SOMERSET CARE AT HOME,02/07/2018,84188.78
Bath and North East Somerset Council,10877390,LJ3,Other Services to the Council,P10,Finance & Efficiency,BRISTOL CITY COUNCIL,02/07/2018,3440.31
Bath and North East Somerset Council,10877394,3E4,Furniture/Equipment,P15,Development & Neighbourhoods,T H WHITE LTD,02/07/2018,4300.00
Bath and North East Somerset Council,10877275,LJ1,Consultants Fees,P15,Development & Neighbourhoods,PLANNING AND MANAGEMENT LTD,02/07/2018,4650.75
Bath and North East Somerset Council,80780553,LA7,Purchases for Resale,P16,Economic & Community Regeneration,SCALA ARTS & HERITAGE PUBLISHERS LTD,02/07/2018,4727.20
Bath and North East Somerset Council,10877379,LC1,Provisions,P12,Children & Young People,SAINSBURY'S BUSINESS DIRECT,02/07/2018,4850.00
Bath and North East Somerset Council,10877331,LJ4,Contracts,P12,Children & Young People,TIME2SHARE,02/07/2018,5000.00
Bath and North East Somerset Council,80780564,LA7,Purchases for Resale,P16,Economic & Community Regeneration,YARTO EUROPE LTD,02/07/2018,5630.40
Bath and North East Somerset Council,10876674,LN5,Data Lines,P10,Finance & Efficiency,SOUTH WEST COMMUNICATIONS GROUP LTD,02/07/2018,6461.50
Bath and North East Somerset Council,10876768,HN2,Gas,P10,Finance & Efficiency,GAZPROM MARKETING & TRADING RETAIL LTD,02/07/2018,7209.38
Bath and North East Somerset Council,10877307,HV6,Sanitary Disposal,P16,Economic & Community Regeneration,PHS GROUP LTD,02/07/2018,8392.00
Bath and North East Somerset Council,10876886,HN1,Electricity,P10,Finance & Efficiency,SOUTHERN ELECTRIC PLC,02/07/2018,9664.30
Bath and North East Somerset Council,10877304,LP5,Software Support,P10,Finance & Efficiency,ASTUN TECHNOLOGY LTD,02/07/2018,11500.00
Bath and North East Somerset Council,10877305,LM2,Foster Carer Allowances,P12,Children & Young People,PARK BLUE HOMES LTD,02/07/2018,13714.29
Bath and North East Somerset Council,10877310,LM1,Volunt Homes Placements Top/Up,P12,Children & Young People,CASTLECARE CYMRU LTD,02/07/2018,16926.69
Bath and North East Somerset Council,10877366,LJ4,Contracts,P12,Children & Young People,THREE WAYS SCHOOL - BRIGHTER FUTURES,02/07/2018,20000.00
Bath and North East Somerset Council,10877443,LK3,PCB Fees (paid),P18,Transport & Environment,CH2M HILL UK,02/07/2018,22525.26
Bath and North East Somerset Council,10877356,3F7,PCB External Fees,P16,Economic & Community Regeneration,PENOYRE & PRASAD LLP,02/07/2018,23813.46
Bath and North East Somerset Council,10877425,DB1,Agency Staff,P18,Transport & Environment,CH2M HILL UK,02/07/2018,36516.28
Bath and North East Somerset Council,10877408,HA3,Planned Maintenance,P16,Economic & Community Regeneration,MANNINGS FACILITIES MANAGEMENT LTD,02/07/2018,41517.90
Bath and North East Somerset Council,10877407,HA3,Planned Maintenance,P16,Economic & Community Regeneration,MANNINGS FACILITIES MANAGEMENT LTD,02/07/2018,43703.05
Bath and North East Somerset Council,10876886,HN1,Electricity,P10,Finance & Efficiency,SOUTHERN ELECTRIC PLC,02/07/2018,52391.41
Bath and North East Somerset Council,10877229,3C4,Building Works,P18,Transport & Environment,HUTCHINGS & CARTER LTD,02/07/2018,102675.05
Bath and North East Somerset Council,10877228,HK1,Highway Maintenance,P18,Transport & Environment,SKANSKA CONSTRUCTION UK LTD,02/07/2018,360244.41
Bath and North East Somerset Council,10877415,LJ2,Legal Fees,P10,Finance & Efficiency,BEVAN BRITTAN,04/07/2018,9.00
Bath and North East Somerset Council,10876696,HA1,Responsive Maintenance,P10,Finance & Efficiency,N K S CONTRACTS LTD,04/07/2018,57.22
Bath and North East Somerset Council,10876696,HA1,Responsive Maintenance,P12,Children & Young People,N K S CONTRACTS LTD,04/07/2018,68.47
Bath and North East Somerset Council,10876696,HA1,Responsive Maintenance,P15,Development & Neighbourhoods,N K S CONTRACTS LTD,04/07/2018,85.83
Bath and North East Somerset Council,10876696,HA1,Responsive Maintenance,P10,Finance & Efficiency,N K S CONTRACTS LTD,04/07/2018,127.19
Bath and North East Somerset Council,10876696,HA1,Responsive Maintenance,P16,Economic & Community Regeneration,N K S CONTRACTS LTD,04/07/2018,138.63
Bath and North East Somerset Council,10876861,LW9,Other Expenses,P12,Children & Young People,B&NES COUNCIL -  OFFICE SERVICES,04/07/2018,5370.27
Bath and North East Somerset Council,80780548,LA7,Purchases for Resale,P16,Economic & Community Regeneration,REDACTED,04/07/2018,10.00
Bath and North East Somerset Council,80780548,LA7,Purchases for Resale,P16,Economic & Community Regeneration,REDACTED,04/07/2018,922.50
Bath and North East Somerset Council,10876696,HA1,Responsive Maintenance,P10,Finance & Efficiency,N K S CONTRACTS LTD,04/07/2018,368.91
Bath and North East Somerset Council,10877590,HV4,Cleaning Materials,P10,Finance & Efficiency,AVANTI HYGIENE LTD,04/07/2018,418.00
Bath and North East Somerset Council,10877453,KB1,Hire of Vehicles,P15,Development & Neighbourhoods,SMITH'S GLOUCESTER LTD,04/07/2018,425.00
Bath and North East Somerset Council,10877473,HV5,Refuse Collection,P10,Finance & Efficiency,SUEZ RECYCLING AND RECOVERY UK LTD,04/07/2018,430.24
Bath and North East Somerset Council,10876787,LJ2,Legal Fees,P12,Children & Young People,DR N AIREY  LTD,04/07/2018,431.55
Bath and North East Somerset Council,10877555,LA5,Materials,P15,Development & Neighbourhoods,WILLIAMS-BATH,04/07/2018,436.30
Bath and North East Somerset Council,10877584,LK2,Licences,P16,Economic & Community Regeneration,VERIFONE (UK) LTD,04/07/2018,438.00
Bath and North East Somerset Council,10877464,3V1,Vehicle Purchase,P15,Development & Neighbourhoods,FREESTYLE WRAPS & GRAPHICS,04/07/2018,458.65
Bath and North East Somerset Council,10877509,3F7,PCB External Fees,P10,Finance & Efficiency,REXON DAY CONSULTING LIMITED,04/07/2018,475.00
Bath and North East Somerset Council,10877428,LL1,Services to/for Clients,P12,Children & Young People,BATH YMCA TRADING,04/07/2018,520.00
Bath and North East Somerset Council,80780809,PG1,Rent Allowances,P10,Finance & Efficiency,CURO,04/07/2018,745.75
Bath and North East Somerset Council,80780801,PG1,Rent Allowances,P10,Finance & Efficiency,CURO,04/07/2018,846.53
Bath and North East Somerset Council,80780813,PG1,Rent Allowances,P10,Finance & Efficiency,CURO,04/07/2018,1194.26
Bath and North East Somerset Council,80780793,PG1,Rent Allowances,P10,Finance & Efficiency,CURO,04/07/2018,1399.28
Bath and North East Somerset Council,80780806,PG1,Rent Allowances,P10,Finance & Efficiency,CURO,04/07/2018,2000.00
Bath and North East Somerset Council,10877450,DB1,Agency Staff,P15,Development & Neighbourhoods,M4 RECRUITMENT LTD,04/07/2018,532.32
Bath and North East Somerset Council,10877099,LL2,Personal Needs of Clients,P12,Children & Young People,CHILDREN'S CONTACT SERVICES LTD,04/07/2018,535.85
Bath and North East Somerset Council,10877376,HA1,Responsive Maintenance,P10,Finance & Efficiency,REXON DAY CONSULTING LIMITED,04/07/2018,550.00
Bath and North East Somerset Council,10877479,DB1,Agency Staff,P15,Development & Neighbourhoods,M4 RECRUITMENT LTD,04/07/2018,550.93
Bath and North East Somerset Council,10877446,KB1,Hire of Vehicles,P15,Development & Neighbourhoods,LINDE SEVERNSIDE LTD,04/07/2018,552.51
Bath and North East Somerset Council,10877481,LJ4,Contracts,P15,Development & Neighbourhoods,BRISTOL AUTO ELECTRICAL LTD,04/07/2018,594.62
Bath and North East Somerset Council,10877549,LF3,Books & Publications,P16,Economic & Community Regeneration,DREAM SOLUTIONS MEDIA LTD,04/07/2018,600.00
Bath and North East Somerset Council,80780766,LL2,Personal Needs of Clients,P12,Children & Young People,REDACTED,04/07/2018,5.17
Bath and North East Somerset Council,80780766,LL3,Supported Living,P16,Economic & Community Regeneration,REDACTED,04/07/2018,90.00
Bath and North East Somerset Council,80780766,LL2,Personal Needs of Clients,P12,Children & Young People,REDACTED,04/07/2018,227.83
Bath and North East Somerset Council,80780766,LL2,Personal Needs of Clients,P12,Children & Young People,REDACTED,04/07/2018,279.60
Bath and North East Somerset Council,10877567,LH1,Liability Insurance,Z99,Outside Revenue Accounts,WANSBROUGHS,04/07/2018,630.00
Bath and North East Somerset Council,10877490,LL1,Services to/for Clients,P12,Children & Young People,FIRST STEPS NURSERY,04/07/2018,850.20
Bath and North East Somerset Council,10877539,LA5,Materials,P15,Development & Neighbourhoods,YOUNG JOHNSON,04/07/2018,696.80
Bath and North East Somerset Council,10876778,LJ2,Legal Fees,P12,Children & Young People,MS GEMMA CHAPMAN,04/07/2018,700.00
Bath and North East Somerset Council,10877653,LP5,Software Support,P10,Finance & Efficiency,METRIC GROUP LIMITED,04/07/2018,729.00
Bath and North East Somerset Council,10877476,PB4,Payments to Private Contractors,P15,Development & Neighbourhoods,SHIELD ENVIRONMENTAL SERVICES LTD,04/07/2018,732.10
Bath and North East Somerset Council,80778611,LL8,Individualised Budget,P11,"Adult Care, Health & Wellbeing",REDACTED,04/07/2018,3836.62
Bath and North East Somerset Council,10876805,LJ2,Legal Fees,P12,Children & Young People,ANWEN WALKER,04/07/2018,750.00
Bath and North East Somerset Council,10876788,LJ2,Legal Fees,P12,Children & Young People,DARREN WATTS,04/07/2018,750.00
Bath and North East Somerset Council,10877551,LA1,Equipment Purchase,P15,Development & Neighbourhoods,AMBEROL LIMITED,04/07/2018,826.50
Bath and North East Somerset Council,10877423,LK1,Fees,P10,Finance & Efficiency,NATASHA DZAMEH,04/07/2018,900.00
Bath and North East Somerset Council,10877488,LA1,Equipment Purchase,P10,Finance & Efficiency,PICKFORDS MOVE MANAGEMENT LTD,04/07/2018,940.00
Bath and North East Somerset Council,10876696,3C4,Building Works,P16,Economic & Community Regeneration,N K S CONTRACTS LTD,04/07/2018,944.13
Bath and North East Somerset Council,10877521,LK1,Fees,P16,Economic & Community Regeneration,CHRISTINE HOUSDEN,04/07/2018,956.10
Bath and North East Somerset Council,10877642,LJ4,Contracts,P12,Children & Young People,BATH & NE SOMERSET CARERS CENTRE,04/07/2018,1013.55
Bath and North East Somerset Council,10876449,3N7,PCB Misc. Costs,P16,Economic & Community Regeneration,NIGEL FERGUSON FABRICATORS LTD,04/07/2018,1045.00
Bath and North East Somerset Council,10876696,3C4,Building Works,P10,Finance & Efficiency,N K S CONTRACTS LTD,04/07/2018,1091.98
Bath and North East Somerset Council,10877444,HK1,Highway Maintenance,P18,Transport & Environment,WESTERN POWER DISTRIBUTION (SO,04/07/2018,1098.55
Bath and North East Somerset Council,80780693,LL2,Personal Needs of Clients,P12,Children & Young People,REDACTED,04/07/2018,864.00
Bath and North East Somerset Council,80780755,LM2,Foster Carer Allowances,P12,Children & Young People,REDACTED,04/07/2018,297.52
Bath and North East Somerset Council,80780755,LM2,Foster Carer Allowances,P12,Children & Young People,REDACTED,04/07/2018,297.52
Bath and North East Somerset Council,80780755,LM2,Foster Carer Allowances,P12,Children & Young People,REDACTED,04/07/2018,421.88
Bath and North East Somerset Council,80780755,LM2,Foster Carer Allowances,P12,Children & Young People,REDACTED,04/07/2018,421.88
Bath and North East Somerset Council,10870527,3C4,Building Works,P16,Economic & Community Regeneration,SOUTH GLOUCESTERSHIRE COUNCIL,04/07/2018,1128.15
Bath and North East Somerset Council,80780744,LM2,Foster Carer Allowances,P12,Children & Young People,REDACTED,04/07/2018,513.22
Bath and North East Somerset Council,80780744,LM2,Foster Carer Allowances,P12,Children & Young People,REDACTED,04/07/2018,513.22
Bath and North East Somerset Council,80780711,LM2,Foster Carer Allowances,P12,Children & Young People,REDACTED,04/07/2018,75.00
Bath and North East Somerset Council,80780711,LM2,Foster Carer Allowances,P12,Children & Young People,REDACTED,04/07/2018,125.00
Bath and North East Somerset Council,80780711,LM2,Foster Carer Allowances,P12,Children & Young People,REDACTED,04/07/2018,256.61
Bath and North East Somerset Council,80780711,LL9,Special Guardianship,P12,Children & Young People,REDACTED,04/07/2018,307.00
Bath and North East Somerset Council,10877505,HK1,Highway Maintenance,P18,Transport & Environment,GREEN MANTLE (ECOSOPHY) LIMITED,04/07/2018,1245.80
Bath and North East Somerset Council,10876387,3F7,PCB External Fees,P16,Economic & Community Regeneration,IDOX SOFTWARE LTD,04/07/2018,1250.00
Bath and North East Somerset Council,10876782,LJ2,Legal Fees,P12,Children & Young People,REDACTED,04/07/2018,890.00
Bath and North East Somerset Council,80780704,LM2,Foster Carer Allowances,P12,Children & Young People,REDACTED,04/07/2018,297.52
Bath and North East Somerset Council,80780704,LM2,Foster Carer Allowances,P12,Children & Young People,REDACTED,04/07/2018,826.00
Bath and North East Somerset Council,80780730,LM2,Foster Carer Allowances,P12,Children & Young People,REDACTED,04/07/2018,150.00
Bath and North East Somerset Council,80780730,LM2,Foster Carer Allowances,P12,Children & Young People,REDACTED,04/07/2018,150.00
Bath and North East Somerset Council,80780730,LM2,Foster Carer Allowances,P12,Children & Young People,REDACTED,04/07/2018,297.52
Bath and North East Somerset Council,80780730,LM2,Foster Carer Allowances,P12,Children & Young People,REDACTED,04/07/2018,297.52
Bath and North East Somerset Council,80780730,LM2,Foster Carer Allowances,P12,Children & Young People,REDACTED,04/07/2018,338.90
Bath and North East Somerset Council,80780730,LM2,Foster Carer Allowances,P12,Children & Young People,REDACTED,04/07/2018,338.90
Bath and North East Somerset Council,80780730,LM2,Foster Carer Allowances,P12,Children & Young People,REDACTED,04/07/2018,421.88
Bath and North East Somerset Council,80780730,LM2,Foster Carer Allowances,P12,Children & Young People,REDACTED,04/07/2018,785.96
Bath and North East Somerset Council,10877388,DB1,Agency Staff,P15,Development & Neighbourhoods,M4 RECRUITMENT LTD,04/07/2018,1368.02
Bath and North East Somerset Council,80780775,LM4,Respite Care,P12,Children & Young People,REDACTED,04/07/2018,266.28
Bath and North East Somerset Council,80780775,LM4,Respite Care,P12,Children & Young People,REDACTED,04/07/2018,266.28
Bath and North East Somerset Council,80780770,LL9,Special Guardianship,P12,Children & Young People,REDACTED,04/07/2018,705.09
Bath and North East Somerset Council,80780720,LM1,Volunt Homes Placements Top/Up,P12,Children & Young People,REDACTED,04/07/2018,913.22
Bath and North East Somerset Council,80780731,LL2,Personal Needs of Clients,P12,Children & Young People,REDACTED,04/07/2018,20.43
Bath and North East Somerset Council,80780731,LM4,Respite Care,P12,Children & Young People,REDACTED,04/07/2018,42.86
Bath and North East Somerset Council,80780731,LM4,Respite Care,P12,Children & Young People,REDACTED,04/07/2018,71.43
Bath and North East Somerset Council,80780731,LM4,Respite Care,P12,Children & Young People,REDACTED,04/07/2018,75.00
Bath and North East Somerset Council,80780731,LL2,Personal Needs of Clients,P12,Children & Young People,REDACTED,04/07/2018,113.91
Bath and North East Somerset Council,80780731,LM4,Respite Care,P12,Children & Young People,REDACTED,04/07/2018,125.00
Bath and North East Somerset Council,80780731,LL3,Supported Living,P16,Economic & Community Regeneration,REDACTED,04/07/2018,141.43
Bath and North East Somerset Council,80780731,LM4,Respite Care,P12,Children & Young People,REDACTED,04/07/2018,146.63
Bath and North East Somerset Council,80780731,LM4,Respite Care,P12,Children & Young People,REDACTED,04/07/2018,256.61
Bath and North East Somerset Council,80780799,PG1,Rent Allowances,P10,Finance & Efficiency,REDACTED,04/07/2018,611.28
Bath and North East Somerset Council,10877625,LE1,Education Payment (independent school),P12,Children & Young People,COTSWOLD CHINE SCHOOL,04/07/2018,1417.50
Bath and North East Somerset Council,10877579,LJ4,Contracts,P11,"Adult Care, Health & Wellbeing",QUALITY EDUCATION SOLUTIONS LTD T/A QES,04/07/2018,1500.00
Bath and North East Somerset Council,10877579,LJ4,Contracts,P12,Children & Young People,QUALITY EDUCATION SOLUTIONS LTD T/A QES,04/07/2018,1500.00
Bath and North East Somerset Council,10877617,HV4,Cleaning Materials,P10,Finance & Efficiency,PHS GROUP LTD,04/07/2018,1507.66
Bath and North East Somerset Council,10877561,LJ4,Contracts,P18,Transport & Environment,BBFI LTD,04/07/2018,1600.00
Bath and North East Somerset Council,10877415,LJ2,Legal Fees,P10,Finance & Efficiency,BEVAN BRITTAN,04/07/2018,1789.50
Bath and North East Somerset Council,10877358,3C4,Building Works,P18,Transport & Environment,SAKNEL HIGHWAYS STRUCTURES CONTRACTOR,04/07/2018,1800.00
Bath and North East Somerset Council,10876869,3N7,PCB Misc. Costs,P16,Economic & Community Regeneration,JUBB CONSULTING ENGINEERS LTD,04/07/2018,1911.30
Bath and North East Somerset Council,10876696,HA1,Responsive Maintenance,P10,Finance & Efficiency,N K S CONTRACTS LTD,04/07/2018,2143.31
Bath and North East Somerset Council,10877648,HP3,Room Hire Charges,P12,Children & Young People,BATH SPA UNIVERSITY,04/07/2018,2380.00
Bath and North East Somerset Council,10877632,LE1,Education Payment (independent school),P12,Children & Young People,MARY HARE SCHOOLS,04/07/2018,2421.00
Bath and North East Somerset Council,10877643,LJ4,Contracts,P12,Children & Young People,BLACK FAMILIES EDUCATION SUPPO,04/07/2018,2585.00
Bath and North East Somerset Council,10877358,3C4,Building Works,P18,Transport & Environment,SAKNEL HIGHWAYS STRUCTURES CONTRACTOR,04/07/2018,2700.00
Bath and North East Somerset Council,80780798,PG1,Rent Allowances,P10,Finance & Efficiency,SEQUENCE (UK) LIMITED T/A ALLEN,04/07/2018,531.26
Bath and North East Somerset Council,10877577,LJ1,Consultants Fees,P16,Economic & Community Regeneration,MACE LIMITED,04/07/2018,2814.00
Bath and North East Somerset Council,10877113,LP8,SPARE - never used,P10,Finance & Efficiency,RIBA ENTERPRISES LTD,04/07/2018,2840.00
Bath and North East Somerset Council,10877098,LL2,Personal Needs of Clients,P12,Children & Young People,ALWAYS PRECIOUS LTD,04/07/2018,2860.00
Bath and North East Somerset Council,10877508,3N7,PCB Misc. Costs,P15,Development & Neighbourhoods,ARIEN SIGNS LTD,04/07/2018,2874.27
Bath and North East Somerset Council,10877651,LJ4,Contracts,P11,"Adult Care, Health & Wellbeing",SWINDON BOROUGH COUNCIL,04/07/2018,2897.00
Bath and North East Somerset Council,10877456,LK1,Fees,P10,Finance & Efficiency,GVA GRIMLEY LTD,04/07/2018,3000.00
Bath and North East Somerset Council,10876696,HA1,Responsive Maintenance,P15,Development & Neighbourhoods,N K S CONTRACTS LTD,04/07/2018,3089.02
Bath and North East Somerset Council,10877485,HA1,Responsive Maintenance,P10,Finance & Efficiency,INTERACTION ASSOCIATES LTD,04/07/2018,3095.40
Bath and North East Somerset Council,10877097,LL2,Personal Needs of Clients,P12,Children & Young People,ALWAYS PRECIOUS LTD,04/07/2018,3400.00
Bath and North East Somerset Council,10877101,LL2,Personal Needs of Clients,P12,Children & Young People,ALWAYS PRECIOUS LTD,04/07/2018,3400.00
Bath and North East Somerset Council,10877457,HP3,Room Hire Charges,P12,Children & Young People,HAYESFIELD SCHOOL,04/07/2018,3513.00
Bath and North East Somerset Council,10877100,LL2,Personal Needs of Clients,P12,Children & Young People,ALWAYS PRECIOUS LTD,04/07/2018,3580.00
Bath and North East Somerset Council,10876449,3N7,PCB Misc. Costs,P16,Economic & Community Regeneration,NIGEL FERGUSON FABRICATORS LTD,04/07/2018,3705.00
Bath and North East Somerset Council,10877543,LH5,Marketing,P16,Economic & Community Regeneration,VISITWILTSHIRE LTD,04/07/2018,3750.00
Bath and North East Somerset Council,10877518,LP5,Software Support,P10,Finance & Efficiency,SOFTBOX LTD,04/07/2018,4378.00
Bath and North East Somerset Council,10877541,HP1,Rent Payable,P10,Finance & Efficiency,CHEVY MILLS,04/07/2018,5000.00
Bath and North East Somerset Council,10877496,LV2,Contributions to Organisations,P15,Development & Neighbourhoods,BRISTOL NATURAL HISTORY CONSORTIUM,04/07/2018,5100.00
Bath and North East Somerset Council,10877442,3F7,PCB External Fees,P18,Transport & Environment,WSP UK LTD,04/07/2018,5787.64
Bath and North East Somerset Council,10877581,LH5,Marketing,P16,Economic & Community Regeneration,BATH TOURISM PLUS,04/07/2018,5885.00
Bath and North East Somerset Council,10876868,3N7,PCB Misc. Costs,P16,Economic & Community Regeneration,JUBB CONSULTING ENGINEERS LTD,04/07/2018,6020.20
Bath and North East Somerset Council,10876443,LK1,Fees,P15,Development & Neighbourhoods,CAPITA SYMONDS,04/07/2018,6148.40
Bath and North East Somerset Council,10877461,HP8,Service Charges,P17,Transformation & Customer Services,JOHN LEWIS PLC RE RENT RECEIPT,04/07/2018,7500.00
Bath and North East Somerset Council,10876696,HA1,Responsive Maintenance,P10,Finance & Efficiency,N K S CONTRACTS LTD,04/07/2018,8157.05
Bath and North East Somerset Council,10877484,HA1,Responsive Maintenance,P10,Finance & Efficiency,INTERACTION ASSOCIATES LTD,04/07/2018,8905.75
Bath and North East Somerset Council,10877452,3F7,PCB External Fees,P10,Finance & Efficiency,ADT FIRE & SECURITY PLC,04/07/2018,9000.00
Bath and North East Somerset Council,10877525,HP1,Rent Payable,P10,Finance & Efficiency,MR WILLATS' CHARITY,04/07/2018,9125.00
Bath and North East Somerset Council,10877486,LN9,IT Security,P10,Finance & Efficiency,CHESS CYBERSECURITY LTD,04/07/2018,11247.00
Bath and North East Somerset Council,10876696,HA1,Responsive Maintenance,P10,Finance & Efficiency,N K S CONTRACTS LTD,04/07/2018,17938.20
Bath and North East Somerset Council,10877489,LJ4,Contracts,P16,Economic & Community Regeneration,COOL VENTURES LTD,04/07/2018,20059.94
Bath and North East Somerset Council,10877506,KA3,Fuel,P15,Development & Neighbourhoods,HALLS FUELS,04/07/2018,25756.91
Bath and North East Somerset Council,10876976,3C4,Building Works,P18,Transport & Environment,REDSPEED INTERNATIONAL LTD,04/07/2018,39119.43
Bath and North East Somerset Council,10877494,3F7,PCB External Fees,P10,Finance & Efficiency,FOSSE CONTRACTS LIMITED,04/07/2018,54346.00
Bath and North East Somerset Council,10877559,LJ4,Contracts,P15,Development & Neighbourhoods,HEALTHMATIC LTD,04/07/2018,81853.42
Bath and North East Somerset Council,10877528,LJ4,Contracts,P12,Children & Young People,SOUTHSIDE FAMILY PROJECT,04/07/2018,95966.72
Bath and North East Somerset Council,10876744,3F7,PCB External Fees,P16,Economic & Community Regeneration,NORTH MIDLAND CONSTRUCTION PLC,04/07/2018,126598.41
Bath and North East Somerset Council,10877612,LK1,Fees,P15,Development & Neighbourhoods,CH2M HILL UK,04/07/2018,126852.47
Bath and North East Somerset Council,10876363,3F7,PCB External Fees,P16,Economic & Community Regeneration,BAM CONSTRUCTION LIMITED,04/07/2018,184312.70
Bath and North East Somerset Council,80780849,PG1,Rent Allowances,P10,Finance & Efficiency,REDACTED,05/07/2018,1085.92
Bath and North East Somerset Council,80780818,PG1,Rent Allowances,P10,Finance & Efficiency,ACTION ON HEARING LOSS,05/07/2018,1022.04
Bath and North East Somerset Council,80780851,PG1,Rent Allowances,P10,Finance & Efficiency,ADVANCE HOUSING SUPPORT LTD,05/07/2018,2669.20
Bath and North East Somerset Council,80781003,LM8,Home Care,P11,"Adult Care, Health & Wellbeing",AGINCARE LIVE IN CARE SERVICES LTD,05/07/2018,1400.00
Bath and North East Somerset Council,80781003,LM8,Home Care,P11,"Adult Care, Health & Wellbeing",AGINCARE LIVE IN CARE SERVICES LTD,05/07/2018,1530.06
Bath and North East Somerset Council,80781003,LM8,Home Care,P11,"Adult Care, Health & Wellbeing",AGINCARE LIVE IN CARE SERVICES LTD,05/07/2018,1700.02
Bath and North East Somerset Council,80780994,LM8,Home Care,P11,"Adult Care, Health & Wellbeing",AMBER HOMECARE LTD,05/07/2018,536.66
Bath and North East Somerset Council,80780994,LM8,Home Care,P11,"Adult Care, Health & Wellbeing",AMBER HOMECARE LTD,05/07/2018,946.18
Bath and North East Somerset Council,80780827,PG1,Rent Allowances,P10,Finance & Efficiency,ANDREWS PROPERTY MANAGEMENT,05/07/2018,559.24
Bath and North East Somerset Council,80780842,PG1,Rent Allowances,P10,Finance & Efficiency,AQUA SULIS FINANCIAL MANAGEMENT,05/07/2018,535.40
Bath and North East Somerset Council,10877672,3C4,Building Works,P18,Transport & Environment,M JENNINGS,05/07/2018,73.00
Bath and North East Somerset Council,10877674,HK1,Highway Maintenance,P18,Transport & Environment,M JENNINGS,05/07/2018,79.00
Bath and North East Somerset Council,80780970,PG1,Rent Allowances,P10,Finance & Efficiency,ASSURED PROPERTY RENTALS,05/07/2018,624.20
Bath and North East Somerset Council,80780845,PG1,Rent Allowances,P10,Finance & Efficiency,ASTER COMMUNITIES,05/07/2018,13627.13
Bath and North East Somerset Council,10877676,HK1,Highway Maintenance,P18,Transport & Environment,M JENNINGS,05/07/2018,259.00
Bath and North East Somerset Council,80780829,PG1,Rent Allowances,P10,Finance & Efficiency,BATH CHRISTIAN TRUST,05/07/2018,4854.07
Bath and North East Somerset Council,80780935,PG1,Rent Allowances,P10,Finance & Efficiency,BATH MIND,05/07/2018,2541.88
Bath and North East Somerset Council,80780976,PG1,Rent Allowances,P10,Finance & Efficiency,BATH PROPERTY SERVICES,05/07/2018,589.84
Bath and North East Somerset Council,80781004,LM8,Home Care,P11,"Adult Care, Health & Wellbeing",BLUEBIRD CARE (BATH),05/07/2018,18.63
Bath and North East Somerset Council,80781004,LM8,Home Care,P11,"Adult Care, Health & Wellbeing",BLUEBIRD CARE (BATH),05/07/2018,263.67
Bath and North East Somerset Council,80781004,LM8,Home Care,P11,"Adult Care, Health & Wellbeing",BLUEBIRD CARE (BATH),05/07/2018,292.01
Bath and North East Somerset Council,80781004,LM8,Home Care,P11,"Adult Care, Health & Wellbeing",BLUEBIRD CARE (BATH),05/07/2018,436.04
Bath and North East Somerset Council,80781004,LM8,Home Care,P11,"Adult Care, Health & Wellbeing",BLUEBIRD CARE (BATH),05/07/2018,495.60
Bath and North East Somerset Council,80781004,LM8,Home Care,P11,"Adult Care, Health & Wellbeing",BLUEBIRD CARE (BATH),05/07/2018,531.42
Bath and North East Somerset Council,80781004,LM8,Home Care,P11,"Adult Care, Health & Wellbeing",BLUEBIRD CARE (BATH),05/07/2018,545.40
Bath and North East Somerset Council,80781004,LM8,Home Care,P11,"Adult Care, Health & Wellbeing",BLUEBIRD CARE (BATH),05/07/2018,584.02
Bath and North East Somerset Council,80781004,LM8,Home Care,P11,"Adult Care, Health & Wellbeing",BLUEBIRD CARE (BATH),05/07/2018,587.86
Bath and North East Somerset Council,80781004,LM8,Home Care,P11,"Adult Care, Health & Wellbeing",BLUEBIRD CARE (BATH),05/07/2018,635.94
Bath and North East Somerset Council,80781004,LM8,Home Care,P11,"Adult Care, Health & Wellbeing",BLUEBIRD CARE (BATH),05/07/2018,773.67
Bath and North East Somerset Council,80781004,LM8,Home Care,P11,"Adult Care, Health & Wellbeing",BLUEBIRD CARE (BATH),05/07/2018,991.20
Bath and North East Somerset Council,80781004,LM8,Home Care,P11,"Adult Care, Health & Wellbeing",BLUEBIRD CARE (BATH),05/07/2018,1398.18
Bath and North East Somerset Council,80781004,LM8,Home Care,P11,"Adult Care, Health & Wellbeing",BLUEBIRD CARE (BATH),05/07/2018,1912.65
Bath and North East Somerset Council,80781004,LM8,Home Care,P11,"Adult Care, Health & Wellbeing",BLUEBIRD CARE (BATH),05/07/2018,2149.38
Bath and North East Somerset Council,80781004,LM8,Home Care,P11,"Adult Care, Health & Wellbeing",BLUEBIRD CARE (BATH),05/07/2018,2671.88
Bath and North East Somerset Council,80780991,LM9,Day Care,P11,"Adult Care, Health & Wellbeing",BRADBURY HOUSE LTD,05/07/2018,720.00
Bath and North East Somerset Council,80780991,LM9,Day Care,P11,"Adult Care, Health & Wellbeing",BRADBURY HOUSE LTD,05/07/2018,750.00
Bath and North East Somerset Council,80780991,LM8,Home Care,P11,"Adult Care, Health & Wellbeing",BRADBURY HOUSE LTD,05/07/2018,900.00
Bath and North East Somerset Council,80781001,LM8,Home Care,P11,"Adult Care, Health & Wellbeing",BUTTERFLY HOME HELP,05/07/2018,2140.47
Bath and North East Somerset Council,80780995,LM9,Day Care,P11,"Adult Care, Health & Wellbeing",CARE FUTURES,05/07/2018,746.26
Bath and North East Somerset Council,80780995,LM9,Day Care,P11,"Adult Care, Health & Wellbeing",CARE FUTURES,05/07/2018,1363.53
Bath and North East Somerset Council,80780997,LM8,Home Care,P11,"Adult Care, Health & Wellbeing",CARE SOUTH,05/07/2018,670.09
Bath and North East Somerset Council,80781000,LM6,Nursing Care,P11,"Adult Care, Health & Wellbeing",CEDAR CARE HOMES LTD,05/07/2018,989.71
Bath and North East Somerset Council,80781000,LM6,Nursing Care,P11,"Adult Care, Health & Wellbeing",CEDAR CARE HOMES LTD,05/07/2018,1484.58
Bath and North East Somerset Council,80781000,LM6,Nursing Care,P11,"Adult Care, Health & Wellbeing",CEDAR CARE HOMES LTD,05/07/2018,3835.15
Bath and North East Somerset Council,80780989,LM6,Nursing Care,P11,"Adult Care, Health & Wellbeing",CEDAR PARK NURSING HOME,05/07/2018,1178.57
Bath and North East Somerset Council,80780989,LM6,Nursing Care,P11,"Adult Care, Health & Wellbeing",CEDAR PARK NURSING HOME,05/07/2018,1750.00
Bath and North East Somerset Council,10877742,HA3,Planned Maintenance,P15,Development & Neighbourhoods,CAMPBELL SCIENTIFIC LTD,05/07/2018,432.00
Bath and North East Somerset Council,80781042,LA7,Purchases for Resale,P16,Economic & Community Regeneration,TIMOTHY RICHARDS LTD T/A MODERN SOUVENIR,05/07/2018,438.80
Bath and North East Somerset Council,10876851,KD1,Employees Public Transport,P04,Leader,CHAUFFEUR CARS (BATH),05/07/2018,445.35
Bath and North East Somerset Council,80780776,PG1,Rent Allowances,P10,Finance & Efficiency,CURO,05/07/2018,525.28
Bath and North East Somerset Council,80780777,PG1,Rent Allowances,P10,Finance & Efficiency,CURO,05/07/2018,1000.00
Bath and North East Somerset Council,10877749,LW9,Other Expenses,P10,Finance & Efficiency,CYCLESCHEME LTD,05/07/2018,520.83
Bath and North East Somerset Council,80780815,PG1,Rent Allowances,P10,Finance & Efficiency,CURO,05/07/2018,4314.28
Bath and North East Somerset Council,80780814,PG1,Rent Allowances,P10,Finance & Efficiency,CURO,05/07/2018,49652.76
Bath and North East Somerset Council,80780848,PG1,Rent Allowances,P10,Finance & Efficiency,DELANEY PROPERTIES LTD,05/07/2018,537.24
Bath and North East Somerset Council,80780870,PG1,Rent Allowances,P10,Finance & Efficiency,DEVELOPING HEALTH AND INDEPENDEN,05/07/2018,4849.32
Bath and North East Somerset Council,80780975,PG1,Rent Allowances,P10,Finance & Efficiency,DEVELOPING HEALTH AND INDEPENDEN,05/07/2018,9215.59
Bath and North East Somerset Council,10877745,LH2,Advertising,P15,Development & Neighbourhoods,REACH PUBLISHING SERVICES LTD,05/07/2018,538.82
Bath and North East Somerset Council,80781050,LA7,Purchases for Resale,P16,Economic & Community Regeneration,HARPER COLLINS PUBLISHERS,05/07/2018,547.25
Bath and North East Somerset Council,80781029,LA7,Purchases for Resale,P16,Economic & Community Regeneration,AHMAD TEA LIMITED,05/07/2018,561.26
Bath and North East Somerset Council,80780946,PG1,Rent Allowances,P10,Finance & Efficiency,DIMENSIONS (UK) LTD,05/07/2018,22858.74
Bath and North East Somerset Council,80780948,PG1,Rent Allowances,P10,Finance & Efficiency,DUCHY OF CORNWALL,05/07/2018,1679.16
Bath and North East Somerset Council,10877761,LJ1,Consultants Fees,P10,Finance & Efficiency,WEST OF ENGLAND COMBINED AUTHORITY,05/07/2018,600.00
Bath and North East Somerset Council,80780880,PG1,Rent Allowances,P10,Finance & Efficiency,ELIM HOUSING ASSOCIATION,05/07/2018,1083.11
Bath and North East Somerset Council,10877674,HK1,Highway Maintenance,P18,Transport & Environment,M JENNINGS,05/07/2018,606.00
Bath and North East Somerset Council,80781048,LA7,Purchases for Resale,P16,Economic & Community Regeneration,HARPER COLLINS PUBLISHERS,05/07/2018,614.22
Bath and North East Somerset Council,80780968,PG1,Rent Allowances,P10,Finance & Efficiency,ENGLISH RURAL HOUSING ASSOCIATIO,05/07/2018,668.00
Bath and North East Somerset Council,80781018,LA7,Purchases for Resale,P16,Economic & Community Regeneration,DJH ENGINEERING LTD,05/07/2018,650.00
Bath and North East Somerset Council,10877639,HA1,Responsive Maintenance,P10,Finance & Efficiency,ORONA LTD,05/07/2018,673.00
Bath and North East Somerset Council,80780979,PG1,Rent Allowances,P10,Finance & Efficiency,GOLDEN LANE HOUSING LTD,05/07/2018,5112.16
Bath and North East Somerset Council,10877670,3C4,Building Works,P18,Transport & Environment,BERRY GEOMATICS LTD,05/07/2018,710.00
Bath and North East Somerset Council,10877568,LL1,Services to/for Clients,P12,Children & Young People,CURO,05/07/2018,725.00
Bath and North East Somerset Council,80780954,PG1,Rent Allowances,P10,Finance & Efficiency,HANOVER HOUSING ASSOCIATION,05/07/2018,2452.80
Bath and North East Somerset Council,80780956,PG1,Rent Allowances,P10,Finance & Efficiency,HANOVER HOUSING ASSOCIATION,05/07/2018,9484.18
Bath and North East Somerset Council,80781014,LA7,Purchases for Resale,P16,Economic & Community Regeneration,COTSWOLD LAVENDER,05/07/2018,776.16
Bath and North East Somerset Council,10877719,LN5,Data Lines,P10,Finance & Efficiency,BT GLOBAL SERVICES,05/07/2018,790.37
Bath and North East Somerset Council,80781016,LA7,Purchases for Resale,P16,Economic & Community Regeneration,DJH ENGINEERING LTD,05/07/2018,797.50
Bath and North East Somerset Council,80781041,LA7,Purchases for Resale,P16,Economic & Community Regeneration,TEMPLE ISLAND COLLECTIONS,05/07/2018,836.45
Bath and North East Somerset Council,80780938,PG1,Rent Allowances,P10,Finance & Efficiency,REDACTED,05/07/2018,42460.09
Bath and North East Somerset Council,80780983,LM8,Home Care,P11,"Adult Care, Health & Wellbeing",KUMARI HOMECARE SERVICE,05/07/2018,10.25
Bath and North East Somerset Council,10877672,3C4,Building Works,P18,Transport & Environment,M JENNINGS,05/07/2018,887.00
Bath and North East Somerset Council,80780983,LM8,Home Care,P11,"Adult Care, Health & Wellbeing",KUMARI HOMECARE SERVICE,05/07/2018,71.75
Bath and North East Somerset Council,80780983,LM8,Home Care,P11,"Adult Care, Health & Wellbeing",KUMARI HOMECARE SERVICE,05/07/2018,78.93
Bath and North East Somerset Council,80780983,LM8,Home Care,P11,"Adult Care, Health & Wellbeing",KUMARI HOMECARE SERVICE,05/07/2018,133.25
Bath and North East Somerset Council,80780983,LM8,Home Care,P11,"Adult Care, Health & Wellbeing",KUMARI HOMECARE SERVICE,05/07/2018,143.50
Bath and North East Somerset Council,80780983,LM8,Home Care,P11,"Adult Care, Health & Wellbeing",KUMARI HOMECARE SERVICE,05/07/2018,143.50
Bath and North East Somerset Council,80780983,LM8,Home Care,P11,"Adult Care, Health & Wellbeing",KUMARI HOMECARE SERVICE,05/07/2018,157.85
Bath and North East Somerset Council,80780983,LM8,Home Care,P11,"Adult Care, Health & Wellbeing",KUMARI HOMECARE SERVICE,05/07/2018,205.00
Bath and North East Somerset Council,80780983,LM8,Home Care,P11,"Adult Care, Health & Wellbeing",KUMARI HOMECARE SERVICE,05/07/2018,215.25
Bath and North East Somerset Council,80780983,LM8,Home Care,P11,"Adult Care, Health & Wellbeing",KUMARI HOMECARE SERVICE,05/07/2018,219.35
Bath and North East Somerset Council,80780983,LM8,Home Care,P11,"Adult Care, Health & Wellbeing",KUMARI HOMECARE SERVICE,05/07/2018,219.35
Bath and North East Somerset Council,80780983,LM8,Home Care,P11,"Adult Care, Health & Wellbeing",KUMARI HOMECARE SERVICE,05/07/2018,256.25
Bath and North East Somerset Council,80780983,LM8,Home Care,P11,"Adult Care, Health & Wellbeing",KUMARI HOMECARE SERVICE,05/07/2018,263.94
Bath and North East Somerset Council,80780983,LM8,Home Care,P11,"Adult Care, Health & Wellbeing",KUMARI HOMECARE SERVICE,05/07/2018,277.78
Bath and North East Somerset Council,80780983,LM8,Home Care,P11,"Adult Care, Health & Wellbeing",KUMARI HOMECARE SERVICE,05/07/2018,302.38
Bath and North East Somerset Council,80780983,LM8,Home Care,P11,"Adult Care, Health & Wellbeing",KUMARI HOMECARE SERVICE,05/07/2018,307.50
Bath and North East Somerset Council,80780983,LM8,Home Care,P11,"Adult Care, Health & Wellbeing",KUMARI HOMECARE SERVICE,05/07/2018,336.20
Bath and North East Somerset Council,80780983,LM8,Home Care,P11,"Adult Care, Health & Wellbeing",KUMARI HOMECARE SERVICE,05/07/2018,632.00
Bath and North East Somerset Council,80780983,LM8,Home Care,P11,"Adult Care, Health & Wellbeing",KUMARI HOMECARE SERVICE,05/07/2018,765.80
Bath and North East Somerset Council,80780983,LM8,Home Care,P11,"Adult Care, Health & Wellbeing",KUMARI HOMECARE SERVICE,05/07/2018,789.25
Bath and North East Somerset Council,80780983,LM8,Home Care,P11,"Adult Care, Health & Wellbeing",KUMARI HOMECARE SERVICE,05/07/2018,804.93
Bath and North East Somerset Council,80780983,LM8,Home Care,P11,"Adult Care, Health & Wellbeing",KUMARI HOMECARE SERVICE,05/07/2018,804.93
Bath and North East Somerset Council,80781038,LA7,Purchases for Resale,P16,Economic & Community Regeneration,THE MASTER HERBALIST LIMITED,05/07/2018,981.25
Bath and North East Somerset Council,80780983,LM8,Home Care,P11,"Adult Care, Health & Wellbeing",KUMARI HOMECARE SERVICE,05/07/2018,817.32
Bath and North East Somerset Council,80780983,LM8,Home Care,P11,"Adult Care, Health & Wellbeing",KUMARI HOMECARE SERVICE,05/07/2018,868.18
Bath and North East Somerset Council,80780983,LM8,Home Care,P11,"Adult Care, Health & Wellbeing",KUMARI HOMECARE SERVICE,05/07/2018,885.42
Bath and North East Somerset Council,80780983,LM8,Home Care,P11,"Adult Care, Health & Wellbeing",KUMARI HOMECARE SERVICE,05/07/2018,885.42
Bath and North East Somerset Council,80780983,LM8,Home Care,P11,"Adult Care, Health & Wellbeing",KUMARI HOMECARE SERVICE,05/07/2018,899.05
Bath and North East Somerset Council,80780983,LM8,Home Care,P11,"Adult Care, Health & Wellbeing",KUMARI HOMECARE SERVICE,05/07/2018,1020.25
Bath and North East Somerset Council,80780983,LM8,Home Care,P11,"Adult Care, Health & Wellbeing",KUMARI HOMECARE SERVICE,05/07/2018,1091.93
Bath and North East Somerset Council,80780983,LM8,Home Care,P11,"Adult Care, Health & Wellbeing",KUMARI HOMECARE SERVICE,05/07/2018,1091.93
Bath and North East Somerset Council,80780983,LM8,Home Care,P11,"Adult Care, Health & Wellbeing",KUMARI HOMECARE SERVICE,05/07/2018,1122.28
Bath and North East Somerset Council,80780983,LM8,Home Care,P11,"Adult Care, Health & Wellbeing",KUMARI HOMECARE SERVICE,05/07/2018,1201.12
Bath and North East Somerset Council,80780983,LM8,Home Care,P11,"Adult Care, Health & Wellbeing",KUMARI HOMECARE SERVICE,05/07/2018,1201.12
Bath and North East Somerset Council,80780983,LM8,Home Care,P11,"Adult Care, Health & Wellbeing",KUMARI HOMECARE SERVICE,05/07/2018,1235.43
Bath and North East Somerset Council,80780983,LM8,Home Care,P11,"Adult Care, Health & Wellbeing",KUMARI HOMECARE SERVICE,05/07/2018,1358.97
Bath and North East Somerset Council,80780983,LM8,Home Care,P11,"Adult Care, Health & Wellbeing",KUMARI HOMECARE SERVICE,05/07/2018,1901.75
Bath and North East Somerset Council,80780983,LM8,Home Care,P11,"Adult Care, Health & Wellbeing",KUMARI HOMECARE SERVICE,05/07/2018,2089.88
Bath and North East Somerset Council,80780865,PG1,Rent Allowances,P10,Finance & Efficiency,LETTINGS-R-US PROPERTIES LIMITED,05/07/2018,692.32
Bath and North East Somerset Council,80780973,PG1,Rent Allowances,P10,Finance & Efficiency,LIVERTY HOMES (SOUTH WEST) LIMIT,05/07/2018,825.30
Bath and North East Somerset Council,80780930,PG1,Rent Allowances,P10,Finance & Efficiency,LIVERTY HOMES (SOUTH WEST) LIMIT,05/07/2018,1236.76
Bath and North East Somerset Council,80780934,PG1,Rent Allowances,P10,Finance & Efficiency,LIVERTY HOMES (SOUTH WEST) LIMIT,05/07/2018,1747.94
Bath and North East Somerset Council,10877622,LK1,Fees,P13,Economic Development,MINES RESCUE SERVICE LTD,05/07/2018,1121.05
Bath and North East Somerset Council,80780847,PG1,Rent Allowances,P10,Finance & Efficiency,REDACTED,05/07/2018,1556.16
Bath and North East Somerset Council,80780887,PG1,Rent Allowances,P10,Finance & Efficiency,MERCY IN ACTION,05/07/2018,1916.72
Bath and North East Somerset Council,80780859,PG1,Rent Allowances,P10,Finance & Efficiency,MERLIN HOUSING SOCIETY LIMITED,05/07/2018,4165.40
Bath and North East Somerset Council,80780933,PG1,Rent Allowances,P10,Finance & Efficiency,METHODIST HOMES (CHURCH COURT),05/07/2018,3107.08
Bath and North East Somerset Council,80780953,PG1,Rent Allowances,P10,Finance & Efficiency,METHODIST HOMES HOUSING ASSOCIAT,05/07/2018,2765.76
Bath and North East Somerset Council,80781040,LA7,Purchases for Resale,P16,Economic & Community Regeneration,STUART MORRIS TEXTILES,05/07/2018,1140.00
Bath and North East Somerset Council,80780919,PG1,Rent Allowances,P10,Finance & Efficiency,REDACTED,05/07/2018,682.29
Bath and North East Somerset Council,80780947,PG1,Rent Allowances,P10,Finance & Efficiency,REDACTED,05/07/2018,761.52
Bath and North East Somerset Council,80780857,PG1,Rent Allowances,P10,Finance & Efficiency,REDACTED,05/07/2018,573.30
Bath and North East Somerset Council,80780877,PG1,Rent Allowances,P10,Finance & Efficiency,REDACTED,05/07/2018,660.00
Bath and North East Somerset Council,80780963,PG1,Rent Allowances,P10,Finance & Efficiency,REDACTED,05/07/2018,559.24
Bath and North East Somerset Council,80780964,PG1,Rent Allowances,P10,Finance & Efficiency,REDACTED,05/07/2018,559.24
Bath and North East Somerset Council,10877676,HK1,Highway Maintenance,P18,Transport & Environment,M JENNINGS,05/07/2018,1171.00
Bath and North East Somerset Council,80780867,PG1,Rent Allowances,P10,Finance & Efficiency,REDACTED,05/07/2018,565.00
Bath and North East Somerset Council,80780831,PG1,Rent Allowances,P10,Finance & Efficiency,REDACTED,05/07/2018,553.84
Bath and North East Somerset Council,80780837,PG1,Rent Allowances,P10,Finance & Efficiency,REDACTED,05/07/2018,724.60
Bath and North East Somerset Council,80780868,PG1,Rent Allowances,P10,Finance & Efficiency,REDACTED,05/07/2018,618.48
Bath and North East Somerset Council,80780879,PG1,Rent Allowances,P10,Finance & Efficiency,REDACTED,05/07/2018,782.24
Bath and North East Somerset Council,80780844,PG1,Rent Allowances,P10,Finance & Efficiency,REDACTED,05/07/2018,553.84
Bath and North East Somerset Council,80780863,PG1,Rent Allowances,P10,Finance & Efficiency,REDACTED,05/07/2018,646.16
Bath and North East Somerset Council,80780860,PG1,Rent Allowances,P10,Finance & Efficiency,REDACTED,05/07/2018,559.24
Bath and North East Somerset Council,80780882,PG1,Rent Allowances,P10,Finance & Efficiency,REDACTED,05/07/2018,502.08
Bath and North East Somerset Council,80780835,PG1,Rent Allowances,P10,Finance & Efficiency,REDACTED,05/07/2018,559.24
Bath and North East Somerset Council,80780823,PG1,Rent Allowances,P10,Finance & Efficiency,REDACTED,05/07/2018,559.24
Bath and North East Somerset Council,80780932,PG1,Rent Allowances,P10,Finance & Efficiency,REDACTED,05/07/2018,1213.92
Bath and North East Somerset Council,80780836,PG1,Rent Allowances,P10,Finance & Efficiency,REDACTED,05/07/2018,511.84
Bath and North East Somerset Council,80780852,PG1,Rent Allowances,P10,Finance & Efficiency,REDACTED,05/07/2018,547.80
Bath and North East Somerset Council,80780830,PG1,Rent Allowances,P10,Finance & Efficiency,REDACTED,05/07/2018,1707.24
Bath and North East Somerset Council,80780876,PG1,Rent Allowances,P10,Finance & Efficiency,REDACTED,05/07/2018,656.60
Bath and North East Somerset Council,80780888,PG1,Rent Allowances,P10,Finance & Efficiency,REDACTED,05/07/2018,559.24
Bath and North East Somerset Council,80780920,PG1,Rent Allowances,P10,Finance & Efficiency,REDACTED,05/07/2018,1150.26
Bath and North East Somerset Council,80780862,PG1,Rent Allowances,P10,Finance & Efficiency,REDACTED,05/07/2018,516.92
Bath and North East Somerset Council,80780869,PG1,Rent Allowances,P10,Finance & Efficiency,REDACTED,05/07/2018,600.00
Bath and North East Somerset Council,80780873,PG1,Rent Allowances,P10,Finance & Efficiency,REDACTED,05/07/2018,647.88
Bath and North East Somerset Council,80780916,PG1,Rent Allowances,P10,Finance & Efficiency,REDACTED,05/07/2018,553.84
Bath and North East Somerset Council,80780821,PG1,Rent Allowances,P10,Finance & Efficiency,REDACTED,05/07/2018,616.48
Bath and North East Somerset Council,80780961,PG1,Rent Allowances,P10,Finance & Efficiency,REDACTED,05/07/2018,540.00
Bath and North East Somerset Council,80780899,PG1,Rent Allowances,P10,Finance & Efficiency,REDACTED,05/07/2018,598.80
Bath and North East Somerset Council,80780885,PG1,Rent Allowances,P10,Finance & Efficiency,REDACTED,05/07/2018,782.24
Bath and North East Somerset Council,80780819,PG1,Rent Allowances,P10,Finance & Efficiency,REDACTED,05/07/2018,967.56
Bath and North East Somerset Council,10877688,HA1,Responsive Maintenance,P10,Finance & Efficiency,MECHANICAL ENGINEERING SERVICE,05/07/2018,1405.66
Bath and North East Somerset Council,80780840,PG1,Rent Allowances,P10,Finance & Efficiency,REDACTED,05/07/2018,576.92
Bath and North East Somerset Council,80780881,PG1,Rent Allowances,P10,Finance & Efficiency,REDACTED,05/07/2018,647.72
Bath and North East Somerset Council,80780923,PG1,Rent Allowances,P10,Finance & Efficiency,REDACTED,05/07/2018,544.60
Bath and North East Somerset Council,80780825,PG1,Rent Allowances,P10,Finance & Efficiency,REDACTED,05/07/2018,1052.32
Bath and North East Somerset Council,80780878,PG1,Rent Allowances,P10,Finance & Efficiency,REDACTED,05/07/2018,668.92
Bath and North East Somerset Council,80780841,PG1,Rent Allowances,P10,Finance & Efficiency,REDACTED,05/07/2018,559.24
Bath and North East Somerset Council,80780929,PG1,Rent Allowances,P10,Finance & Efficiency,REDACTED,05/07/2018,1205.00
Bath and North East Somerset Council,80780984,LL3,Supported Living,P11,"Adult Care, Health & Wellbeing",NATIONAL AUTISTIC SOCIETY,05/07/2018,0.02
Bath and North East Somerset Council,80780984,LL3,Supported Living,P11,"Adult Care, Health & Wellbeing",NATIONAL AUTISTIC SOCIETY,05/07/2018,0.04
Bath and North East Somerset Council,80780984,LM8,Home Care,P11,"Adult Care, Health & Wellbeing",NATIONAL AUTISTIC SOCIETY,05/07/2018,0.06
Bath and North East Somerset Council,80780984,LL3,Supported Living,P11,"Adult Care, Health & Wellbeing",NATIONAL AUTISTIC SOCIETY,05/07/2018,0.06
Bath and North East Somerset Council,80780984,LM8,Home Care,P11,"Adult Care, Health & Wellbeing",NATIONAL AUTISTIC SOCIETY,05/07/2018,0.08
Bath and North East Somerset Council,80780984,LM8,Home Care,P11,"Adult Care, Health & Wellbeing",NATIONAL AUTISTIC SOCIETY,05/07/2018,673.90
Bath and North East Somerset Council,80780984,LL3,Supported Living,P11,"Adult Care, Health & Wellbeing",NATIONAL AUTISTIC SOCIETY,05/07/2018,1093.30
Bath and North East Somerset Council,80780984,LM8,Home Care,P11,"Adult Care, Health & Wellbeing",NATIONAL AUTISTIC SOCIETY,05/07/2018,1569.60
Bath and North East Somerset Council,80780984,LM9,Day Care,P11,"Adult Care, Health & Wellbeing",NATIONAL AUTISTIC SOCIETY,05/07/2018,1589.54
Bath and North East Somerset Council,80780984,LM9,Day Care,P11,"Adult Care, Health & Wellbeing",NATIONAL AUTISTIC SOCIETY,05/07/2018,1596.94
Bath and North East Somerset Council,80780984,LM9,Day Care,P11,"Adult Care, Health & Wellbeing",NATIONAL AUTISTIC SOCIETY,05/07/2018,1597.44
Bath and North East Somerset Council,80780984,LM9,Day Care,P11,"Adult Care, Health & Wellbeing",NATIONAL AUTISTIC SOCIETY,05/07/2018,1597.44
Bath and North East Somerset Council,80780984,LM9,Day Care,P11,"Adult Care, Health & Wellbeing",NATIONAL AUTISTIC SOCIETY,05/07/2018,1604.93
Bath and North East Somerset Council,80780984,LM9,Day Care,P11,"Adult Care, Health & Wellbeing",NATIONAL AUTISTIC SOCIETY,05/07/2018,1604.93
Bath and North East Somerset Council,80780984,LL3,Supported Living,P11,"Adult Care, Health & Wellbeing",NATIONAL AUTISTIC SOCIETY,05/07/2018,6898.30
Bath and North East Somerset Council,80780984,LL3,Supported Living,P11,"Adult Care, Health & Wellbeing",NATIONAL AUTISTIC SOCIETY,05/07/2018,12315.40
Bath and North East Somerset Council,80780886,PG1,Rent Allowances,P10,Finance & Efficiency,NORTHWOOD BRISTOL LTD,05/07/2018,600.00
Bath and North East Somerset Council,10877743,LK1,Fees,P12,Children & Young People,FAMILIES FOR CHLDREN ADOPTION,05/07/2018,1500.00
Bath and North East Somerset Council,80781010,LA7,Purchases for Resale,P16,Economic & Community Regeneration,BATH AQUA GLASS LTD,05/07/2018,1556.30
Bath and North East Somerset Council,80781043,LA7,Purchases for Resale,P16,Economic & Community Regeneration,UNEX DESIGNS LTD,05/07/2018,1638.66
Bath and North East Somerset Council,10877748,EA1,Training,P10,Finance & Efficiency,INSPIRED 2 LEARN,05/07/2018,1695.00
Bath and North East Somerset Council,80781046,LA7,Purchases for Resale,P16,Economic & Community Regeneration,WESTAIR REPRODUCTIONS LIMITED,05/07/2018,1754.96
Bath and North East Somerset Council,80780942,PG1,Rent Allowances,P10,Finance & Efficiency,PICTURE LIVING INVESTMENTS LP,05/07/2018,3196.22
Bath and North East Somerset Council,80780951,PG1,Rent Allowances,P10,Finance & Efficiency,PLACES FOR PEOPLE HOMES,05/07/2018,5282.84
Bath and North East Somerset Council,80781007,LM6,Nursing Care,P11,"Adult Care, Health & Wellbeing",PONDSMEAD (SHEPTON MALLET) LTD,05/07/2018,310.71
Bath and North East Somerset Council,80781007,LM6,Nursing Care,P11,"Adult Care, Health & Wellbeing",PONDSMEAD (SHEPTON MALLET) LTD,05/07/2018,2589.29
Bath and North East Somerset Council,80781007,LM6,Nursing Care,P11,"Adult Care, Health & Wellbeing",PONDSMEAD (SHEPTON MALLET) LTD,05/07/2018,4660.71
Bath and North East Somerset Council,80781008,LM8,Home Care,P11,"Adult Care, Health & Wellbeing",PRESTIGE NURSING LTD,05/07/2018,24.47
Bath and North East Somerset Council,80781008,LM8,Home Care,P11,"Adult Care, Health & Wellbeing",PRESTIGE NURSING LTD,05/07/2018,31.14
Bath and North East Somerset Council,80781008,LL3,Supported Living,P11,"Adult Care, Health & Wellbeing",PRESTIGE NURSING LTD,05/07/2018,58.79
Bath and North East Somerset Council,80781008,LL3,Supported Living,P11,"Adult Care, Health & Wellbeing",PRESTIGE NURSING LTD,05/07/2018,63.20
Bath and North East Somerset Council,80781008,LL3,Supported Living,P11,"Adult Care, Health & Wellbeing",PRESTIGE NURSING LTD,05/07/2018,96.35
Bath and North East Somerset Council,80781008,LL3,Supported Living,P11,"Adult Care, Health & Wellbeing",PRESTIGE NURSING LTD,05/07/2018,96.35
Bath and North East Somerset Council,80781008,LL3,Supported Living,P11,"Adult Care, Health & Wellbeing",PRESTIGE NURSING LTD,05/07/2018,100.35
Bath and North East Somerset Council,80781008,LL3,Supported Living,P11,"Adult Care, Health & Wellbeing",PRESTIGE NURSING LTD,05/07/2018,110.60
Bath and North East Somerset Council,80781008,LL3,Supported Living,P11,"Adult Care, Health & Wellbeing",PRESTIGE NURSING LTD,05/07/2018,110.60
Bath and North East Somerset Council,80781008,LL3,Supported Living,P11,"Adult Care, Health & Wellbeing",PRESTIGE NURSING LTD,05/07/2018,113.60
Bath and North East Somerset Council,80781008,LL3,Supported Living,P11,"Adult Care, Health & Wellbeing",PRESTIGE NURSING LTD,05/07/2018,114.60
Bath and North East Somerset Council,80781008,LL3,Supported Living,P11,"Adult Care, Health & Wellbeing",PRESTIGE NURSING LTD,05/07/2018,168.47
Bath and North East Somerset Council,80781008,LL3,Supported Living,P11,"Adult Care, Health & Wellbeing",PRESTIGE NURSING LTD,05/07/2018,182.70
Bath and North East Somerset Council,80781008,LL3,Supported Living,P11,"Adult Care, Health & Wellbeing",PRESTIGE NURSING LTD,05/07/2018,191.70
Bath and North East Somerset Council,80781008,LL3,Supported Living,P11,"Adult Care, Health & Wellbeing",PRESTIGE NURSING LTD,05/07/2018,201.60
Bath and North East Somerset Council,80781008,LL3,Supported Living,P11,"Adult Care, Health & Wellbeing",PRESTIGE NURSING LTD,05/07/2018,202.30
Bath and North East Somerset Council,80781008,LL3,Supported Living,P11,"Adult Care, Health & Wellbeing",PRESTIGE NURSING LTD,05/07/2018,202.50
Bath and North East Somerset Council,80781008,LL3,Supported Living,P11,"Adult Care, Health & Wellbeing",PRESTIGE NURSING LTD,05/07/2018,211.50
Bath and North East Somerset Council,80781008,LL3,Supported Living,P11,"Adult Care, Health & Wellbeing",PRESTIGE NURSING LTD,05/07/2018,214.30
Bath and North East Somerset Council,80781008,LL3,Supported Living,P11,"Adult Care, Health & Wellbeing",PRESTIGE NURSING LTD,05/07/2018,256.35
Bath and North East Somerset Council,80781008,LM8,Home Care,P11,"Adult Care, Health & Wellbeing",PRESTIGE NURSING LTD,05/07/2018,478.76
Bath and North East Somerset Council,80781008,LL3,Supported Living,P11,"Adult Care, Health & Wellbeing",PRESTIGE NURSING LTD,05/07/2018,681.03
Bath and North East Somerset Council,80781008,LL3,Supported Living,P11,"Adult Care, Health & Wellbeing",PRESTIGE NURSING LTD,05/07/2018,681.03
Bath and North East Somerset Council,80781008,LL3,Supported Living,P11,"Adult Care, Health & Wellbeing",PRESTIGE NURSING LTD,05/07/2018,681.03
Bath and North East Somerset Council,80781008,LM8,Home Care,P11,"Adult Care, Health & Wellbeing",PRESTIGE NURSING LTD,05/07/2018,681.03
Bath and North East Somerset Council,80781008,LM8,Home Care,P11,"Adult Care, Health & Wellbeing",PRESTIGE NURSING LTD,05/07/2018,681.03
Bath and North East Somerset Council,80781008,LL3,Supported Living,P11,"Adult Care, Health & Wellbeing",PRESTIGE NURSING LTD,05/07/2018,681.03
Bath and North East Somerset Council,10877691,3F7,PCB External Fees,P18,Transport & Environment,BRUNEL PROJECT MANAGEMENT LTD,05/07/2018,2000.00
Bath and North East Somerset Council,80781008,LM8,Home Care,P11,"Adult Care, Health & Wellbeing",PRESTIGE NURSING LTD,05/07/2018,802.26
Bath and North East Somerset Council,80781008,LM8,Home Care,P11,"Adult Care, Health & Wellbeing",PRESTIGE NURSING LTD,05/07/2018,969.26
Bath and North East Somerset Council,80781008,LL3,Supported Living,P11,"Adult Care, Health & Wellbeing",PRESTIGE NURSING LTD,05/07/2018,1023.34
Bath and North East Somerset Council,80781008,LL3,Supported Living,P11,"Adult Care, Health & Wellbeing",PRESTIGE NURSING LTD,05/07/2018,1383.70
Bath and North East Somerset Council,80781008,LL3,Supported Living,P11,"Adult Care, Health & Wellbeing",PRESTIGE NURSING LTD,05/07/2018,1383.70
Bath and North East Somerset Council,80781008,LL3,Supported Living,P11,"Adult Care, Health & Wellbeing",PRESTIGE NURSING LTD,05/07/2018,1383.70
Bath and North East Somerset Council,80781015,LA7,Purchases for Resale,P16,Economic & Community Regeneration,CRAWFORD HENDERSON LIMITED,05/07/2018,2050.00
Bath and North East Somerset Council,80781008,LL3,Supported Living,P11,"Adult Care, Health & Wellbeing",PRESTIGE NURSING LTD,05/07/2018,1394.80
Bath and North East Somerset Council,80781008,LL3,Supported Living,P11,"Adult Care, Health & Wellbeing",PRESTIGE NURSING LTD,05/07/2018,1397.94
Bath and North East Somerset Council,80781008,LL3,Supported Living,P11,"Adult Care, Health & Wellbeing",PRESTIGE NURSING LTD,05/07/2018,1398.71
Bath and North East Somerset Council,80781008,LL3,Supported Living,P11,"Adult Care, Health & Wellbeing",PRESTIGE NURSING LTD,05/07/2018,1566.30
Bath and North East Somerset Council,80781008,LL3,Supported Living,P11,"Adult Care, Health & Wellbeing",PRESTIGE NURSING LTD,05/07/2018,1887.54
Bath and North East Somerset Council,80781008,LM8,Home Care,P11,"Adult Care, Health & Wellbeing",PRESTIGE NURSING LTD,05/07/2018,2470.72
Bath and North East Somerset Council,80781008,LM8,Home Care,P11,"Adult Care, Health & Wellbeing",PRESTIGE NURSING LTD,05/07/2018,2505.64
Bath and North East Somerset Council,80781008,LM8,Home Care,P11,"Adult Care, Health & Wellbeing",PRESTIGE NURSING LTD,05/07/2018,2510.52
Bath and North East Somerset Council,80781008,LM8,Home Care,P11,"Adult Care, Health & Wellbeing",PRESTIGE NURSING LTD,05/07/2018,2510.52
Bath and North East Somerset Council,80781008,LM8,Home Care,P11,"Adult Care, Health & Wellbeing",PRESTIGE NURSING LTD,05/07/2018,2569.17
Bath and North East Somerset Council,80781008,LM8,Home Care,P11,"Adult Care, Health & Wellbeing",PRESTIGE NURSING LTD,05/07/2018,2569.17
Bath and North East Somerset Council,80781008,LM8,Home Care,P11,"Adult Care, Health & Wellbeing",PRESTIGE NURSING LTD,05/07/2018,2734.15
Bath and North East Somerset Council,80781008,LM8,Home Care,P11,"Adult Care, Health & Wellbeing",PRESTIGE NURSING LTD,05/07/2018,2836.23
Bath and North East Somerset Council,80781008,LM8,Home Care,P11,"Adult Care, Health & Wellbeing",PRESTIGE NURSING LTD,05/07/2018,2906.37
Bath and North East Somerset Council,80781008,LM8,Home Care,P11,"Adult Care, Health & Wellbeing",PRESTIGE NURSING LTD,05/07/2018,2906.38
Bath and North East Somerset Council,80781008,LM8,Home Care,P11,"Adult Care, Health & Wellbeing",PRESTIGE NURSING LTD,05/07/2018,2982.39
Bath and North East Somerset Council,80781008,LM8,Home Care,P11,"Adult Care, Health & Wellbeing",PRESTIGE NURSING LTD,05/07/2018,3025.07
Bath and North East Somerset Council,80781008,LM8,Home Care,P11,"Adult Care, Health & Wellbeing",PRESTIGE NURSING LTD,05/07/2018,3055.47
Bath and North East Somerset Council,80781008,LM8,Home Care,P11,"Adult Care, Health & Wellbeing",PRESTIGE NURSING LTD,05/07/2018,3055.47
Bath and North East Somerset Council,80781008,LM8,Home Care,P11,"Adult Care, Health & Wellbeing",PRESTIGE NURSING LTD,05/07/2018,3062.63
Bath and North East Somerset Council,80781008,LM8,Home Care,P11,"Adult Care, Health & Wellbeing",PRESTIGE NURSING LTD,05/07/2018,3135.71
Bath and North East Somerset Council,80781008,LM8,Home Care,P11,"Adult Care, Health & Wellbeing",PRESTIGE NURSING LTD,05/07/2018,3171.23
Bath and North East Somerset Council,80781008,LM8,Home Care,P11,"Adult Care, Health & Wellbeing",PRESTIGE NURSING LTD,05/07/2018,4685.50
Bath and North East Somerset Council,80780974,PG1,Rent Allowances,P10,Finance & Efficiency,RIVERSIDE - E.C.H.G.,05/07/2018,2265.84
Bath and North East Somerset Council,80781039,LA7,Purchases for Resale,P16,Economic & Community Regeneration,MILLA MADDERN,05/07/2018,2342.75
Bath and North East Somerset Council,80780955,PG1,Rent Allowances,P10,Finance & Efficiency,S.W.A.L.L.O.W.,05/07/2018,7898.00
Bath and North East Somerset Council,80780985,LM8,Home Care,P11,"Adult Care, Health & Wellbeing",SAFE & SOUND HOMECARE SERVICES,05/07/2018,101.00
Bath and North East Somerset Council,80780985,LM8,Home Care,P11,"Adult Care, Health & Wellbeing",SAFE & SOUND HOMECARE SERVICES,05/07/2018,151.50
Bath and North East Somerset Council,80780985,LM8,Home Care,P11,"Adult Care, Health & Wellbeing",SAFE & SOUND HOMECARE SERVICES,05/07/2018,212.10
Bath and North East Somerset Council,80780985,LM8,Home Care,P11,"Adult Care, Health & Wellbeing",SAFE & SOUND HOMECARE SERVICES,05/07/2018,222.20
Bath and North East Somerset Council,80780985,LM8,Home Care,P11,"Adult Care, Health & Wellbeing",SAFE & SOUND HOMECARE SERVICES,05/07/2018,248.46
Bath and North East Somerset Council,80780985,LM8,Home Care,P11,"Adult Care, Health & Wellbeing",SAFE & SOUND HOMECARE SERVICES,05/07/2018,313.10
Bath and North East Somerset Council,80780985,LM8,Home Care,P11,"Adult Care, Health & Wellbeing",SAFE & SOUND HOMECARE SERVICES,05/07/2018,318.24
Bath and North East Somerset Council,80780985,LM8,Home Care,P11,"Adult Care, Health & Wellbeing",SAFE & SOUND HOMECARE SERVICES,05/07/2018,333.30
Bath and North East Somerset Council,80780985,LM8,Home Care,P11,"Adult Care, Health & Wellbeing",SAFE & SOUND HOMECARE SERVICES,05/07/2018,333.30
Bath and North East Somerset Council,80780985,LM8,Home Care,P11,"Adult Care, Health & Wellbeing",SAFE & SOUND HOMECARE SERVICES,05/07/2018,353.58
Bath and North East Somerset Council,80780985,LM8,Home Care,P11,"Adult Care, Health & Wellbeing",SAFE & SOUND HOMECARE SERVICES,05/07/2018,373.70
Bath and North East Somerset Council,80780985,LM8,Home Care,P11,"Adult Care, Health & Wellbeing",SAFE & SOUND HOMECARE SERVICES,05/07/2018,373.70
Bath and North East Somerset Council,80780985,LM8,Home Care,P11,"Adult Care, Health & Wellbeing",SAFE & SOUND HOMECARE SERVICES,05/07/2018,424.20
Bath and North East Somerset Council,80780985,LM8,Home Care,P11,"Adult Care, Health & Wellbeing",SAFE & SOUND HOMECARE SERVICES,05/07/2018,454.50
Bath and North East Somerset Council,80780985,LM8,Home Care,P11,"Adult Care, Health & Wellbeing",SAFE & SOUND HOMECARE SERVICES,05/07/2018,501.30
Bath and North East Somerset Council,80780985,LM8,Home Care,P11,"Adult Care, Health & Wellbeing",SAFE & SOUND HOMECARE SERVICES,05/07/2018,515.10
Bath and North East Somerset Council,80780985,LM8,Home Care,P11,"Adult Care, Health & Wellbeing",SAFE & SOUND HOMECARE SERVICES,05/07/2018,618.80
Bath and North East Somerset Council,80780985,LM8,Home Care,P11,"Adult Care, Health & Wellbeing",SAFE & SOUND HOMECARE SERVICES,05/07/2018,699.98
Bath and North East Somerset Council,80780985,LM8,Home Care,P11,"Adult Care, Health & Wellbeing",SAFE & SOUND HOMECARE SERVICES,05/07/2018,747.40
Bath and North East Somerset Council,80780985,LM8,Home Care,P11,"Adult Care, Health & Wellbeing",SAFE & SOUND HOMECARE SERVICES,05/07/2018,898.90
Bath and North East Somerset Council,80780985,LM8,Home Care,P11,"Adult Care, Health & Wellbeing",SAFE & SOUND HOMECARE SERVICES,05/07/2018,1129.18
Bath and North East Somerset Council,80780985,LM8,Home Care,P11,"Adult Care, Health & Wellbeing",SAFE & SOUND HOMECARE SERVICES,05/07/2018,1149.01
Bath and North East Somerset Council,80780985,LM8,Home Care,P11,"Adult Care, Health & Wellbeing",SAFE & SOUND HOMECARE SERVICES,05/07/2018,1197.86
Bath and North East Somerset Council,80780985,LM8,Home Care,P11,"Adult Care, Health & Wellbeing",SAFE & SOUND HOMECARE SERVICES,05/07/2018,1209.98
Bath and North East Somerset Council,80780985,LM8,Home Care,P11,"Adult Care, Health & Wellbeing",SAFE & SOUND HOMECARE SERVICES,05/07/2018,1343.30
Bath and North East Somerset Council,80780985,LM8,Home Care,P11,"Adult Care, Health & Wellbeing",SAFE & SOUND HOMECARE SERVICES,05/07/2018,1499.85
Bath and North East Somerset Council,80780985,LM8,Home Care,P11,"Adult Care, Health & Wellbeing",SAFE & SOUND HOMECARE SERVICES,05/07/2018,1644.28
Bath and North East Somerset Council,80780985,LM8,Home Care,P11,"Adult Care, Health & Wellbeing",SAFE & SOUND HOMECARE SERVICES,05/07/2018,1775.26
Bath and North East Somerset Council,80780985,LM8,Home Care,P11,"Adult Care, Health & Wellbeing",SAFE & SOUND HOMECARE SERVICES,05/07/2018,1952.06
Bath and North East Somerset Council,80780985,LM8,Home Care,P11,"Adult Care, Health & Wellbeing",SAFE & SOUND HOMECARE SERVICES,05/07/2018,2202.26
Bath and North East Somerset Council,80780985,LM8,Home Care,P11,"Adult Care, Health & Wellbeing",SAFE & SOUND HOMECARE SERVICES,05/07/2018,2530.24
Bath and North East Somerset Council,80780985,LM8,Home Care,P11,"Adult Care, Health & Wellbeing",SAFE & SOUND HOMECARE SERVICES,05/07/2018,2565.60
Bath and North East Somerset Council,80780985,LM8,Home Care,P11,"Adult Care, Health & Wellbeing",SAFE & SOUND HOMECARE SERVICES,05/07/2018,4228.60
Bath and North East Somerset Council,80780985,LM8,Home Care,P11,"Adult Care, Health & Wellbeing",SAFE & SOUND HOMECARE SERVICES,05/07/2018,4228.60
Bath and North East Somerset Council,80780985,LM8,Home Care,P11,"Adult Care, Health & Wellbeing",SAFE & SOUND HOMECARE SERVICES,05/07/2018,4228.63
Bath and North East Somerset Council,80780985,LM8,Home Care,P11,"Adult Care, Health & Wellbeing",SAFE & SOUND HOMECARE SERVICES,05/07/2018,7400.00
Bath and North East Somerset Council,10877688,HA1,Responsive Maintenance,P10,Finance & Efficiency,MECHANICAL ENGINEERING SERVICE,05/07/2018,2652.27
Bath and North East Somerset Council,80781047,LA7,Purchases for Resale,P16,Economic & Community Regeneration,YARTO EUROPE LTD,05/07/2018,2721.60
Bath and North East Somerset Council,80780943,PG1,Rent Allowances,P10,Finance & Efficiency,SANCTUARY HOUSING SERVICES LIMIT,05/07/2018,11180.20
Bath and North East Somerset Council,80780941,PG1,Rent Allowances,P10,Finance & Efficiency,SOLON (SOUTH WEST) HOUSING ASSOC,05/07/2018,7930.55
Bath and North East Somerset Council,80780972,PG1,Rent Allowances,P10,Finance & Efficiency,SOLON HOUSING ASSOCIATION,05/07/2018,861.64
Bath and North East Somerset Council,80780854,PG1,Rent Allowances,P10,Finance & Efficiency,SOMER COMMUNITY HOUSING TRUST,05/07/2018,3780.56
Bath and North East Somerset Council,80780999,LM8,Home Care,P11,"Adult Care, Health & Wellbeing",SOMERSET CARE AT HOME LTD,05/07/2018,750.00
Bath and North East Somerset Council,80780957,PG1,Rent Allowances,P10,Finance & Efficiency,SOVEREIGN HOUSING ASSOCIATION,05/07/2018,34604.31
Bath and North East Somerset Council,80780856,PG1,Rent Allowances,P10,Finance & Efficiency,ST MUNGOS,05/07/2018,13399.84
Bath and North East Somerset Council,80780998,LM6,Nursing Care,P11,"Adult Care, Health & Wellbeing",NEWCROSS HEALTHCARE SOLUTIONS LTD,05/07/2018,3282.72
Bath and North East Somerset Council,10877663,LM2,Foster Carer Allowances,P12,Children & Young People,CAPSTONE FOSTER CARE (SOUTH WEST)  LTD,05/07/2018,3337.55
Bath and North East Somerset Council,10877665,LM2,Foster Carer Allowances,P12,Children & Young People,CAPSTONE FOSTER CARE (SOUTH WEST)  LTD,05/07/2018,3337.55
Bath and North East Somerset Council,10877673,LM2,Foster Carer Allowances,P12,Children & Young People,CAPSTONE FOSTER CARE (SOUTH WEST)  LTD,05/07/2018,3337.55
Bath and North East Somerset Council,10877684,LM2,Foster Carer Allowances,P12,Children & Young People,CAPSTONE FOSTER CARE (SOUTH WEST)  LTD,05/07/2018,3337.55
Bath and North East Somerset Council,10877667,LM2,Foster Carer Allowances,P12,Children & Young People,CAPSTONE FOSTER CARE (SOUTH WEST)  LTD,05/07/2018,3389.89
Bath and North East Somerset Council,10877668,LM2,Foster Carer Allowances,P12,Children & Young People,CAPSTONE FOSTER CARE (SOUTH WEST)  LTD,05/07/2018,3389.89
Bath and North East Somerset Council,10877739,LN9,IT Security,P10,Finance & Efficiency,VODAFONE LTD FORMERLY CABLE & WIRELESS,05/07/2018,3457.44
Bath and North East Somerset Council,10877662,LM2,Foster Carer Allowances,P12,Children & Young People,CAPSTONE FOSTER CARE (SOUTH WEST)  LTD,05/07/2018,3459.07
Bath and North East Somerset Council,10877664,LM2,Foster Carer Allowances,P12,Children & Young People,CAPSTONE FOSTER CARE (SOUTH WEST)  LTD,05/07/2018,3459.07
Bath and North East Somerset Council,10877669,LM2,Foster Carer Allowances,P12,Children & Young People,CAPSTONE FOSTER CARE (SOUTH WEST)  LTD,05/07/2018,3459.07
Bath and North East Somerset Council,10877661,LM2,Foster Carer Allowances,P12,Children & Young People,CAPSTONE FOSTER CARE (SOUTH WEST)  LTD,05/07/2018,3494.36
Bath and North East Somerset Council,10877658,LM2,Foster Carer Allowances,P12,Children & Young People,CAPSTONE FOSTER CARE (SOUTH WEST)  LTD,05/07/2018,3534.00
Bath and North East Somerset Council,10877659,LM2,Foster Carer Allowances,P12,Children & Young People,CAPSTONE FOSTER CARE (SOUTH WEST)  LTD,05/07/2018,3534.00
Bath and North East Somerset Council,80780945,PG1,Rent Allowances,P10,Finance & Efficiency,STONHAM HOUSING ASSOCIATION,05/07/2018,18951.85
Bath and North East Somerset Council,10877660,LM2,Foster Carer Allowances,P12,Children & Young People,CAPSTONE FOSTER CARE (SOUTH WEST)  LTD,05/07/2018,3671.33
Bath and North East Somerset Council,80780834,PG1,Rent Allowances,P10,Finance & Efficiency,SUPPORTED INDEPENDENCE LTD,05/07/2018,2208.88
Bath and North East Somerset Council,10877697,EA1,Training,P18,Transport & Environment,ALPHA PARKING LTD,05/07/2018,4350.00
Bath and North East Somerset Council,10877666,LM2,Foster Carer Allowances,P12,Children & Young People,CAPSTONE FOSTER CARE (SOUTH WEST)  LTD,05/07/2018,4791.67
Bath and North East Somerset Council,10877732,LM2,Foster Carer Allowances,P12,Children & Young People,ENHANCED FOSTER CARE LTD,05/07/2018,4830.00
Bath and North East Somerset Council,10877683,HA3,Planned Maintenance,P10,Finance & Efficiency,N K S CONTRACTS LTD,05/07/2018,5084.41
Bath and North East Somerset Council,80780952,PG1,Rent Allowances,P10,Finance & Efficiency,REDACTED,05/07/2018,1551.06
Bath and North East Somerset Council,80780940,PG1,Rent Allowances,P10,Finance & Efficiency,THE GUINNESS PARTNERSHIP,05/07/2018,33247.08
Bath and North East Somerset Council,80780939,PG1,Rent Allowances,P10,Finance & Efficiency,THE GUINNESS PARTNERSHIP,05/07/2018,41278.64
Bath and North East Somerset Council,80780855,PG1,Rent Allowances,P10,Finance & Efficiency,THE ROMANS GROUP,05/07/2018,1329.24
Bath and North East Somerset Council,10877671,HK1,Highway Maintenance,P18,Transport & Environment,M JENNINGS,05/07/2018,7416.97
Bath and North East Somerset Council,80780971,PG1,Rent Allowances,P10,Finance & Efficiency,TRUSTEES OF REDACTED,05/07/2018,989.44
Bath and North East Somerset Council,80780944,PG1,Rent Allowances,P10,Finance & Efficiency,UNITED HOUSING ASSOCIATION,05/07/2018,1230.23
Bath and North East Somerset Council,80780993,LL3,Supported Living,P11,"Adult Care, Health & Wellbeing",UNITED RESPONSE,05/07/2018,524.08
Bath and North East Somerset Council,80780993,LM8,Home Care,P11,"Adult Care, Health & Wellbeing",UNITED RESPONSE,05/07/2018,534.48
Bath and North East Somerset Council,80780993,LM8,Home Care,P11,"Adult Care, Health & Wellbeing",UNITED RESPONSE,05/07/2018,1124.72
Bath and North East Somerset Council,80780993,LL3,Supported Living,P11,"Adult Care, Health & Wellbeing",UNITED RESPONSE,05/07/2018,1934.24
Bath and North East Somerset Council,80780871,PG1,Rent Allowances,P10,Finance & Efficiency,VALLEY PROPERTY MANAGERS,05/07/2018,559.24
Bath and North East Somerset Council,10877724,LM1,Volunt Homes Placements Top/Up,P12,Children & Young People,MALVERN ACHIEVEMENT SERVICES LIMITED,05/07/2018,10211.42
Bath and North East Somerset Council,10877713,3F7,PCB External Fees,P10,Finance & Efficiency,PREMIERE HEALTHCARE LTD,05/07/2018,13153.92
Bath and North East Somerset Council,80780996,LM8,Home Care,P11,"Adult Care, Health & Wellbeing",WAY AHEAD COMMUNITY SERVICES LTD,05/07/2018,239.60
Bath and North East Somerset Council,80780996,LM8,Home Care,P11,"Adult Care, Health & Wellbeing",WAY AHEAD COMMUNITY SERVICES LTD,05/07/2018,685.70
Bath and North East Somerset Council,10877738,3E5,PCB IT Hardware,P10,Finance & Efficiency,DIGI2AL LTD,05/07/2018,15000.00
Bath and North East Somerset Council,80780996,LM8,Home Care,P11,"Adult Care, Health & Wellbeing",WAY AHEAD COMMUNITY SERVICES LTD,05/07/2018,1919.96
Bath and North East Somerset Council,10877737,LM1,Volunt Homes Placements Top/Up,P12,Children & Young People,MALVERN ACHIEVEMENT SERVICES LIMITED,05/07/2018,16371.41
Bath and North East Somerset Council,10877703,LJ4,Contracts,P12,Children & Young People,XENZONE LIMITED,05/07/2018,16675.00
Bath and North East Somerset Council,10877708,LM2,Foster Carer Allowances,P12,Children & Young People,PARK BLUE HOMES LTD,05/07/2018,17275.00
Bath and North East Somerset Council,10877725,LK1,Fees,P15,Development & Neighbourhoods,BATH RECREATION LIMITED,05/07/2018,25000.00
Bath and North East Somerset Council,10877734,3C4,Building Works,P16,Economic & Community Regeneration,ADVANCE HOUSING & SUPPORT LTD,05/07/2018,33892.20
Bath and North East Somerset Council,80780950,PG1,Rent Allowances,P10,Finance & Efficiency,WHITE HORSE HOUSING ASSOCIATION,05/07/2018,627.76
Bath and North East Somerset Council,80780931,PG1,Rent Allowances,P10,Finance & Efficiency,Y.M.C.A.,05/07/2018,5896.03
Bath and North East Somerset Council,80781530,LL8,Individualised Budget,P11,"Adult Care, Health & Wellbeing",REDACTED,09/07/2018,6421.98
Bath and North East Somerset Council,80781257,LM6,Nursing Care,P11,"Adult Care, Health & Wellbeing",ACCOMPLISH GROUP SUPPORT LIMITED,09/07/2018,7490.00
Bath and North East Somerset Council,10877744,LN4,Mobile Phones,P10,Finance & Efficiency,EE LIMITED,09/07/2018,4.95
Bath and North East Somerset Council,80781469,LL8,Individualised Budget,P11,"Adult Care, Health & Wellbeing",REDACTED,09/07/2018,2969.00
Bath and North East Somerset Council,80781691,LM3,Residential Care,P11,"Adult Care, Health & Wellbeing",ALEXANDRA HOMES (BRISTOL) LTD,09/07/2018,3674.00
Bath and North East Somerset Council,80781333,LL8,Individualised Budget,P11,"Adult Care, Health & Wellbeing",REDACTED,09/07/2018,2060.84
Bath and North East Somerset Council,80781576,LL8,Individualised Budget,P11,"Adult Care, Health & Wellbeing",REDACTED,09/07/2018,703.50
Bath and North East Somerset Council,80781432,LL8,Individualised Budget,P11,"Adult Care, Health & Wellbeing",REDACTED,09/07/2018,980.58
Bath and North East Somerset Council,80781814,LL3,Supported Living,P11,"Adult Care, Health & Wellbeing",ARCH CARE SERVICES,09/07/2018,73.44
Bath and North East Somerset Council,80781814,LL3,Supported Living,P11,"Adult Care, Health & Wellbeing",ARCH CARE SERVICES,09/07/2018,73.44
Bath and North East Somerset Council,80781814,LL3,Supported Living,P11,"Adult Care, Health & Wellbeing",ARCH CARE SERVICES,09/07/2018,73.44
Bath and North East Somerset Council,80781814,LM8,Home Care,P11,"Adult Care, Health & Wellbeing",ARCH CARE SERVICES,09/07/2018,146.90
Bath and North East Somerset Council,80781814,LM8,Home Care,P11,"Adult Care, Health & Wellbeing",ARCH CARE SERVICES,09/07/2018,181.80
Bath and North East Somerset Council,80781816,LL3,Supported Living,P11,"Adult Care, Health & Wellbeing",ST MUNGO'S COMMUNITY HOUSING ASSOCIATION LTD,09/07/2018,63.36
Bath and North East Somerset Council,80781814,LM8,Home Care,P11,"Adult Care, Health & Wellbeing",ARCH CARE SERVICES,09/07/2018,183.62
Bath and North East Somerset Council,10877965,LJ1,Consultants Fees,P15,Development & Neighbourhoods,PLACE STUDIO LTD,09/07/2018,67.06
Bath and North East Somerset Council,80781814,LM8,Home Care,P11,"Adult Care, Health & Wellbeing",ARCH CARE SERVICES,09/07/2018,183.62
Bath and North East Somerset Council,80781814,LL3,Supported Living,P11,"Adult Care, Health & Wellbeing",ARCH CARE SERVICES,09/07/2018,220.32
Bath and North East Somerset Council,80781814,LM8,Home Care,P11,"Adult Care, Health & Wellbeing",ARCH CARE SERVICES,09/07/2018,275.42
Bath and North East Somerset Council,80781814,LL3,Supported Living,P11,"Adult Care, Health & Wellbeing",ARCH CARE SERVICES,09/07/2018,293.76
Bath and North East Somerset Council,80781814,LL3,Supported Living,P11,"Adult Care, Health & Wellbeing",ARCH CARE SERVICES,09/07/2018,367.20
Bath and North East Somerset Council,80781814,LM8,Home Care,P11,"Adult Care, Health & Wellbeing",ARCH CARE SERVICES,09/07/2018,367.24
Bath and North East Somerset Council,80781814,LM8,Home Care,P11,"Adult Care, Health & Wellbeing",ARCH CARE SERVICES,09/07/2018,515.16
Bath and North East Somerset Council,80781814,LL3,Supported Living,P11,"Adult Care, Health & Wellbeing",ARCH CARE SERVICES,09/07/2018,690.00
Bath and North East Somerset Council,80781814,LL3,Supported Living,P11,"Adult Care, Health & Wellbeing",ARCH CARE SERVICES,09/07/2018,813.06
Bath and North East Somerset Council,80781814,LL3,Supported Living,P11,"Adult Care, Health & Wellbeing",ARCH CARE SERVICES,09/07/2018,829.50
Bath and North East Somerset Council,80781814,LL3,Supported Living,P11,"Adult Care, Health & Wellbeing",ARCH CARE SERVICES,09/07/2018,829.50
Bath and North East Somerset Council,80781821,LM6,Nursing Care,P11,"Adult Care, Health & Wellbeing",ST MONICAS GENERAL ACCOUNT,09/07/2018,80.95
Bath and North East Somerset Council,80781814,LM8,Home Care,P11,"Adult Care, Health & Wellbeing",ARCH CARE SERVICES,09/07/2018,877.28
Bath and North East Somerset Council,80781814,LM8,Home Care,P11,"Adult Care, Health & Wellbeing",ARCH CARE SERVICES,09/07/2018,877.28
Bath and North East Somerset Council,10877966,LF6,Subscriptions,P10,Finance & Efficiency,PRENAX LTD,09/07/2018,85.40
Bath and North East Somerset Council,80781814,LL3,Supported Living,P11,"Adult Care, Health & Wellbeing",ARCH CARE SERVICES,09/07/2018,1016.12
Bath and North East Somerset Council,80781814,LL3,Supported Living,P11,"Adult Care, Health & Wellbeing",ARCH CARE SERVICES,09/07/2018,1016.12
Bath and North East Somerset Council,80781814,LL3,Supported Living,P11,"Adult Care, Health & Wellbeing",ARCH CARE SERVICES,09/07/2018,1026.50
Bath and North East Somerset Council,80781798,LM3,Residential Care,P11,"Adult Care, Health & Wellbeing",ARTI CARE HOMES (SOUTHWEST) LTD,09/07/2018,558.53
Bath and North East Somerset Council,80781798,LM3,Residential Care,P11,"Adult Care, Health & Wellbeing",ARTI CARE HOMES (SOUTHWEST) LTD,09/07/2018,1117.06
Bath and North East Somerset Council,80781798,LM3,Residential Care,P11,"Adult Care, Health & Wellbeing",ARTI CARE HOMES (SOUTHWEST) LTD,09/07/2018,1146.66
Bath and North East Somerset Council,80781798,LM6,Nursing Care,P11,"Adult Care, Health & Wellbeing",ARTI CARE HOMES (SOUTHWEST) LTD,09/07/2018,1148.66
Bath and North East Somerset Council,80781798,LM3,Residential Care,P11,"Adult Care, Health & Wellbeing",ARTI CARE HOMES (SOUTHWEST) LTD,09/07/2018,1157.06
Bath and North East Somerset Council,80781798,LM3,Residential Care,P11,"Adult Care, Health & Wellbeing",ARTI CARE HOMES (SOUTHWEST) LTD,09/07/2018,1157.46
Bath and North East Somerset Council,80781798,LM3,Residential Care,P11,"Adult Care, Health & Wellbeing",ARTI CARE HOMES (SOUTHWEST) LTD,09/07/2018,1157.46
Bath and North East Somerset Council,80781798,LM3,Residential Care,P11,"Adult Care, Health & Wellbeing",ARTI CARE HOMES (SOUTHWEST) LTD,09/07/2018,1157.46
Bath and North East Somerset Council,80781798,LM3,Residential Care,P11,"Adult Care, Health & Wellbeing",ARTI CARE HOMES (SOUTHWEST) LTD,09/07/2018,1200.00
Bath and North East Somerset Council,80781798,LM3,Residential Care,P11,"Adult Care, Health & Wellbeing",ARTI CARE HOMES (SOUTHWEST) LTD,09/07/2018,1200.00
Bath and North East Somerset Council,80781798,LM3,Residential Care,P11,"Adult Care, Health & Wellbeing",ARTI CARE HOMES (SOUTHWEST) LTD,09/07/2018,1250.00
Bath and North East Somerset Council,80781798,LM3,Residential Care,P11,"Adult Care, Health & Wellbeing",ARTI CARE HOMES (SOUTHWEST) LTD,09/07/2018,1310.00
Bath and North East Somerset Council,80781798,LM3,Residential Care,P11,"Adult Care, Health & Wellbeing",ARTI CARE HOMES (SOUTHWEST) LTD,09/07/2018,1411.06
Bath and North East Somerset Council,80781784,LM3,Residential Care,P11,"Adult Care, Health & Wellbeing",ARTI SERVICES LTD T/A THE MANOR FARM HOUSE,09/07/2018,1106.00
Bath and North East Somerset Council,80781784,LM3,Residential Care,P11,"Adult Care, Health & Wellbeing",ARTI SERVICES LTD T/A THE MANOR FARM HOUSE,09/07/2018,1106.00
Bath and North East Somerset Council,80781784,LM3,Residential Care,P11,"Adult Care, Health & Wellbeing",ARTI SERVICES LTD T/A THE MANOR FARM HOUSE,09/07/2018,1106.00
Bath and North East Somerset Council,80781816,LL3,Supported Living,P11,"Adult Care, Health & Wellbeing",ST MUNGO'S COMMUNITY HOUSING ASSOCIATION LTD,09/07/2018,126.72
Bath and North East Somerset Council,80781784,LM3,Residential Care,P11,"Adult Care, Health & Wellbeing",ARTI SERVICES LTD T/A THE MANOR FARM HOUSE,09/07/2018,1138.00
Bath and North East Somerset Council,80781784,LM3,Residential Care,P11,"Adult Care, Health & Wellbeing",ARTI SERVICES LTD T/A THE MANOR FARM HOUSE,09/07/2018,1146.00
Bath and North East Somerset Council,80781784,LM3,Residential Care,P11,"Adult Care, Health & Wellbeing",ARTI SERVICES LTD T/A THE MANOR FARM HOUSE,09/07/2018,1146.00
Bath and North East Somerset Council,80781784,LM3,Residential Care,P11,"Adult Care, Health & Wellbeing",ARTI SERVICES LTD T/A THE MANOR FARM HOUSE,09/07/2018,1146.00
Bath and North East Somerset Council,80781784,LM3,Residential Care,P11,"Adult Care, Health & Wellbeing",ARTI SERVICES LTD T/A THE MANOR FARM HOUSE,09/07/2018,1206.00
Bath and North East Somerset Council,80781784,LM3,Residential Care,P11,"Adult Care, Health & Wellbeing",ARTI SERVICES LTD T/A THE MANOR FARM HOUSE,09/07/2018,1288.86
Bath and North East Somerset Council,80781207,LK4,Nursery/Childcare Vouchers,P12,Children & Young People,ATELIER NURSERY LTD,09/07/2018,1820.00
Bath and North East Somerset Council,80781676,LM3,Residential Care,P11,"Adult Care, Health & Wellbeing",AUTISM SPECIALISED CARE HOMES LTD,09/07/2018,2718.66
Bath and North East Somerset Council,80781756,LM3,Residential Care,P11,"Adult Care, Health & Wellbeing",AVERY HOMES DOWNEND LTD,09/07/2018,2500.00
Bath and North East Somerset Council,80781635,LM6,Nursing Care,P11,"Adult Care, Health & Wellbeing",BARCHESTER HEALTH CARE,09/07/2018,316.32
Bath and North East Somerset Council,80781635,LM6,Nursing Care,P11,"Adult Care, Health & Wellbeing",BARCHESTER HEALTH CARE,09/07/2018,316.32
Bath and North East Somerset Council,80781635,LM6,Nursing Care,P11,"Adult Care, Health & Wellbeing",BARCHESTER HEALTH CARE,09/07/2018,316.32
Bath and North East Somerset Council,80781635,LM6,Nursing Care,P11,"Adult Care, Health & Wellbeing",BARCHESTER HEALTH CARE,09/07/2018,316.32
Bath and North East Somerset Council,80781635,LM6,Nursing Care,P11,"Adult Care, Health & Wellbeing",BARCHESTER HEALTH CARE,09/07/2018,316.32
Bath and North East Somerset Council,80781635,LM6,Nursing Care,P11,"Adult Care, Health & Wellbeing",BARCHESTER HEALTH CARE,09/07/2018,316.32
Bath and North East Somerset Council,80781635,LM6,Nursing Care,P11,"Adult Care, Health & Wellbeing",BARCHESTER HEALTH CARE,09/07/2018,316.32
Bath and North East Somerset Council,80781635,LM6,Nursing Care,P11,"Adult Care, Health & Wellbeing",BARCHESTER HEALTH CARE,09/07/2018,316.32
Bath and North East Somerset Council,80781635,LM6,Nursing Care,P11,"Adult Care, Health & Wellbeing",BARCHESTER HEALTH CARE,09/07/2018,316.32
Bath and North East Somerset Council,80781635,LM6,Nursing Care,P11,"Adult Care, Health & Wellbeing",BARCHESTER HEALTH CARE,09/07/2018,316.32
Bath and North East Somerset Council,80781635,LM6,Nursing Care,P11,"Adult Care, Health & Wellbeing",BARCHESTER HEALTH CARE,09/07/2018,316.32
Bath and North East Somerset Council,80781635,LM6,Nursing Care,P11,"Adult Care, Health & Wellbeing",BARCHESTER HEALTH CARE,09/07/2018,316.32
Bath and North East Somerset Council,80781635,LM6,Nursing Care,P11,"Adult Care, Health & Wellbeing",BARCHESTER HEALTH CARE,09/07/2018,316.32
Bath and North East Somerset Council,80781635,LM6,Nursing Care,P11,"Adult Care, Health & Wellbeing",BARCHESTER HEALTH CARE,09/07/2018,316.32
Bath and North East Somerset Council,80781635,LM6,Nursing Care,P11,"Adult Care, Health & Wellbeing",BARCHESTER HEALTH CARE,09/07/2018,316.32
Bath and North East Somerset Council,80781796,LM6,Nursing Care,P11,"Adult Care, Health & Wellbeing",BARCHESTER HEALTH CARE,09/07/2018,1256.00
Bath and North East Somerset Council,80781796,LM6,Nursing Care,P11,"Adult Care, Health & Wellbeing",BARCHESTER HEALTH CARE,09/07/2018,1478.40
Bath and North East Somerset Council,80781796,LM6,Nursing Care,P11,"Adult Care, Health & Wellbeing",BARCHESTER HEALTH CARE,09/07/2018,1478.40
Bath and North East Somerset Council,80781796,LM6,Nursing Care,P11,"Adult Care, Health & Wellbeing",BARCHESTER HEALTH CARE,09/07/2018,1489.90
Bath and North East Somerset Council,80781796,LM6,Nursing Care,P11,"Adult Care, Health & Wellbeing",BARCHESTER HEALTH CARE,09/07/2018,1589.90
Bath and North East Somerset Council,80781796,LM6,Nursing Care,P11,"Adult Care, Health & Wellbeing",BARCHESTER HEALTH CARE,09/07/2018,1628.40
Bath and North East Somerset Council,80781796,LM6,Nursing Care,P11,"Adult Care, Health & Wellbeing",BARCHESTER HEALTH CARE,09/07/2018,1628.40
Bath and North East Somerset Council,80781796,LM3,Residential Care,P11,"Adult Care, Health & Wellbeing",BARCHESTER HEALTH CARE,09/07/2018,1700.00
Bath and North East Somerset Council,80781272,LM6,Nursing Care,P11,"Adult Care, Health & Wellbeing",BARCHESTER HEALTH CARE,09/07/2018,1986.00
Bath and North East Somerset Council,80781796,LM3,Residential Care,P11,"Adult Care, Health & Wellbeing",BARCHESTER HEALTH CARE,09/07/2018,2300.00
Bath and North East Somerset Council,80781796,LM6,Nursing Care,P11,"Adult Care, Health & Wellbeing",BARCHESTER HEALTH CARE,09/07/2018,2301.02
Bath and North East Somerset Council,80781796,LM6,Nursing Care,P11,"Adult Care, Health & Wellbeing",BARCHESTER HEALTH CARE,09/07/2018,2378.40
Bath and North East Somerset Council,80781635,LM6,Nursing Care,P11,"Adult Care, Health & Wellbeing",BARCHESTER HEALTH CARE,09/07/2018,2970.89
Bath and North East Somerset Council,80781272,LM6,Nursing Care,P11,"Adult Care, Health & Wellbeing",BARCHESTER HEALTH CARE,09/07/2018,3574.29
Bath and North East Somerset Council,80781256,LM6,Nursing Care,P11,"Adult Care, Health & Wellbeing",BARCHESTER HEALTHCARE,09/07/2018,1800.00
Bath and North East Somerset Council,80781623,LM6,Nursing Care,P11,"Adult Care, Health & Wellbeing",BARCHESTER HEALTHCARE HOMES LTD,09/07/2018,316.32
Bath and North East Somerset Council,80781623,LM6,Nursing Care,P11,"Adult Care, Health & Wellbeing",BARCHESTER HEALTHCARE HOMES LTD,09/07/2018,316.32
Bath and North East Somerset Council,80781623,LM6,Nursing Care,P11,"Adult Care, Health & Wellbeing",BARCHESTER HEALTHCARE HOMES LTD,09/07/2018,316.32
Bath and North East Somerset Council,80781623,LM6,Nursing Care,P11,"Adult Care, Health & Wellbeing",BARCHESTER HEALTHCARE HOMES LTD,09/07/2018,316.32
Bath and North East Somerset Council,80781623,LM6,Nursing Care,P11,"Adult Care, Health & Wellbeing",BARCHESTER HEALTHCARE HOMES LTD,09/07/2018,316.32
Bath and North East Somerset Council,80781623,LM6,Nursing Care,P11,"Adult Care, Health & Wellbeing",BARCHESTER HEALTHCARE HOMES LTD,09/07/2018,316.32
Bath and North East Somerset Council,80781623,LM6,Nursing Care,P11,"Adult Care, Health & Wellbeing",BARCHESTER HEALTHCARE HOMES LTD,09/07/2018,316.32
Bath and North East Somerset Council,80781623,LM6,Nursing Care,P11,"Adult Care, Health & Wellbeing",BARCHESTER HEALTHCARE HOMES LTD,09/07/2018,316.32
Bath and North East Somerset Council,80781623,LM6,Nursing Care,P11,"Adult Care, Health & Wellbeing",BARCHESTER HEALTHCARE HOMES LTD,09/07/2018,316.32
Bath and North East Somerset Council,80781623,LM6,Nursing Care,P11,"Adult Care, Health & Wellbeing",BARCHESTER HEALTHCARE HOMES LTD,09/07/2018,316.32
Bath and North East Somerset Council,80781623,LM6,Nursing Care,P11,"Adult Care, Health & Wellbeing",BARCHESTER HEALTHCARE HOMES LTD,09/07/2018,316.32
Bath and North East Somerset Council,80781623,LM6,Nursing Care,P11,"Adult Care, Health & Wellbeing",BARCHESTER HEALTHCARE HOMES LTD,09/07/2018,316.32
Bath and North East Somerset Council,80781623,LM6,Nursing Care,P11,"Adult Care, Health & Wellbeing",BARCHESTER HEALTHCARE HOMES LTD,09/07/2018,316.32
Bath and North East Somerset Council,80781623,LM6,Nursing Care,P11,"Adult Care, Health & Wellbeing",BARCHESTER HEALTHCARE HOMES LTD,09/07/2018,316.32
Bath and North East Somerset Council,80781623,LM6,Nursing Care,P11,"Adult Care, Health & Wellbeing",BARCHESTER HEALTHCARE HOMES LTD,09/07/2018,316.32
Bath and North East Somerset Council,80781623,LM6,Nursing Care,P11,"Adult Care, Health & Wellbeing",BARCHESTER HEALTHCARE HOMES LTD,09/07/2018,316.32
Bath and North East Somerset Council,80781623,LM6,Nursing Care,P11,"Adult Care, Health & Wellbeing",BARCHESTER HEALTHCARE HOMES LTD,09/07/2018,316.32
Bath and North East Somerset Council,80781816,LL3,Supported Living,P11,"Adult Care, Health & Wellbeing",ST MUNGO'S COMMUNITY HOUSING ASSOCIATION LTD,09/07/2018,158.40
Bath and North East Somerset Council,80781623,LM6,Nursing Care,P11,"Adult Care, Health & Wellbeing",BARCHESTER HEALTHCARE HOMES LTD,09/07/2018,316.32
Bath and North East Somerset Council,80781623,LM6,Nursing Care,P11,"Adult Care, Health & Wellbeing",BARCHESTER HEALTHCARE HOMES LTD,09/07/2018,316.32
Bath and North East Somerset Council,80781623,LM6,Nursing Care,P11,"Adult Care, Health & Wellbeing",BARCHESTER HEALTHCARE HOMES LTD,09/07/2018,316.32
Bath and North East Somerset Council,80781623,LM6,Nursing Care,P11,"Adult Care, Health & Wellbeing",BARCHESTER HEALTHCARE HOMES LTD,09/07/2018,316.32
Bath and North East Somerset Council,80781623,LM6,Nursing Care,P11,"Adult Care, Health & Wellbeing",BARCHESTER HEALTHCARE HOMES LTD,09/07/2018,316.32
Bath and North East Somerset Council,80781623,LM6,Nursing Care,P11,"Adult Care, Health & Wellbeing",BARCHESTER HEALTHCARE HOMES LTD,09/07/2018,316.32
Bath and North East Somerset Council,80781623,LM6,Nursing Care,P11,"Adult Care, Health & Wellbeing",BARCHESTER HEALTHCARE HOMES LTD,09/07/2018,316.32
Bath and North East Somerset Council,80781623,LM6,Nursing Care,P11,"Adult Care, Health & Wellbeing",BARCHESTER HEALTHCARE HOMES LTD,09/07/2018,316.32
Bath and North East Somerset Council,80781623,LM6,Nursing Care,P11,"Adult Care, Health & Wellbeing",BARCHESTER HEALTHCARE HOMES LTD,09/07/2018,316.32
Bath and North East Somerset Council,80781623,LM6,Nursing Care,P11,"Adult Care, Health & Wellbeing",BARCHESTER HEALTHCARE HOMES LTD,09/07/2018,316.32
Bath and North East Somerset Council,80781623,LM6,Nursing Care,P11,"Adult Care, Health & Wellbeing",BARCHESTER HEALTHCARE HOMES LTD,09/07/2018,316.32
Bath and North East Somerset Council,80781623,LM6,Nursing Care,P11,"Adult Care, Health & Wellbeing",BARCHESTER HEALTHCARE HOMES LTD,09/07/2018,316.32
Bath and North East Somerset Council,80781623,LM6,Nursing Care,P11,"Adult Care, Health & Wellbeing",BARCHESTER HEALTHCARE HOMES LTD,09/07/2018,316.32
Bath and North East Somerset Council,80781623,LM6,Nursing Care,P11,"Adult Care, Health & Wellbeing",BARCHESTER HEALTHCARE HOMES LTD,09/07/2018,316.32
Bath and North East Somerset Council,80781623,LM6,Nursing Care,P11,"Adult Care, Health & Wellbeing",BARCHESTER HEALTHCARE HOMES LTD,09/07/2018,316.32
Bath and North East Somerset Council,80781623,LM6,Nursing Care,P11,"Adult Care, Health & Wellbeing",BARCHESTER HEALTHCARE HOMES LTD,09/07/2018,316.32
Bath and North East Somerset Council,80781623,LM6,Nursing Care,P11,"Adult Care, Health & Wellbeing",BARCHESTER HEALTHCARE HOMES LTD,09/07/2018,316.32
Bath and North East Somerset Council,80781623,LM6,Nursing Care,P11,"Adult Care, Health & Wellbeing",BARCHESTER HEALTHCARE HOMES LTD,09/07/2018,316.32
Bath and North East Somerset Council,80781623,LM6,Nursing Care,P11,"Adult Care, Health & Wellbeing",BARCHESTER HEALTHCARE HOMES LTD,09/07/2018,316.32
Bath and North East Somerset Council,80781623,LM6,Nursing Care,P11,"Adult Care, Health & Wellbeing",BARCHESTER HEALTHCARE HOMES LTD,09/07/2018,316.32
Bath and North East Somerset Council,80781623,LM6,Nursing Care,P11,"Adult Care, Health & Wellbeing",BARCHESTER HEALTHCARE HOMES LTD,09/07/2018,316.32
Bath and North East Somerset Council,80781623,LM6,Nursing Care,P11,"Adult Care, Health & Wellbeing",BARCHESTER HEALTHCARE HOMES LTD,09/07/2018,316.32
Bath and North East Somerset Council,80781623,LM6,Nursing Care,P11,"Adult Care, Health & Wellbeing",BARCHESTER HEALTHCARE HOMES LTD,09/07/2018,316.32
Bath and North East Somerset Council,80781664,LM3,Residential Care,P11,"Adult Care, Health & Wellbeing",ASPECTS & MILESTONES TRUST,09/07/2018,174.28
Bath and North East Somerset Council,80781771,LM3,Residential Care,P11,"Adult Care, Health & Wellbeing",BARCHESTER HEALTHCARE HOMES LTD,09/07/2018,1059.46
Bath and North East Somerset Council,80781816,LL3,Supported Living,P11,"Adult Care, Health & Wellbeing",ST MUNGO'S COMMUNITY HOUSING ASSOCIATION LTD,09/07/2018,188.16
Bath and North East Somerset Council,80781771,LM6,Nursing Care,P11,"Adult Care, Health & Wellbeing",BARCHESTER HEALTHCARE HOMES LTD,09/07/2018,1123.02
Bath and North East Somerset Council,80781771,LM6,Nursing Care,P11,"Adult Care, Health & Wellbeing",BARCHESTER HEALTHCARE HOMES LTD,09/07/2018,1123.02
Bath and North East Somerset Council,80781771,LM6,Nursing Care,P11,"Adult Care, Health & Wellbeing",BARCHESTER HEALTHCARE HOMES LTD,09/07/2018,1123.02
Bath and North East Somerset Council,10877838,LF4,Stationery,P10,Finance & Efficiency,ACS LTD,09/07/2018,195.31
Bath and North East Somerset Council,80781733,LM6,Nursing Care,P11,"Adult Care, Health & Wellbeing",BARCHESTER HEALTHCARE HOMES LTD,09/07/2018,1253.98
Bath and North East Somerset Council,80781771,LM6,Nursing Care,P11,"Adult Care, Health & Wellbeing",BARCHESTER HEALTHCARE HOMES LTD,09/07/2018,1278.40
Bath and North East Somerset Council,80781771,LM6,Nursing Care,P11,"Adult Care, Health & Wellbeing",BARCHESTER HEALTHCARE HOMES LTD,09/07/2018,1294.40
Bath and North East Somerset Council,80781771,LM6,Nursing Care,P11,"Adult Care, Health & Wellbeing",BARCHESTER HEALTHCARE HOMES LTD,09/07/2018,1294.40
Bath and North East Somerset Council,80781771,LM3,Residential Care,P11,"Adult Care, Health & Wellbeing",BARCHESTER HEALTHCARE HOMES LTD,09/07/2018,1328.00
Bath and North East Somerset Council,80781771,LM6,Nursing Care,P11,"Adult Care, Health & Wellbeing",BARCHESTER HEALTHCARE HOMES LTD,09/07/2018,1389.90
Bath and North East Somerset Council,80781253,LM6,Nursing Care,P11,"Adult Care, Health & Wellbeing",BARCHESTER HEALTHCARE HOMES LTD,09/07/2018,1494.00
Bath and North East Somerset Council,80781771,LM6,Nursing Care,P11,"Adult Care, Health & Wellbeing",BARCHESTER HEALTHCARE HOMES LTD,09/07/2018,1503.68
Bath and North East Somerset Council,80781771,LM6,Nursing Care,P11,"Adult Care, Health & Wellbeing",BARCHESTER HEALTHCARE HOMES LTD,09/07/2018,1546.40
Bath and North East Somerset Council,80781771,LM6,Nursing Care,P11,"Adult Care, Health & Wellbeing",BARCHESTER HEALTHCARE HOMES LTD,09/07/2018,1589.90
Bath and North East Somerset Council,80781771,LM6,Nursing Care,P11,"Adult Care, Health & Wellbeing",BARCHESTER HEALTHCARE HOMES LTD,09/07/2018,1596.40
Bath and North East Somerset Council,80781771,LM6,Nursing Care,P11,"Adult Care, Health & Wellbeing",BARCHESTER HEALTHCARE HOMES LTD,09/07/2018,1601.02
Bath and North East Somerset Council,80781771,LM6,Nursing Care,P11,"Adult Care, Health & Wellbeing",BARCHESTER HEALTHCARE HOMES LTD,09/07/2018,1616.00
Bath and North East Somerset Council,80781771,LM6,Nursing Care,P11,"Adult Care, Health & Wellbeing",BARCHESTER HEALTHCARE HOMES LTD,09/07/2018,1628.40
Bath and North East Somerset Council,80781771,LM6,Nursing Care,P11,"Adult Care, Health & Wellbeing",BARCHESTER HEALTHCARE HOMES LTD,09/07/2018,1628.40
Bath and North East Somerset Council,80781771,LM6,Nursing Care,P11,"Adult Care, Health & Wellbeing",BARCHESTER HEALTHCARE HOMES LTD,09/07/2018,1639.90
Bath and North East Somerset Council,80781771,LM6,Nursing Care,P11,"Adult Care, Health & Wellbeing",BARCHESTER HEALTHCARE HOMES LTD,09/07/2018,1639.90
Bath and North East Somerset Council,80781771,LM6,Nursing Care,P11,"Adult Care, Health & Wellbeing",BARCHESTER HEALTHCARE HOMES LTD,09/07/2018,1639.90
Bath and North East Somerset Council,80781771,LM6,Nursing Care,P11,"Adult Care, Health & Wellbeing",BARCHESTER HEALTHCARE HOMES LTD,09/07/2018,1678.40
Bath and North East Somerset Council,80781771,LM6,Nursing Care,P11,"Adult Care, Health & Wellbeing",BARCHESTER HEALTHCARE HOMES LTD,09/07/2018,1698.40
Bath and North East Somerset Council,80781253,LM6,Nursing Care,P11,"Adult Care, Health & Wellbeing",BARCHESTER HEALTHCARE HOMES LTD,09/07/2018,1748.00
Bath and North East Somerset Council,80781253,LM6,Nursing Care,P11,"Adult Care, Health & Wellbeing",BARCHESTER HEALTHCARE HOMES LTD,09/07/2018,1900.00
Bath and North East Somerset Council,80781771,LM6,Nursing Care,P11,"Adult Care, Health & Wellbeing",BARCHESTER HEALTHCARE HOMES LTD,09/07/2018,1989.90
Bath and North East Somerset Council,80781253,LM6,Nursing Care,P11,"Adult Care, Health & Wellbeing",BARCHESTER HEALTHCARE HOMES LTD,09/07/2018,2000.00
Bath and North East Somerset Council,80781623,LM6,Nursing Care,P11,"Adult Care, Health & Wellbeing",BARCHESTER HEALTHCARE HOMES LTD,09/07/2018,2191.65
Bath and North East Somerset Council,80781253,LM6,Nursing Care,P11,"Adult Care, Health & Wellbeing",BARCHESTER HEALTHCARE HOMES LTD,09/07/2018,2200.00
Bath and North East Somerset Council,80781253,LM6,Nursing Care,P11,"Adult Care, Health & Wellbeing",BARCHESTER HEALTHCARE HOMES LTD,09/07/2018,2200.00
Bath and North East Somerset Council,80781623,LM6,Nursing Care,P11,"Adult Care, Health & Wellbeing",BARCHESTER HEALTHCARE HOMES LTD,09/07/2018,2970.89
Bath and North East Somerset Council,80781698,LM6,Nursing Care,P11,"Adult Care, Health & Wellbeing",BARCHESTER HEALTHCARE HOMES LTD,09/07/2018,3365.50
Bath and North East Somerset Council,80781771,LM3,Residential Care,P11,"Adult Care, Health & Wellbeing",BARCHESTER HEALTHCARE HOMES LTD,09/07/2018,3800.16
Bath and North East Somerset Council,80781623,LM6,Nursing Care,P11,"Adult Care, Health & Wellbeing",BARCHESTER HEALTHCARE HOMES LTD,09/07/2018,4540.75
Bath and North East Somerset Council,80781631,LM6,Nursing Care,P11,"Adult Care, Health & Wellbeing",BARKER CHEMICALS LTD T/A ST TERESA'S NH,09/07/2018,316.32
Bath and North East Somerset Council,80781631,LM6,Nursing Care,P11,"Adult Care, Health & Wellbeing",BARKER CHEMICALS LTD T/A ST TERESA'S NH,09/07/2018,316.32
Bath and North East Somerset Council,80781631,LM6,Nursing Care,P11,"Adult Care, Health & Wellbeing",BARKER CHEMICALS LTD T/A ST TERESA'S NH,09/07/2018,316.32
Bath and North East Somerset Council,80781631,LM6,Nursing Care,P11,"Adult Care, Health & Wellbeing",BARKER CHEMICALS LTD T/A ST TERESA'S NH,09/07/2018,316.32
Bath and North East Somerset Council,80781631,LM6,Nursing Care,P11,"Adult Care, Health & Wellbeing",BARKER CHEMICALS LTD T/A ST TERESA'S NH,09/07/2018,316.32
Bath and North East Somerset Council,80781631,LM6,Nursing Care,P11,"Adult Care, Health & Wellbeing",BARKER CHEMICALS LTD T/A ST TERESA'S NH,09/07/2018,316.32
Bath and North East Somerset Council,80781631,LM6,Nursing Care,P11,"Adult Care, Health & Wellbeing",BARKER CHEMICALS LTD T/A ST TERESA'S NH,09/07/2018,316.32
Bath and North East Somerset Council,80781631,LM6,Nursing Care,P11,"Adult Care, Health & Wellbeing",BARKER CHEMICALS LTD T/A ST TERESA'S NH,09/07/2018,316.32
Bath and North East Somerset Council,80781631,LM6,Nursing Care,P11,"Adult Care, Health & Wellbeing",BARKER CHEMICALS LTD T/A ST TERESA'S NH,09/07/2018,316.32
Bath and North East Somerset Council,80781631,LM6,Nursing Care,P11,"Adult Care, Health & Wellbeing",BARKER CHEMICALS LTD T/A ST TERESA'S NH,09/07/2018,316.32
Bath and North East Somerset Council,80781631,LM6,Nursing Care,P11,"Adult Care, Health & Wellbeing",BARKER CHEMICALS LTD T/A ST TERESA'S NH,09/07/2018,316.32
Bath and North East Somerset Council,80781631,LM6,Nursing Care,P11,"Adult Care, Health & Wellbeing",BARKER CHEMICALS LTD T/A ST TERESA'S NH,09/07/2018,316.32
Bath and North East Somerset Council,80781631,LM6,Nursing Care,P11,"Adult Care, Health & Wellbeing",BARKER CHEMICALS LTD T/A ST TERESA'S NH,09/07/2018,316.32
Bath and North East Somerset Council,80781631,LM6,Nursing Care,P11,"Adult Care, Health & Wellbeing",BARKER CHEMICALS LTD T/A ST TERESA'S NH,09/07/2018,316.32
Bath and North East Somerset Council,80781631,LM6,Nursing Care,P11,"Adult Care, Health & Wellbeing",BARKER CHEMICALS LTD T/A ST TERESA'S NH,09/07/2018,316.32
Bath and North East Somerset Council,80781631,LM6,Nursing Care,P11,"Adult Care, Health & Wellbeing",BARKER CHEMICALS LTD T/A ST TERESA'S NH,09/07/2018,316.32
Bath and North East Somerset Council,80781631,LM6,Nursing Care,P11,"Adult Care, Health & Wellbeing",BARKER CHEMICALS LTD T/A ST TERESA'S NH,09/07/2018,316.32
Bath and North East Somerset Council,80781631,LM6,Nursing Care,P11,"Adult Care, Health & Wellbeing",BARKER CHEMICALS LTD T/A ST TERESA'S NH,09/07/2018,316.32
Bath and North East Somerset Council,80781631,LM6,Nursing Care,P11,"Adult Care, Health & Wellbeing",BARKER CHEMICALS LTD T/A ST TERESA'S NH,09/07/2018,316.32
Bath and North East Somerset Council,80781631,LM6,Nursing Care,P11,"Adult Care, Health & Wellbeing",BARKER CHEMICALS LTD T/A ST TERESA'S NH,09/07/2018,316.32
Bath and North East Somerset Council,80781631,LM6,Nursing Care,P11,"Adult Care, Health & Wellbeing",BARKER CHEMICALS LTD T/A ST TERESA'S NH,09/07/2018,316.32
Bath and North East Somerset Council,80781631,LM6,Nursing Care,P11,"Adult Care, Health & Wellbeing",BARKER CHEMICALS LTD T/A ST TERESA'S NH,09/07/2018,316.32
Bath and North East Somerset Council,80781631,LM6,Nursing Care,P11,"Adult Care, Health & Wellbeing",BARKER CHEMICALS LTD T/A ST TERESA'S NH,09/07/2018,316.32
Bath and North East Somerset Council,80781631,LM6,Nursing Care,P11,"Adult Care, Health & Wellbeing",BARKER CHEMICALS LTD T/A ST TERESA'S NH,09/07/2018,316.32
Bath and North East Somerset Council,80781631,LM6,Nursing Care,P11,"Adult Care, Health & Wellbeing",BARKER CHEMICALS LTD T/A ST TERESA'S NH,09/07/2018,316.32
Bath and North East Somerset Council,80781631,LM6,Nursing Care,P11,"Adult Care, Health & Wellbeing",BARKER CHEMICALS LTD T/A ST TERESA'S NH,09/07/2018,316.32
Bath and North East Somerset Council,80781631,LM6,Nursing Care,P11,"Adult Care, Health & Wellbeing",BARKER CHEMICALS LTD T/A ST TERESA'S NH,09/07/2018,316.32
Bath and North East Somerset Council,80781631,LM6,Nursing Care,P11,"Adult Care, Health & Wellbeing",BARKER CHEMICALS LTD T/A ST TERESA'S NH,09/07/2018,316.32
Bath and North East Somerset Council,80781631,LM6,Nursing Care,P11,"Adult Care, Health & Wellbeing",BARKER CHEMICALS LTD T/A ST TERESA'S NH,09/07/2018,316.32
Bath and North East Somerset Council,80781631,LM6,Nursing Care,P11,"Adult Care, Health & Wellbeing",BARKER CHEMICALS LTD T/A ST TERESA'S NH,09/07/2018,316.32
Bath and North East Somerset Council,80781631,LM6,Nursing Care,P11,"Adult Care, Health & Wellbeing",BARKER CHEMICALS LTD T/A ST TERESA'S NH,09/07/2018,316.32
Bath and North East Somerset Council,80781631,LM6,Nursing Care,P11,"Adult Care, Health & Wellbeing",BARKER CHEMICALS LTD T/A ST TERESA'S NH,09/07/2018,316.32
Bath and North East Somerset Council,80781631,LM6,Nursing Care,P11,"Adult Care, Health & Wellbeing",BARKER CHEMICALS LTD T/A ST TERESA'S NH,09/07/2018,316.32
Bath and North East Somerset Council,80781631,LM6,Nursing Care,P11,"Adult Care, Health & Wellbeing",BARKER CHEMICALS LTD T/A ST TERESA'S NH,09/07/2018,316.32
Bath and North East Somerset Council,80781631,LM6,Nursing Care,P11,"Adult Care, Health & Wellbeing",BARKER CHEMICALS LTD T/A ST TERESA'S NH,09/07/2018,316.32
Bath and North East Somerset Council,80781631,LM6,Nursing Care,P11,"Adult Care, Health & Wellbeing",BARKER CHEMICALS LTD T/A ST TERESA'S NH,09/07/2018,316.32
Bath and North East Somerset Council,80781631,LM6,Nursing Care,P11,"Adult Care, Health & Wellbeing",BARKER CHEMICALS LTD T/A ST TERESA'S NH,09/07/2018,316.32
Bath and North East Somerset Council,80781631,LM6,Nursing Care,P11,"Adult Care, Health & Wellbeing",BARKER CHEMICALS LTD T/A ST TERESA'S NH,09/07/2018,316.32
Bath and North East Somerset Council,80781631,LM6,Nursing Care,P11,"Adult Care, Health & Wellbeing",BARKER CHEMICALS LTD T/A ST TERESA'S NH,09/07/2018,316.32
Bath and North East Somerset Council,80781631,LM6,Nursing Care,P11,"Adult Care, Health & Wellbeing",BARKER CHEMICALS LTD T/A ST TERESA'S NH,09/07/2018,316.32
Bath and North East Somerset Council,80781631,LM6,Nursing Care,P11,"Adult Care, Health & Wellbeing",BARKER CHEMICALS LTD T/A ST TERESA'S NH,09/07/2018,316.32
Bath and North East Somerset Council,80781631,LM6,Nursing Care,P11,"Adult Care, Health & Wellbeing",BARKER CHEMICALS LTD T/A ST TERESA'S NH,09/07/2018,316.32
Bath and North East Somerset Council,80781631,LM6,Nursing Care,P11,"Adult Care, Health & Wellbeing",BARKER CHEMICALS LTD T/A ST TERESA'S NH,09/07/2018,316.32
Bath and North East Somerset Council,80781631,LM6,Nursing Care,P11,"Adult Care, Health & Wellbeing",BARKER CHEMICALS LTD T/A ST TERESA'S NH,09/07/2018,316.32
Bath and North East Somerset Council,80781631,LM6,Nursing Care,P11,"Adult Care, Health & Wellbeing",BARKER CHEMICALS LTD T/A ST TERESA'S NH,09/07/2018,316.32
Bath and North East Somerset Council,80781631,LM6,Nursing Care,P11,"Adult Care, Health & Wellbeing",BARKER CHEMICALS LTD T/A ST TERESA'S NH,09/07/2018,316.32
Bath and North East Somerset Council,80781787,LM6,Nursing Care,P11,"Adult Care, Health & Wellbeing",BARKER CHEMICALS LTD T/A ST TERESA'S NH,09/07/2018,1123.02
Bath and North East Somerset Council,80781787,LM6,Nursing Care,P11,"Adult Care, Health & Wellbeing",BARKER CHEMICALS LTD T/A ST TERESA'S NH,09/07/2018,1159.38
Bath and North East Somerset Council,80781787,LM6,Nursing Care,P11,"Adult Care, Health & Wellbeing",BARKER CHEMICALS LTD T/A ST TERESA'S NH,09/07/2018,1159.38
Bath and North East Somerset Council,80781787,LM6,Nursing Care,P11,"Adult Care, Health & Wellbeing",BARKER CHEMICALS LTD T/A ST TERESA'S NH,09/07/2018,1159.38
Bath and North East Somerset Council,80781787,LM6,Nursing Care,P11,"Adult Care, Health & Wellbeing",BARKER CHEMICALS LTD T/A ST TERESA'S NH,09/07/2018,1159.38
Bath and North East Somerset Council,80781787,LM6,Nursing Care,P11,"Adult Care, Health & Wellbeing",BARKER CHEMICALS LTD T/A ST TERESA'S NH,09/07/2018,1159.38
Bath and North East Somerset Council,80781787,LM6,Nursing Care,P11,"Adult Care, Health & Wellbeing",BARKER CHEMICALS LTD T/A ST TERESA'S NH,09/07/2018,1178.40
Bath and North East Somerset Council,80781787,LM6,Nursing Care,P11,"Adult Care, Health & Wellbeing",BARKER CHEMICALS LTD T/A ST TERESA'S NH,09/07/2018,1184.40
Bath and North East Somerset Council,80781787,LM6,Nursing Care,P11,"Adult Care, Health & Wellbeing",BARKER CHEMICALS LTD T/A ST TERESA'S NH,09/07/2018,1252.40
Bath and North East Somerset Council,80781787,LM6,Nursing Care,P11,"Adult Care, Health & Wellbeing",BARKER CHEMICALS LTD T/A ST TERESA'S NH,09/07/2018,1320.40
Bath and North East Somerset Council,80781787,LM6,Nursing Care,P11,"Adult Care, Health & Wellbeing",BARKER CHEMICALS LTD T/A ST TERESA'S NH,09/07/2018,1321.30
Bath and North East Somerset Council,80781787,LM6,Nursing Care,P11,"Adult Care, Health & Wellbeing",BARKER CHEMICALS LTD T/A ST TERESA'S NH,09/07/2018,1378.40
Bath and North East Somerset Council,80781787,LM6,Nursing Care,P11,"Adult Care, Health & Wellbeing",BARKER CHEMICALS LTD T/A ST TERESA'S NH,09/07/2018,1379.90
Bath and North East Somerset Council,80781787,LM6,Nursing Care,P11,"Adult Care, Health & Wellbeing",BARKER CHEMICALS LTD T/A ST TERESA'S NH,09/07/2018,1379.90
Bath and North East Somerset Council,80781787,LM6,Nursing Care,P11,"Adult Care, Health & Wellbeing",BARKER CHEMICALS LTD T/A ST TERESA'S NH,09/07/2018,1379.90
Bath and North East Somerset Council,80781787,LM6,Nursing Care,P11,"Adult Care, Health & Wellbeing",BARKER CHEMICALS LTD T/A ST TERESA'S NH,09/07/2018,1390.40
Bath and North East Somerset Council,80781787,LM6,Nursing Care,P11,"Adult Care, Health & Wellbeing",BARKER CHEMICALS LTD T/A ST TERESA'S NH,09/07/2018,1394.40
Bath and North East Somerset Council,80781787,LM6,Nursing Care,P11,"Adult Care, Health & Wellbeing",BARKER CHEMICALS LTD T/A ST TERESA'S NH,09/07/2018,1394.40
Bath and North East Somerset Council,80781787,LM6,Nursing Care,P11,"Adult Care, Health & Wellbeing",BARKER CHEMICALS LTD T/A ST TERESA'S NH,09/07/2018,1412.40
Bath and North East Somerset Council,80781787,LM6,Nursing Care,P11,"Adult Care, Health & Wellbeing",BARKER CHEMICALS LTD T/A ST TERESA'S NH,09/07/2018,1416.40
Bath and North East Somerset Council,80781787,LM6,Nursing Care,P11,"Adult Care, Health & Wellbeing",BARKER CHEMICALS LTD T/A ST TERESA'S NH,09/07/2018,1428.40
Bath and North East Somerset Council,80781787,LM6,Nursing Care,P11,"Adult Care, Health & Wellbeing",BARKER CHEMICALS LTD T/A ST TERESA'S NH,09/07/2018,1437.48
Bath and North East Somerset Council,80781787,LM3,Residential Care,P11,"Adult Care, Health & Wellbeing",BARKER CHEMICALS LTD T/A ST TERESA'S NH,09/07/2018,1437.50
Bath and North East Somerset Council,80781787,LM6,Nursing Care,P11,"Adult Care, Health & Wellbeing",BARKER CHEMICALS LTD T/A ST TERESA'S NH,09/07/2018,1467.16
Bath and North East Somerset Council,80781787,LM6,Nursing Care,P11,"Adult Care, Health & Wellbeing",BARKER CHEMICALS LTD T/A ST TERESA'S NH,09/07/2018,1468.40
Bath and North East Somerset Council,80781787,LM6,Nursing Care,P11,"Adult Care, Health & Wellbeing",BARKER CHEMICALS LTD T/A ST TERESA'S NH,09/07/2018,1478.40
Bath and North East Somerset Council,80781787,LM6,Nursing Care,P11,"Adult Care, Health & Wellbeing",BARKER CHEMICALS LTD T/A ST TERESA'S NH,09/07/2018,1479.90
Bath and North East Somerset Council,80781787,LM6,Nursing Care,P11,"Adult Care, Health & Wellbeing",BARKER CHEMICALS LTD T/A ST TERESA'S NH,09/07/2018,1479.90
Bath and North East Somerset Council,80781787,LM6,Nursing Care,P11,"Adult Care, Health & Wellbeing",BARKER CHEMICALS LTD T/A ST TERESA'S NH,09/07/2018,1790.00
Bath and North East Somerset Council,80781787,LM6,Nursing Care,P11,"Adult Care, Health & Wellbeing",BARKER CHEMICALS LTD T/A ST TERESA'S NH,09/07/2018,1808.30
Bath and North East Somerset Council,80781266,LM6,Nursing Care,P11,"Adult Care, Health & Wellbeing",BARKER CHEMICALS LTD T/A ST TERESA'S NH,09/07/2018,1860.00
Bath and North East Somerset Council,80781266,LM6,Nursing Care,P11,"Adult Care, Health & Wellbeing",BARKER CHEMICALS LTD T/A ST TERESA'S NH,09/07/2018,2010.00
Bath and North East Somerset Council,80781266,LM6,Nursing Care,P11,"Adult Care, Health & Wellbeing",BARKER CHEMICALS LTD T/A ST TERESA'S NH,09/07/2018,2068.00
Bath and North East Somerset Council,80781820,LM6,Nursing Care,P11,"Adult Care, Health & Wellbeing",BARKER CHEMICALS LTD T/A ST TERESA'S NH,09/07/2018,2486.69
Bath and North East Somerset Council,80781820,LM6,Nursing Care,P11,"Adult Care, Health & Wellbeing",BARKER CHEMICALS LTD T/A ST TERESA'S NH,09/07/2018,2567.20
Bath and North East Somerset Council,80781820,LM6,Nursing Care,P11,"Adult Care, Health & Wellbeing",BARKER CHEMICALS LTD T/A ST TERESA'S NH,09/07/2018,2567.20
Bath and North East Somerset Council,80781631,LM6,Nursing Care,P11,"Adult Care, Health & Wellbeing",BARKER CHEMICALS LTD T/A ST TERESA'S NH,09/07/2018,3280.99
Bath and North East Somerset Council,80781631,LM6,Nursing Care,P11,"Adult Care, Health & Wellbeing",BARKER CHEMICALS LTD T/A ST TERESA'S NH,09/07/2018,4144.84
Bath and North East Somerset Council,80781787,LM6,Nursing Care,P11,"Adult Care, Health & Wellbeing",BARKER CHEMICALS LTD T/A ST TERESA'S NH,09/07/2018,8734.08
Bath and North East Somerset Council,80781324,LL8,Individualised Budget,P11,"Adult Care, Health & Wellbeing",REDACTED,09/07/2018,1533.20
Bath and North East Somerset Council,80781776,LM3,Residential Care,P11,"Adult Care, Health & Wellbeing",BATH MIND,09/07/2018,1667.98
Bath and North East Somerset Council,80781776,LM3,Residential Care,P11,"Adult Care, Health & Wellbeing",BATH MIND,09/07/2018,1667.98
Bath and North East Somerset Council,80781776,LM3,Residential Care,P11,"Adult Care, Health & Wellbeing",BATH MIND,09/07/2018,1667.98
Bath and North East Somerset Council,80781776,LM3,Residential Care,P11,"Adult Care, Health & Wellbeing",BATH MIND,09/07/2018,1667.98
Bath and North East Somerset Council,80781776,LM3,Residential Care,P11,"Adult Care, Health & Wellbeing",BATH MIND,09/07/2018,1667.98
Bath and North East Somerset Council,80781776,LM3,Residential Care,P11,"Adult Care, Health & Wellbeing",BATH MIND,09/07/2018,1668.04
Bath and North East Somerset Council,80781774,LM3,Residential Care,P11,"Adult Care, Health & Wellbeing",BCVS HOMES,09/07/2018,386.43
Bath and North East Somerset Council,80781774,LM3,Residential Care,P11,"Adult Care, Health & Wellbeing",BCVS HOMES,09/07/2018,1117.06
Bath and North East Somerset Council,80781774,LM3,Residential Care,P11,"Adult Care, Health & Wellbeing",BCVS HOMES,09/07/2018,1117.06
Bath and North East Somerset Council,80781774,LM3,Residential Care,P11,"Adult Care, Health & Wellbeing",BCVS HOMES,09/07/2018,1154.00
Bath and North East Somerset Council,80781774,LM3,Residential Care,P11,"Adult Care, Health & Wellbeing",BCVS HOMES,09/07/2018,1157.46
Bath and North East Somerset Council,80781774,LM3,Residential Care,P11,"Adult Care, Health & Wellbeing",BCVS HOMES,09/07/2018,1164.00
Bath and North East Somerset Council,80781774,LM3,Residential Care,P11,"Adult Care, Health & Wellbeing",BCVS HOMES,09/07/2018,1184.00
Bath and North East Somerset Council,80781774,LM3,Residential Care,P11,"Adult Care, Health & Wellbeing",BCVS HOMES,09/07/2018,1210.00
Bath and North East Somerset Council,80781774,LM3,Residential Care,P11,"Adult Care, Health & Wellbeing",BCVS HOMES,09/07/2018,1210.00
Bath and North East Somerset Council,80781774,LM3,Residential Care,P11,"Adult Care, Health & Wellbeing",BCVS HOMES,09/07/2018,1212.00
Bath and North East Somerset Council,80781774,LM3,Residential Care,P11,"Adult Care, Health & Wellbeing",BCVS HOMES,09/07/2018,1240.00
Bath and North East Somerset Council,80781774,LM3,Residential Care,P11,"Adult Care, Health & Wellbeing",BCVS HOMES,09/07/2018,1240.00
Bath and North East Somerset Council,80781774,LM3,Residential Care,P11,"Adult Care, Health & Wellbeing",BCVS HOMES,09/07/2018,1476.28
Bath and North East Somerset Council,80781774,LM3,Residential Care,P11,"Adult Care, Health & Wellbeing",BCVS HOMES,09/07/2018,2214.29
Bath and North East Somerset Council,80781800,LM3,Residential Care,P11,"Adult Care, Health & Wellbeing",BEDBOROUGH HOUSE,09/07/2018,5422.40
Bath and North East Somerset Council,80781800,LM3,Residential Care,P11,"Adult Care, Health & Wellbeing",BEDBOROUGH HOUSE,09/07/2018,6111.40
Bath and North East Somerset Council,80781800,LM3,Residential Care,P11,"Adult Care, Health & Wellbeing",BEDBOROUGH HOUSE,09/07/2018,6959.80
Bath and North East Somerset Council,80781692,LM3,Residential Care,P11,"Adult Care, Health & Wellbeing",BELMONT VILLA RESIDENTIAL NURSING HOME LTD,09/07/2018,1500.00
Bath and North East Somerset Council,80781670,LM3,Residential Care,P11,"Adult Care, Health & Wellbeing",BRADBURY HOUSE LTD,09/07/2018,2341.26
Bath and North East Somerset Council,80781670,LM3,Residential Care,P11,"Adult Care, Health & Wellbeing",BRADBURY HOUSE LTD,09/07/2018,2399.32
Bath and North East Somerset Council,80781670,LM3,Residential Care,P11,"Adult Care, Health & Wellbeing",BRADBURY HOUSE LTD,09/07/2018,2507.14
Bath and North East Somerset Council,80781670,LM3,Residential Care,P11,"Adult Care, Health & Wellbeing",BRADBURY HOUSE LTD,09/07/2018,2917.06
Bath and North East Somerset Council,80781670,LM3,Residential Care,P11,"Adult Care, Health & Wellbeing",BRADBURY HOUSE LTD,09/07/2018,3120.96
Bath and North East Somerset Council,80781670,LM3,Residential Care,P11,"Adult Care, Health & Wellbeing",BRADBURY HOUSE LTD,09/07/2018,3981.58
Bath and North East Somerset Council,80781670,LM3,Residential Care,P11,"Adult Care, Health & Wellbeing",BRADBURY HOUSE LTD,09/07/2018,4090.84
Bath and North East Somerset Council,80781670,LM3,Residential Care,P11,"Adult Care, Health & Wellbeing",BRADBURY HOUSE LTD,09/07/2018,4391.90
Bath and North East Somerset Council,80781670,LM3,Residential Care,P11,"Adult Care, Health & Wellbeing",BRADBURY HOUSE LTD,09/07/2018,4615.72
Bath and North East Somerset Council,80781670,LM3,Residential Care,P11,"Adult Care, Health & Wellbeing",BRADBURY HOUSE LTD,09/07/2018,4940.46
Bath and North East Somerset Council,80781670,LM3,Residential Care,P11,"Adult Care, Health & Wellbeing",BRADBURY HOUSE LTD,09/07/2018,5014.30
Bath and North East Somerset Council,80781670,LM3,Residential Care,P11,"Adult Care, Health & Wellbeing",BRADBURY HOUSE LTD,09/07/2018,5054.52
Bath and North East Somerset Council,80781670,LM3,Residential Care,P11,"Adult Care, Health & Wellbeing",BRADBURY HOUSE LTD,09/07/2018,5362.68
Bath and North East Somerset Council,80781670,LM3,Residential Care,P11,"Adult Care, Health & Wellbeing",BRADBURY HOUSE LTD,09/07/2018,5659.22
Bath and North East Somerset Council,80781670,LM3,Residential Care,P11,"Adult Care, Health & Wellbeing",BRADBURY HOUSE LTD,09/07/2018,6198.40
Bath and North East Somerset Council,80781616,LM6,Nursing Care,P11,"Adult Care, Health & Wellbeing",BRIDGE CARE LTD,09/07/2018,248.54
Bath and North East Somerset Council,80781616,LM6,Nursing Care,P11,"Adult Care, Health & Wellbeing",BRIDGE CARE LTD,09/07/2018,316.32
Bath and North East Somerset Council,80781616,LM6,Nursing Care,P11,"Adult Care, Health & Wellbeing",BRIDGE CARE LTD,09/07/2018,316.32
Bath and North East Somerset Council,80781616,LM6,Nursing Care,P11,"Adult Care, Health & Wellbeing",BRIDGE CARE LTD,09/07/2018,316.32
Bath and North East Somerset Council,80781616,LM6,Nursing Care,P11,"Adult Care, Health & Wellbeing",BRIDGE CARE LTD,09/07/2018,316.32
Bath and North East Somerset Council,80781616,LM6,Nursing Care,P11,"Adult Care, Health & Wellbeing",BRIDGE CARE LTD,09/07/2018,316.32
Bath and North East Somerset Council,80781616,LM6,Nursing Care,P11,"Adult Care, Health & Wellbeing",BRIDGE CARE LTD,09/07/2018,316.32
Bath and North East Somerset Council,80781616,LM6,Nursing Care,P11,"Adult Care, Health & Wellbeing",BRIDGE CARE LTD,09/07/2018,316.32
Bath and North East Somerset Council,80781616,LM6,Nursing Care,P11,"Adult Care, Health & Wellbeing",BRIDGE CARE LTD,09/07/2018,316.32
Bath and North East Somerset Council,80781616,LM6,Nursing Care,P11,"Adult Care, Health & Wellbeing",BRIDGE CARE LTD,09/07/2018,316.32
Bath and North East Somerset Council,80781616,LM6,Nursing Care,P11,"Adult Care, Health & Wellbeing",BRIDGE CARE LTD,09/07/2018,316.32
Bath and North East Somerset Council,80781616,LM6,Nursing Care,P11,"Adult Care, Health & Wellbeing",BRIDGE CARE LTD,09/07/2018,316.32
Bath and North East Somerset Council,80781764,LM6,Nursing Care,P11,"Adult Care, Health & Wellbeing",BRIDGE CARE LTD,09/07/2018,721.94
Bath and North East Somerset Council,80781764,LM3,Residential Care,P11,"Adult Care, Health & Wellbeing",BRIDGE CARE LTD,09/07/2018,740.00
Bath and North East Somerset Council,80781764,LM3,Residential Care,P11,"Adult Care, Health & Wellbeing",BRIDGE CARE LTD,09/07/2018,1117.06
Bath and North East Somerset Council,80781764,LM6,Nursing Care,P11,"Adult Care, Health & Wellbeing",BRIDGE CARE LTD,09/07/2018,1123.02
Bath and North East Somerset Council,80781764,LM6,Nursing Care,P11,"Adult Care, Health & Wellbeing",BRIDGE CARE LTD,09/07/2018,1123.02
Bath and North East Somerset Council,80781764,LM6,Nursing Care,P11,"Adult Care, Health & Wellbeing",BRIDGE CARE LTD,09/07/2018,1123.02
Bath and North East Somerset Council,80781764,LM6,Nursing Care,P11,"Adult Care, Health & Wellbeing",BRIDGE CARE LTD,09/07/2018,1250.00
Bath and North East Somerset Council,80781764,LM6,Nursing Care,P11,"Adult Care, Health & Wellbeing",BRIDGE CARE LTD,09/07/2018,1383.68
Bath and North East Somerset Council,80781764,LM6,Nursing Care,P11,"Adult Care, Health & Wellbeing",BRIDGE CARE LTD,09/07/2018,1412.40
Bath and North East Somerset Council,80781764,LM3,Residential Care,P11,"Adult Care, Health & Wellbeing",BRIDGE CARE LTD,09/07/2018,1624.20
Bath and North East Somerset Council,80781247,LM6,Nursing Care,P11,"Adult Care, Health & Wellbeing",BRIDGE CARE LTD,09/07/2018,1900.00
Bath and North East Somerset Council,80781247,LM6,Nursing Care,P11,"Adult Care, Health & Wellbeing",BRIDGE CARE LTD,09/07/2018,7848.00
Bath and North East Somerset Council,80781806,LL3,Supported Living,P11,"Adult Care, Health & Wellbeing",BRIGHTBOW LODGE,09/07/2018,1011.40
Bath and North East Somerset Council,80781806,LL3,Supported Living,P11,"Adult Care, Health & Wellbeing",BRIGHTBOW LODGE,09/07/2018,1089.20
Bath and North East Somerset Council,80781647,LM6,Nursing Care,P11,"Adult Care, Health & Wellbeing",BRIGHTBOW LODGE,09/07/2018,1363.68
Bath and North East Somerset Council,80781647,LM6,Nursing Care,P11,"Adult Care, Health & Wellbeing",BRIGHTBOW LODGE,09/07/2018,1363.68
Bath and North East Somerset Council,80781647,LM3,Residential Care,P11,"Adult Care, Health & Wellbeing",BRIGHTBOW LODGE,09/07/2018,1680.00
Bath and North East Somerset Council,80781647,LM3,Residential Care,P11,"Adult Care, Health & Wellbeing",BRIGHTBOW LODGE,09/07/2018,2594.00
Bath and North East Somerset Council,80781647,LM3,Residential Care,P11,"Adult Care, Health & Wellbeing",BRIGHTBOW LODGE,09/07/2018,2960.00
Bath and North East Somerset Council,80781662,LM6,Nursing Care,P11,"Adult Care, Health & Wellbeing",BRISTOL AGE CARE,09/07/2018,1888.50
Bath and North East Somerset Council,80781662,LM6,Nursing Care,P11,"Adult Care, Health & Wellbeing",BRISTOL AGE CARE,09/07/2018,1900.00
Bath and North East Somerset Council,80781737,LM3,Residential Care,P11,"Adult Care, Health & Wellbeing",BROUGHTON LODGE CARE HOME LTD,09/07/2018,904.00
Bath and North East Somerset Council,80781720,LM6,Nursing Care,P11,"Adult Care, Health & Wellbeing",BRUNEL CARE HOME,09/07/2018,1299.90
Bath and North East Somerset Council,80781720,LM6,Nursing Care,P11,"Adult Care, Health & Wellbeing",BRUNEL CARE HOME,09/07/2018,1604.00
Bath and North East Somerset Council,80781720,LM6,Nursing Care,P11,"Adult Care, Health & Wellbeing",BRUNEL CARE HOME,09/07/2018,1604.00
Bath and North East Somerset Council,80781720,LM6,Nursing Care,P11,"Adult Care, Health & Wellbeing",BRUNEL CARE HOME,09/07/2018,1987.50
Bath and North East Somerset Council,80781275,LM6,Nursing Care,P11,"Adult Care, Health & Wellbeing",BRUNEL CARE HOME,09/07/2018,2400.00
Bath and North East Somerset Council,80781687,LM6,Nursing Care,P11,"Adult Care, Health & Wellbeing",BRUNELCARE WELFARE,09/07/2018,1988.50
Bath and North East Somerset Council,80781620,LM6,Nursing Care,P11,"Adult Care, Health & Wellbeing",BYBROOK HOUSE,09/07/2018,316.32
Bath and North East Somerset Council,80781620,LM6,Nursing Care,P11,"Adult Care, Health & Wellbeing",BYBROOK HOUSE,09/07/2018,316.32
Bath and North East Somerset Council,80781620,LM6,Nursing Care,P11,"Adult Care, Health & Wellbeing",BYBROOK HOUSE,09/07/2018,316.32
Bath and North East Somerset Council,80781620,LM6,Nursing Care,P11,"Adult Care, Health & Wellbeing",BYBROOK HOUSE,09/07/2018,316.32
Bath and North East Somerset Council,80781620,LM6,Nursing Care,P11,"Adult Care, Health & Wellbeing",BYBROOK HOUSE,09/07/2018,316.32
Bath and North East Somerset Council,80781651,LM6,Nursing Care,P11,"Adult Care, Health & Wellbeing",BYBROOK HOUSE,09/07/2018,1382.50
Bath and North East Somerset Council,80781651,LM6,Nursing Care,P11,"Adult Care, Health & Wellbeing",BYBROOK HOUSE,09/07/2018,1500.00
Bath and North East Somerset Council,80781674,LM3,Residential Care,P11,"Adult Care, Health & Wellbeing",C.H.O.I.C.E LTD,09/07/2018,4450.22
Bath and North East Somerset Council,80781757,LM3,Residential Care,P11,"Adult Care, Health & Wellbeing",CAMBIAN AUTISM SERVICES LTD,09/07/2018,4483.00
Bath and North East Somerset Council,80781700,LM3,Residential Care,P11,"Adult Care, Health & Wellbeing",CAMPANIA CARE HOME,09/07/2018,1500.00
Bath and North East Somerset Council,80781699,LM3,Residential Care,P11,"Adult Care, Health & Wellbeing",CAMPHILL DEVON COMMUNITY LTD,09/07/2018,1795.92
Bath and North East Somerset Council,80781632,LM6,Nursing Care,P11,"Adult Care, Health & Wellbeing",CARE FIRST CARE HOMES LTD,09/07/2018,316.32
Bath and North East Somerset Council,80781632,LM6,Nursing Care,P11,"Adult Care, Health & Wellbeing",CARE FIRST CARE HOMES LTD,09/07/2018,316.32
Bath and North East Somerset Council,80781632,LM6,Nursing Care,P11,"Adult Care, Health & Wellbeing",CARE FIRST CARE HOMES LTD,09/07/2018,316.32
Bath and North East Somerset Council,80781632,LM6,Nursing Care,P11,"Adult Care, Health & Wellbeing",CARE FIRST CARE HOMES LTD,09/07/2018,316.32
Bath and North East Somerset Council,80781632,LM6,Nursing Care,P11,"Adult Care, Health & Wellbeing",CARE FIRST CARE HOMES LTD,09/07/2018,316.32
Bath and North East Somerset Council,80781632,LM6,Nursing Care,P11,"Adult Care, Health & Wellbeing",CARE FIRST CARE HOMES LTD,09/07/2018,316.32
Bath and North East Somerset Council,80781632,LM6,Nursing Care,P11,"Adult Care, Health & Wellbeing",CARE FIRST CARE HOMES LTD,09/07/2018,316.32
Bath and North East Somerset Council,80781632,LM6,Nursing Care,P11,"Adult Care, Health & Wellbeing",CARE FIRST CARE HOMES LTD,09/07/2018,316.32
Bath and North East Somerset Council,80781632,LM6,Nursing Care,P11,"Adult Care, Health & Wellbeing",CARE FIRST CARE HOMES LTD,09/07/2018,316.32
Bath and North East Somerset Council,80781632,LM6,Nursing Care,P11,"Adult Care, Health & Wellbeing",CARE FIRST CARE HOMES LTD,09/07/2018,316.32
Bath and North East Somerset Council,80781632,LM6,Nursing Care,P11,"Adult Care, Health & Wellbeing",CARE FIRST CARE HOMES LTD,09/07/2018,316.32
Bath and North East Somerset Council,80781632,LM6,Nursing Care,P11,"Adult Care, Health & Wellbeing",CARE FIRST CARE HOMES LTD,09/07/2018,316.32
Bath and North East Somerset Council,80781790,LM6,Nursing Care,P11,"Adult Care, Health & Wellbeing",CARE FIRST CARE HOMES LTD,09/07/2018,1123.02
Bath and North East Somerset Council,80781790,LM6,Nursing Care,P11,"Adult Care, Health & Wellbeing",CARE FIRST CARE HOMES LTD,09/07/2018,1123.02
Bath and North East Somerset Council,80781790,LM3,Residential Care,P11,"Adult Care, Health & Wellbeing",CARE FIRST CARE HOMES LTD,09/07/2018,1328.00
Bath and North East Somerset Council,80781790,LM3,Residential Care,P11,"Adult Care, Health & Wellbeing",CARE FIRST CARE HOMES LTD,09/07/2018,1474.42
Bath and North East Somerset Council,80781749,LM3,Residential Care,P11,"Adult Care, Health & Wellbeing",CARE SERVICES (BOURNEMOUTH) LTD,09/07/2018,2200.00
Bath and North East Somerset Council,80781721,LM3,Residential Care,P11,"Adult Care, Health & Wellbeing",CARE UK COMMUNITY PARTNERSHIPS LTD,09/07/2018,2268.00
Bath and North East Somerset Council,80781276,LM6,Nursing Care,P11,"Adult Care, Health & Wellbeing",CAS BEHAVIOURAL HEALTH LTD,09/07/2018,6687.24
Bath and North East Somerset Council,80781276,LM6,Nursing Care,P11,"Adult Care, Health & Wellbeing",CAS BEHAVIOURAL HEALTH LTD,09/07/2018,7430.32
Bath and North East Somerset Council,80781276,LM6,Nursing Care,P11,"Adult Care, Health & Wellbeing",CAS BEHAVIOURAL HEALTH LTD,09/07/2018,8063.02
Bath and North East Somerset Council,80781276,LM6,Nursing Care,P11,"Adult Care, Health & Wellbeing",CAS BEHAVIOURAL HEALTH LTD,09/07/2018,8799.34
Bath and North East Somerset Council,80781783,LM6,Nursing Care,P11,"Adult Care, Health & Wellbeing",CEDAR CARE HOMES LTD,09/07/2018,58.02
Bath and North East Somerset Council,80781633,LM6,Nursing Care,P11,"Adult Care, Health & Wellbeing",CEDAR CARE HOMES LTD,09/07/2018,90.38
Bath and North East Somerset Council,80781629,LM6,Nursing Care,P11,"Adult Care, Health & Wellbeing",CEDAR CARE HOMES LTD,09/07/2018,316.32
Bath and North East Somerset Council,80781629,LM6,Nursing Care,P11,"Adult Care, Health & Wellbeing",CEDAR CARE HOMES LTD,09/07/2018,316.32
Bath and North East Somerset Council,80781629,LM6,Nursing Care,P11,"Adult Care, Health & Wellbeing",CEDAR CARE HOMES LTD,09/07/2018,316.32
Bath and North East Somerset Council,80781629,LM6,Nursing Care,P11,"Adult Care, Health & Wellbeing",CEDAR CARE HOMES LTD,09/07/2018,316.32
Bath and North East Somerset Council,80781629,LM6,Nursing Care,P11,"Adult Care, Health & Wellbeing",CEDAR CARE HOMES LTD,09/07/2018,316.32
Bath and North East Somerset Council,80781629,LM6,Nursing Care,P11,"Adult Care, Health & Wellbeing",CEDAR CARE HOMES LTD,09/07/2018,316.32
Bath and North East Somerset Council,80781629,LM6,Nursing Care,P11,"Adult Care, Health & Wellbeing",CEDAR CARE HOMES LTD,09/07/2018,316.32
Bath and North East Somerset Council,80781629,LM6,Nursing Care,P11,"Adult Care, Health & Wellbeing",CEDAR CARE HOMES LTD,09/07/2018,316.32
Bath and North East Somerset Council,80781629,LM6,Nursing Care,P11,"Adult Care, Health & Wellbeing",CEDAR CARE HOMES LTD,09/07/2018,316.32
Bath and North East Somerset Council,80781629,LM6,Nursing Care,P11,"Adult Care, Health & Wellbeing",CEDAR CARE HOMES LTD,09/07/2018,316.32
Bath and North East Somerset Council,80781629,LM6,Nursing Care,P11,"Adult Care, Health & Wellbeing",CEDAR CARE HOMES LTD,09/07/2018,316.32
Bath and North East Somerset Council,80781629,LM6,Nursing Care,P11,"Adult Care, Health & Wellbeing",CEDAR CARE HOMES LTD,09/07/2018,316.32
Bath and North East Somerset Council,80781629,LM6,Nursing Care,P11,"Adult Care, Health & Wellbeing",CEDAR CARE HOMES LTD,09/07/2018,316.32
Bath and North East Somerset Council,80781629,LM6,Nursing Care,P11,"Adult Care, Health & Wellbeing",CEDAR CARE HOMES LTD,09/07/2018,316.32
Bath and North East Somerset Council,80781629,LM6,Nursing Care,P11,"Adult Care, Health & Wellbeing",CEDAR CARE HOMES LTD,09/07/2018,316.32
Bath and North East Somerset Council,80781629,LM6,Nursing Care,P11,"Adult Care, Health & Wellbeing",CEDAR CARE HOMES LTD,09/07/2018,316.32
Bath and North East Somerset Council,80781629,LM6,Nursing Care,P11,"Adult Care, Health & Wellbeing",CEDAR CARE HOMES LTD,09/07/2018,316.32
Bath and North East Somerset Council,80781629,LM6,Nursing Care,P11,"Adult Care, Health & Wellbeing",CEDAR CARE HOMES LTD,09/07/2018,316.32
Bath and North East Somerset Council,80781629,LM6,Nursing Care,P11,"Adult Care, Health & Wellbeing",CEDAR CARE HOMES LTD,09/07/2018,316.32
Bath and North East Somerset Council,80781629,LM6,Nursing Care,P11,"Adult Care, Health & Wellbeing",CEDAR CARE HOMES LTD,09/07/2018,316.32
Bath and North East Somerset Council,80781629,LM6,Nursing Care,P11,"Adult Care, Health & Wellbeing",CEDAR CARE HOMES LTD,09/07/2018,316.32
Bath and North East Somerset Council,80781629,LM6,Nursing Care,P11,"Adult Care, Health & Wellbeing",CEDAR CARE HOMES LTD,09/07/2018,316.32
Bath and North East Somerset Council,80781629,LM6,Nursing Care,P11,"Adult Care, Health & Wellbeing",CEDAR CARE HOMES LTD,09/07/2018,316.32
Bath and North East Somerset Council,80781629,LM6,Nursing Care,P11,"Adult Care, Health & Wellbeing",CEDAR CARE HOMES LTD,09/07/2018,316.32
Bath and North East Somerset Council,80781629,LM6,Nursing Care,P11,"Adult Care, Health & Wellbeing",CEDAR CARE HOMES LTD,09/07/2018,316.32
Bath and North East Somerset Council,80781629,LM6,Nursing Care,P11,"Adult Care, Health & Wellbeing",CEDAR CARE HOMES LTD,09/07/2018,316.32
Bath and North East Somerset Council,80781629,LM6,Nursing Care,P11,"Adult Care, Health & Wellbeing",CEDAR CARE HOMES LTD,09/07/2018,316.32
Bath and North East Somerset Council,80781629,LM6,Nursing Care,P11,"Adult Care, Health & Wellbeing",CEDAR CARE HOMES LTD,09/07/2018,316.32
Bath and North East Somerset Council,80781629,LM6,Nursing Care,P11,"Adult Care, Health & Wellbeing",CEDAR CARE HOMES LTD,09/07/2018,316.32
Bath and North East Somerset Council,80781629,LM6,Nursing Care,P11,"Adult Care, Health & Wellbeing",CEDAR CARE HOMES LTD,09/07/2018,316.32
Bath and North East Somerset Council,80781633,LM6,Nursing Care,P11,"Adult Care, Health & Wellbeing",CEDAR CARE HOMES LTD,09/07/2018,316.32
Bath and North East Somerset Council,80781633,LM6,Nursing Care,P11,"Adult Care, Health & Wellbeing",CEDAR CARE HOMES LTD,09/07/2018,316.32
Bath and North East Somerset Council,80781633,LM6,Nursing Care,P11,"Adult Care, Health & Wellbeing",CEDAR CARE HOMES LTD,09/07/2018,316.32
Bath and North East Somerset Council,80781633,LM6,Nursing Care,P11,"Adult Care, Health & Wellbeing",CEDAR CARE HOMES LTD,09/07/2018,316.32
Bath and North East Somerset Council,80781633,LM6,Nursing Care,P11,"Adult Care, Health & Wellbeing",CEDAR CARE HOMES LTD,09/07/2018,316.32
Bath and North East Somerset Council,80781633,LM6,Nursing Care,P11,"Adult Care, Health & Wellbeing",CEDAR CARE HOMES LTD,09/07/2018,316.32
Bath and North East Somerset Council,80781633,LM6,Nursing Care,P11,"Adult Care, Health & Wellbeing",CEDAR CARE HOMES LTD,09/07/2018,316.32
Bath and North East Somerset Council,80781633,LM6,Nursing Care,P11,"Adult Care, Health & Wellbeing",CEDAR CARE HOMES LTD,09/07/2018,316.32
Bath and North East Somerset Council,80781633,LM6,Nursing Care,P11,"Adult Care, Health & Wellbeing",CEDAR CARE HOMES LTD,09/07/2018,316.32
Bath and North East Somerset Council,80781633,LM6,Nursing Care,P11,"Adult Care, Health & Wellbeing",CEDAR CARE HOMES LTD,09/07/2018,316.32
Bath and North East Somerset Council,80781633,LM6,Nursing Care,P11,"Adult Care, Health & Wellbeing",CEDAR CARE HOMES LTD,09/07/2018,316.32
Bath and North East Somerset Council,80781633,LM6,Nursing Care,P11,"Adult Care, Health & Wellbeing",CEDAR CARE HOMES LTD,09/07/2018,316.32
Bath and North East Somerset Council,80781633,LM6,Nursing Care,P11,"Adult Care, Health & Wellbeing",CEDAR CARE HOMES LTD,09/07/2018,316.32
Bath and North East Somerset Council,80781633,LM6,Nursing Care,P11,"Adult Care, Health & Wellbeing",CEDAR CARE HOMES LTD,09/07/2018,316.32
Bath and North East Somerset Council,80781633,LM6,Nursing Care,P11,"Adult Care, Health & Wellbeing",CEDAR CARE HOMES LTD,09/07/2018,316.32
Bath and North East Somerset Council,80781633,LM6,Nursing Care,P11,"Adult Care, Health & Wellbeing",CEDAR CARE HOMES LTD,09/07/2018,316.32
Bath and North East Somerset Council,80781633,LM6,Nursing Care,P11,"Adult Care, Health & Wellbeing",CEDAR CARE HOMES LTD,09/07/2018,316.32
Bath and North East Somerset Council,80781633,LM6,Nursing Care,P11,"Adult Care, Health & Wellbeing",CEDAR CARE HOMES LTD,09/07/2018,316.32
Bath and North East Somerset Council,80781633,LM6,Nursing Care,P11,"Adult Care, Health & Wellbeing",CEDAR CARE HOMES LTD,09/07/2018,316.32
Bath and North East Somerset Council,80781633,LM6,Nursing Care,P11,"Adult Care, Health & Wellbeing",CEDAR CARE HOMES LTD,09/07/2018,316.32
Bath and North East Somerset Council,80781633,LM6,Nursing Care,P11,"Adult Care, Health & Wellbeing",CEDAR CARE HOMES LTD,09/07/2018,316.32
Bath and North East Somerset Council,80781633,LM6,Nursing Care,P11,"Adult Care, Health & Wellbeing",CEDAR CARE HOMES LTD,09/07/2018,316.32
Bath and North East Somerset Council,80781633,LM6,Nursing Care,P11,"Adult Care, Health & Wellbeing",CEDAR CARE HOMES LTD,09/07/2018,316.32
Bath and North East Somerset Council,80781633,LM6,Nursing Care,P11,"Adult Care, Health & Wellbeing",CEDAR CARE HOMES LTD,09/07/2018,316.32
Bath and North East Somerset Council,80781633,LM6,Nursing Care,P11,"Adult Care, Health & Wellbeing",CEDAR CARE HOMES LTD,09/07/2018,316.32
Bath and North East Somerset Council,80781803,LM3,Residential Care,P11,"Adult Care, Health & Wellbeing",CEDAR CARE HOMES LTD,09/07/2018,1157.46
Bath and North East Somerset Council,80781783,LM6,Nursing Care,P11,"Adult Care, Health & Wellbeing",CEDAR CARE HOMES LTD,09/07/2018,1159.38
Bath and North East Somerset Council,80781783,LM6,Nursing Care,P11,"Adult Care, Health & Wellbeing",CEDAR CARE HOMES LTD,09/07/2018,1159.38
Bath and North East Somerset Council,80781783,LM6,Nursing Care,P11,"Adult Care, Health & Wellbeing",CEDAR CARE HOMES LTD,09/07/2018,1169.80
Bath and North East Somerset Council,80781783,LM3,Residential Care,P11,"Adult Care, Health & Wellbeing",CEDAR CARE HOMES LTD,09/07/2018,1173.06
Bath and North East Somerset Council,80781791,LM6,Nursing Care,P11,"Adult Care, Health & Wellbeing",CEDAR CARE HOMES LTD,09/07/2018,1310.40
Bath and North East Somerset Council,80781685,LM6,Nursing Care,P11,"Adult Care, Health & Wellbeing",CEDAR CARE HOMES LTD,09/07/2018,1416.00
Bath and North East Somerset Council,80781783,LM6,Nursing Care,P11,"Adult Care, Health & Wellbeing",CEDAR CARE HOMES LTD,09/07/2018,1416.40
Bath and North East Somerset Council,80781783,LM6,Nursing Care,P11,"Adult Care, Health & Wellbeing",CEDAR CARE HOMES LTD,09/07/2018,1419.90
Bath and North East Somerset Council,80781791,LM6,Nursing Care,P11,"Adult Care, Health & Wellbeing",CEDAR CARE HOMES LTD,09/07/2018,1429.90
Bath and North East Somerset Council,80781783,LM6,Nursing Care,P11,"Adult Care, Health & Wellbeing",CEDAR CARE HOMES LTD,09/07/2018,1432.40
Bath and North East Somerset Council,80781791,LM6,Nursing Care,P11,"Adult Care, Health & Wellbeing",CEDAR CARE HOMES LTD,09/07/2018,1441.14
Bath and North East Somerset Council,80781783,LM6,Nursing Care,P11,"Adult Care, Health & Wellbeing",CEDAR CARE HOMES LTD,09/07/2018,1478.40
Bath and North East Somerset Council,80781783,LM6,Nursing Care,P11,"Adult Care, Health & Wellbeing",CEDAR CARE HOMES LTD,09/07/2018,1479.90
Bath and North East Somerset Council,80781783,LM6,Nursing Care,P11,"Adult Care, Health & Wellbeing",CEDAR CARE HOMES LTD,09/07/2018,1496.40
Bath and North East Somerset Council,80781783,LM6,Nursing Care,P11,"Adult Care, Health & Wellbeing",CEDAR CARE HOMES LTD,09/07/2018,1496.40
Bath and North East Somerset Council,80781791,LM6,Nursing Care,P11,"Adult Care, Health & Wellbeing",CEDAR CARE HOMES LTD,09/07/2018,1496.40
Bath and North East Somerset Council,80781783,LM6,Nursing Care,P11,"Adult Care, Health & Wellbeing",CEDAR CARE HOMES LTD,09/07/2018,1679.90
Bath and North East Somerset Council,80781783,LM6,Nursing Care,P11,"Adult Care, Health & Wellbeing",CEDAR CARE HOMES LTD,09/07/2018,1692.40
Bath and North East Somerset Council,80781803,LM3,Residential Care,P11,"Adult Care, Health & Wellbeing",CEDAR CARE HOMES LTD,09/07/2018,1700.00
Bath and North East Somerset Council,80781783,LM6,Nursing Care,P11,"Adult Care, Health & Wellbeing",CEDAR CARE HOMES LTD,09/07/2018,1790.00
Bath and North East Somerset Council,80781783,LM6,Nursing Care,P11,"Adult Care, Health & Wellbeing",CEDAR CARE HOMES LTD,09/07/2018,1790.00
Bath and North East Somerset Council,80781791,LM6,Nursing Care,P11,"Adult Care, Health & Wellbeing",CEDAR CARE HOMES LTD,09/07/2018,1800.00
Bath and North East Somerset Council,80781260,LM6,Nursing Care,P11,"Adult Care, Health & Wellbeing",CEDAR CARE HOMES LTD,09/07/2018,1950.00
Bath and North East Somerset Council,80781791,LM6,Nursing Care,P11,"Adult Care, Health & Wellbeing",CEDAR CARE HOMES LTD,09/07/2018,1970.00
Bath and North East Somerset Council,80781268,LM6,Nursing Care,P11,"Adult Care, Health & Wellbeing",CEDAR CARE HOMES LTD,09/07/2018,2000.00
Bath and North East Somerset Council,80781791,LM6,Nursing Care,P11,"Adult Care, Health & Wellbeing",CEDAR CARE HOMES LTD,09/07/2018,2302.00
Bath and North East Somerset Council,80781629,LM6,Nursing Care,P11,"Adult Care, Health & Wellbeing",CEDAR CARE HOMES LTD,09/07/2018,2815.84
Bath and North East Somerset Council,80781619,LM6,Nursing Care,P11,"Adult Care, Health & Wellbeing",CEDAR PARK NURSING HOME,09/07/2018,316.32
Bath and North East Somerset Council,80781619,LM6,Nursing Care,P11,"Adult Care, Health & Wellbeing",CEDAR PARK NURSING HOME,09/07/2018,316.32
Bath and North East Somerset Council,80781619,LM6,Nursing Care,P11,"Adult Care, Health & Wellbeing",CEDAR PARK NURSING HOME,09/07/2018,316.32
Bath and North East Somerset Council,80781619,LM6,Nursing Care,P11,"Adult Care, Health & Wellbeing",CEDAR PARK NURSING HOME,09/07/2018,316.32
Bath and North East Somerset Council,80781619,LM6,Nursing Care,P11,"Adult Care, Health & Wellbeing",CEDAR PARK NURSING HOME,09/07/2018,316.32
Bath and North East Somerset Council,80781619,LM6,Nursing Care,P11,"Adult Care, Health & Wellbeing",CEDAR PARK NURSING HOME,09/07/2018,316.32
Bath and North East Somerset Council,80781619,LM6,Nursing Care,P11,"Adult Care, Health & Wellbeing",CEDAR PARK NURSING HOME,09/07/2018,316.32
Bath and North East Somerset Council,80781619,LM6,Nursing Care,P11,"Adult Care, Health & Wellbeing",CEDAR PARK NURSING HOME,09/07/2018,316.32
Bath and North East Somerset Council,80781619,LM6,Nursing Care,P11,"Adult Care, Health & Wellbeing",CEDAR PARK NURSING HOME,09/07/2018,316.32
Bath and North East Somerset Council,80781619,LM6,Nursing Care,P11,"Adult Care, Health & Wellbeing",CEDAR PARK NURSING HOME,09/07/2018,316.32
Bath and North East Somerset Council,80781619,LM6,Nursing Care,P11,"Adult Care, Health & Wellbeing",CEDAR PARK NURSING HOME,09/07/2018,316.32
Bath and North East Somerset Council,80781619,LM6,Nursing Care,P11,"Adult Care, Health & Wellbeing",CEDAR PARK NURSING HOME,09/07/2018,316.32
Bath and North East Somerset Council,80781619,LM6,Nursing Care,P11,"Adult Care, Health & Wellbeing",CEDAR PARK NURSING HOME,09/07/2018,316.32
Bath and North East Somerset Council,80781619,LM6,Nursing Care,P11,"Adult Care, Health & Wellbeing",CEDAR PARK NURSING HOME,09/07/2018,316.32
Bath and North East Somerset Council,80781619,LM6,Nursing Care,P11,"Adult Care, Health & Wellbeing",CEDAR PARK NURSING HOME,09/07/2018,316.32
Bath and North East Somerset Council,80781619,LM6,Nursing Care,P11,"Adult Care, Health & Wellbeing",CEDAR PARK NURSING HOME,09/07/2018,316.32
Bath and North East Somerset Council,80781619,LM6,Nursing Care,P11,"Adult Care, Health & Wellbeing",CEDAR PARK NURSING HOME,09/07/2018,316.32
Bath and North East Somerset Council,80781619,LM6,Nursing Care,P11,"Adult Care, Health & Wellbeing",CEDAR PARK NURSING HOME,09/07/2018,316.32
Bath and North East Somerset Council,80781619,LM6,Nursing Care,P11,"Adult Care, Health & Wellbeing",CEDAR PARK NURSING HOME,09/07/2018,316.32
Bath and North East Somerset Council,80781619,LM6,Nursing Care,P11,"Adult Care, Health & Wellbeing",CEDAR PARK NURSING HOME,09/07/2018,316.32
Bath and North East Somerset Council,80781619,LM6,Nursing Care,P11,"Adult Care, Health & Wellbeing",CEDAR PARK NURSING HOME,09/07/2018,316.32
Bath and North East Somerset Council,80781619,LM6,Nursing Care,P11,"Adult Care, Health & Wellbeing",CEDAR PARK NURSING HOME,09/07/2018,316.32
Bath and North East Somerset Council,80781619,LM6,Nursing Care,P11,"Adult Care, Health & Wellbeing",CEDAR PARK NURSING HOME,09/07/2018,316.32
Bath and North East Somerset Council,80781619,LM6,Nursing Care,P11,"Adult Care, Health & Wellbeing",CEDAR PARK NURSING HOME,09/07/2018,316.32
Bath and North East Somerset Council,80781619,LM6,Nursing Care,P11,"Adult Care, Health & Wellbeing",CEDAR PARK NURSING HOME,09/07/2018,316.32
Bath and North East Somerset Council,80781768,LM6,Nursing Care,P11,"Adult Care, Health & Wellbeing",CEDAR PARK NURSING HOME,09/07/2018,1123.02
Bath and North East Somerset Council,80781768,LM6,Nursing Care,P11,"Adult Care, Health & Wellbeing",CEDAR PARK NURSING HOME,09/07/2018,1123.02
Bath and North East Somerset Council,80781768,LM6,Nursing Care,P11,"Adult Care, Health & Wellbeing",CEDAR PARK NURSING HOME,09/07/2018,1123.02
Bath and North East Somerset Council,80781768,LM6,Nursing Care,P11,"Adult Care, Health & Wellbeing",CEDAR PARK NURSING HOME,09/07/2018,1123.02
Bath and North East Somerset Council,80781768,LM6,Nursing Care,P11,"Adult Care, Health & Wellbeing",CEDAR PARK NURSING HOME,09/07/2018,1123.02
Bath and North East Somerset Council,80781768,LM6,Nursing Care,P11,"Adult Care, Health & Wellbeing",CEDAR PARK NURSING HOME,09/07/2018,1123.02
Bath and North East Somerset Council,80781768,LM6,Nursing Care,P11,"Adult Care, Health & Wellbeing",CEDAR PARK NURSING HOME,09/07/2018,1147.20
Bath and North East Somerset Council,80781768,LM6,Nursing Care,P11,"Adult Care, Health & Wellbeing",CEDAR PARK NURSING HOME,09/07/2018,1189.74
Bath and North East Somerset Council,80781768,LM6,Nursing Care,P11,"Adult Care, Health & Wellbeing",CEDAR PARK NURSING HOME,09/07/2018,1208.40
Bath and North East Somerset Council,80781768,LM6,Nursing Care,P11,"Adult Care, Health & Wellbeing",CEDAR PARK NURSING HOME,09/07/2018,1344.40
Bath and North East Somerset Council,80781768,LM6,Nursing Care,P11,"Adult Care, Health & Wellbeing",CEDAR PARK NURSING HOME,09/07/2018,1394.40
Bath and North East Somerset Council,80781768,LM6,Nursing Care,P11,"Adult Care, Health & Wellbeing",CEDAR PARK NURSING HOME,09/07/2018,1439.90
Bath and North East Somerset Council,80781768,LM6,Nursing Care,P11,"Adult Care, Health & Wellbeing",CEDAR PARK NURSING HOME,09/07/2018,1439.90
Bath and North East Somerset Council,80781768,LM6,Nursing Care,P11,"Adult Care, Health & Wellbeing",CEDAR PARK NURSING HOME,09/07/2018,1439.90
Bath and North East Somerset Council,80781768,LM3,Residential Care,P11,"Adult Care, Health & Wellbeing",CEDAR PARK NURSING HOME,09/07/2018,1440.00
Bath and North East Somerset Council,80781768,LM6,Nursing Care,P11,"Adult Care, Health & Wellbeing",CEDAR PARK NURSING HOME,09/07/2018,1750.00
Bath and North East Somerset Council,80781249,LM6,Nursing Care,P11,"Adult Care, Health & Wellbeing",CEDAR PARK NURSING HOME,09/07/2018,1860.00
Bath and North East Somerset Council,80781619,LM6,Nursing Care,P11,"Adult Care, Health & Wellbeing",CEDAR PARK NURSING HOME,09/07/2018,1988.30
Bath and North East Somerset Council,80781249,LM6,Nursing Care,P11,"Adult Care, Health & Wellbeing",CEDAR PARK NURSING HOME,09/07/2018,2100.00
Bath and North East Somerset Council,80781249,LM6,Nursing Care,P11,"Adult Care, Health & Wellbeing",CEDAR PARK NURSING HOME,09/07/2018,2100.00
Bath and North East Somerset Council,80781249,LM6,Nursing Care,P11,"Adult Care, Health & Wellbeing",CEDAR PARK NURSING HOME,09/07/2018,2442.86
Bath and North East Somerset Council,80781818,LM6,Nursing Care,P11,"Adult Care, Health & Wellbeing",CEDAR PARK NURSING HOME,09/07/2018,2486.69
Bath and North East Somerset Council,80781818,LM6,Nursing Care,P11,"Adult Care, Health & Wellbeing",CEDAR PARK NURSING HOME,09/07/2018,2486.69
Bath and North East Somerset Council,80781818,LM6,Nursing Care,P11,"Adult Care, Health & Wellbeing",CEDAR PARK NURSING HOME,09/07/2018,2486.69
Bath and North East Somerset Council,80781702,LM6,Nursing Care,P11,"Adult Care, Health & Wellbeing",CEDARS CARE (WINSCOMBE HALL) LTD,09/07/2018,994.00
Bath and North East Somerset Council,80781729,LM3,Residential Care,P11,"Adult Care, Health & Wellbeing",CHASE LODGE CARE HOME,09/07/2018,1446.00
Bath and North East Somerset Council,80781634,LM6,Nursing Care,P11,"Adult Care, Health & Wellbeing",CHERRY GARDEN PROPERTIES LTD,09/07/2018,316.32
Bath and North East Somerset Council,80781634,LM6,Nursing Care,P11,"Adult Care, Health & Wellbeing",CHERRY GARDEN PROPERTIES LTD,09/07/2018,316.32
Bath and North East Somerset Council,80781634,LM6,Nursing Care,P11,"Adult Care, Health & Wellbeing",CHERRY GARDEN PROPERTIES LTD,09/07/2018,316.32
Bath and North East Somerset Council,80781634,LM6,Nursing Care,P11,"Adult Care, Health & Wellbeing",CHERRY GARDEN PROPERTIES LTD,09/07/2018,316.32
Bath and North East Somerset Council,80781634,LM6,Nursing Care,P11,"Adult Care, Health & Wellbeing",CHERRY GARDEN PROPERTIES LTD,09/07/2018,316.32
Bath and North East Somerset Council,80781634,LM6,Nursing Care,P11,"Adult Care, Health & Wellbeing",CHERRY GARDEN PROPERTIES LTD,09/07/2018,316.32
Bath and North East Somerset Council,80781634,LM6,Nursing Care,P11,"Adult Care, Health & Wellbeing",CHERRY GARDEN PROPERTIES LTD,09/07/2018,316.32
Bath and North East Somerset Council,80781634,LM6,Nursing Care,P11,"Adult Care, Health & Wellbeing",CHERRY GARDEN PROPERTIES LTD,09/07/2018,316.32
Bath and North East Somerset Council,80781634,LM6,Nursing Care,P11,"Adult Care, Health & Wellbeing",CHERRY GARDEN PROPERTIES LTD,09/07/2018,316.32
Bath and North East Somerset Council,80781634,LM6,Nursing Care,P11,"Adult Care, Health & Wellbeing",CHERRY GARDEN PROPERTIES LTD,09/07/2018,316.32
Bath and North East Somerset Council,80781634,LM6,Nursing Care,P11,"Adult Care, Health & Wellbeing",CHERRY GARDEN PROPERTIES LTD,09/07/2018,316.32
Bath and North East Somerset Council,80781634,LM6,Nursing Care,P11,"Adult Care, Health & Wellbeing",CHERRY GARDEN PROPERTIES LTD,09/07/2018,316.32
Bath and North East Somerset Council,80781634,LM6,Nursing Care,P11,"Adult Care, Health & Wellbeing",CHERRY GARDEN PROPERTIES LTD,09/07/2018,316.32
Bath and North East Somerset Council,80781634,LM6,Nursing Care,P11,"Adult Care, Health & Wellbeing",CHERRY GARDEN PROPERTIES LTD,09/07/2018,316.32
Bath and North East Somerset Council,80781634,LM6,Nursing Care,P11,"Adult Care, Health & Wellbeing",CHERRY GARDEN PROPERTIES LTD,09/07/2018,316.32
Bath and North East Somerset Council,80781634,LM6,Nursing Care,P11,"Adult Care, Health & Wellbeing",CHERRY GARDEN PROPERTIES LTD,09/07/2018,316.32
Bath and North East Somerset Council,80781634,LM6,Nursing Care,P11,"Adult Care, Health & Wellbeing",CHERRY GARDEN PROPERTIES LTD,09/07/2018,316.32
Bath and North East Somerset Council,80781634,LM6,Nursing Care,P11,"Adult Care, Health & Wellbeing",CHERRY GARDEN PROPERTIES LTD,09/07/2018,316.32
Bath and North East Somerset Council,80781634,LM6,Nursing Care,P11,"Adult Care, Health & Wellbeing",CHERRY GARDEN PROPERTIES LTD,09/07/2018,316.32
Bath and North East Somerset Council,80781634,LM6,Nursing Care,P11,"Adult Care, Health & Wellbeing",CHERRY GARDEN PROPERTIES LTD,09/07/2018,316.32
Bath and North East Somerset Council,80781634,LM6,Nursing Care,P11,"Adult Care, Health & Wellbeing",CHERRY GARDEN PROPERTIES LTD,09/07/2018,316.32
Bath and North East Somerset Council,80781634,LM6,Nursing Care,P11,"Adult Care, Health & Wellbeing",CHERRY GARDEN PROPERTIES LTD,09/07/2018,316.32
Bath and North East Somerset Council,80781634,LM6,Nursing Care,P11,"Adult Care, Health & Wellbeing",CHERRY GARDEN PROPERTIES LTD,09/07/2018,316.32
Bath and North East Somerset Council,80781795,LM3,Residential Care,P11,"Adult Care, Health & Wellbeing",CHERRY GARDEN PROPERTIES LTD,09/07/2018,1117.06
Bath and North East Somerset Council,80781795,LM6,Nursing Care,P11,"Adult Care, Health & Wellbeing",CHERRY GARDEN PROPERTIES LTD,09/07/2018,1123.02
Bath and North East Somerset Council,80781795,LM6,Nursing Care,P11,"Adult Care, Health & Wellbeing",CHERRY GARDEN PROPERTIES LTD,09/07/2018,1123.02
Bath and North East Somerset Council,80781795,LM6,Nursing Care,P11,"Adult Care, Health & Wellbeing",CHERRY GARDEN PROPERTIES LTD,09/07/2018,1123.02
Bath and North East Somerset Council,80781795,LM6,Nursing Care,P11,"Adult Care, Health & Wellbeing",CHERRY GARDEN PROPERTIES LTD,09/07/2018,1123.02
Bath and North East Somerset Council,80781795,LM3,Residential Care,P11,"Adult Care, Health & Wellbeing",CHERRY GARDEN PROPERTIES LTD,09/07/2018,1370.00
Bath and North East Somerset Council,80781795,LM3,Residential Care,P11,"Adult Care, Health & Wellbeing",CHERRY GARDEN PROPERTIES LTD,09/07/2018,1400.00
Bath and North East Somerset Council,80781795,LM6,Nursing Care,P11,"Adult Care, Health & Wellbeing",CHERRY GARDEN PROPERTIES LTD,09/07/2018,1474.50
Bath and North East Somerset Council,80781795,LM6,Nursing Care,P11,"Adult Care, Health & Wellbeing",CHERRY GARDEN PROPERTIES LTD,09/07/2018,1478.00
Bath and North East Somerset Council,80781271,LM6,Nursing Care,P11,"Adult Care, Health & Wellbeing",CHERRY GARDEN PROPERTIES LTD,09/07/2018,1770.00
Bath and North East Somerset Council,80781271,LM6,Nursing Care,P11,"Adult Care, Health & Wellbeing",CHERRY GARDEN PROPERTIES LTD,09/07/2018,1770.00
Bath and North East Somerset Council,80781686,LM3,Residential Care,P11,"Adult Care, Health & Wellbeing",CHERRY ORCHARDS [CAMPHILL] COMMUNITY LTD,09/07/2018,3248.00
Bath and North East Somerset Council,80781650,LM3,Residential Care,P11,"Adult Care, Health & Wellbeing",CHESCOMBE TRUST,09/07/2018,3168.60
Bath and North East Somerset Council,80781739,LM3,Residential Care,P11,"Adult Care, Health & Wellbeing",CHOICE LTD,09/07/2018,4161.52
Bath and North East Somerset Council,80781262,LM3,Residential Care,P11,"Adult Care, Health & Wellbeing",CHOICE LTD,09/07/2018,4234.00
Bath and North East Somerset Council,80781717,LM6,Nursing Care,P11,"Adult Care, Health & Wellbeing",CHOLWELL CARE (NAILSEA) LTD,09/07/2018,1410.00
Bath and North East Somerset Council,80781273,LM6,Nursing Care,P11,"Adult Care, Health & Wellbeing",CHOLWELL CARE (NAILSEA) LTD,09/07/2018,1700.00
Bath and North East Somerset Council,80781615,LM6,Nursing Care,P11,"Adult Care, Health & Wellbeing",CHOLWELL HOUSE NURSING HOME,09/07/2018,316.32
Bath and North East Somerset Council,80781615,LM6,Nursing Care,P11,"Adult Care, Health & Wellbeing",CHOLWELL HOUSE NURSING HOME,09/07/2018,316.32
Bath and North East Somerset Council,80781615,LM6,Nursing Care,P11,"Adult Care, Health & Wellbeing",CHOLWELL HOUSE NURSING HOME,09/07/2018,316.32
Bath and North East Somerset Council,80781615,LM6,Nursing Care,P11,"Adult Care, Health & Wellbeing",CHOLWELL HOUSE NURSING HOME,09/07/2018,316.32
Bath and North East Somerset Council,80781615,LM6,Nursing Care,P11,"Adult Care, Health & Wellbeing",CHOLWELL HOUSE NURSING HOME,09/07/2018,316.32
Bath and North East Somerset Council,80781615,LM6,Nursing Care,P11,"Adult Care, Health & Wellbeing",CHOLWELL HOUSE NURSING HOME,09/07/2018,316.32
Bath and North East Somerset Council,80781615,LM6,Nursing Care,P11,"Adult Care, Health & Wellbeing",CHOLWELL HOUSE NURSING HOME,09/07/2018,316.32
Bath and North East Somerset Council,80781615,LM6,Nursing Care,P11,"Adult Care, Health & Wellbeing",CHOLWELL HOUSE NURSING HOME,09/07/2018,316.32
Bath and North East Somerset Council,80781615,LM6,Nursing Care,P11,"Adult Care, Health & Wellbeing",CHOLWELL HOUSE NURSING HOME,09/07/2018,316.32
Bath and North East Somerset Council,80781615,LM6,Nursing Care,P11,"Adult Care, Health & Wellbeing",CHOLWELL HOUSE NURSING HOME,09/07/2018,316.32
Bath and North East Somerset Council,80781615,LM6,Nursing Care,P11,"Adult Care, Health & Wellbeing",CHOLWELL HOUSE NURSING HOME,09/07/2018,316.32
Bath and North East Somerset Council,80781615,LM6,Nursing Care,P11,"Adult Care, Health & Wellbeing",CHOLWELL HOUSE NURSING HOME,09/07/2018,316.32
Bath and North East Somerset Council,80781615,LM6,Nursing Care,P11,"Adult Care, Health & Wellbeing",CHOLWELL HOUSE NURSING HOME,09/07/2018,316.32
Bath and North East Somerset Council,80781615,LM6,Nursing Care,P11,"Adult Care, Health & Wellbeing",CHOLWELL HOUSE NURSING HOME,09/07/2018,316.32
Bath and North East Somerset Council,80781615,LM6,Nursing Care,P11,"Adult Care, Health & Wellbeing",CHOLWELL HOUSE NURSING HOME,09/07/2018,316.32
Bath and North East Somerset Council,80781615,LM6,Nursing Care,P11,"Adult Care, Health & Wellbeing",CHOLWELL HOUSE NURSING HOME,09/07/2018,316.32
Bath and North East Somerset Council,80781615,LM6,Nursing Care,P11,"Adult Care, Health & Wellbeing",CHOLWELL HOUSE NURSING HOME,09/07/2018,316.32
Bath and North East Somerset Council,80781615,LM6,Nursing Care,P11,"Adult Care, Health & Wellbeing",CHOLWELL HOUSE NURSING HOME,09/07/2018,316.32
Bath and North East Somerset Council,80781615,LM6,Nursing Care,P11,"Adult Care, Health & Wellbeing",CHOLWELL HOUSE NURSING HOME,09/07/2018,316.32
Bath and North East Somerset Council,80781615,LM6,Nursing Care,P11,"Adult Care, Health & Wellbeing",CHOLWELL HOUSE NURSING HOME,09/07/2018,316.32
Bath and North East Somerset Council,80781615,LM6,Nursing Care,P11,"Adult Care, Health & Wellbeing",CHOLWELL HOUSE NURSING HOME,09/07/2018,316.32
Bath and North East Somerset Council,80781615,LM6,Nursing Care,P11,"Adult Care, Health & Wellbeing",CHOLWELL HOUSE NURSING HOME,09/07/2018,316.32
Bath and North East Somerset Council,80781615,LM6,Nursing Care,P11,"Adult Care, Health & Wellbeing",CHOLWELL HOUSE NURSING HOME,09/07/2018,316.32
Bath and North East Somerset Council,80781615,LM6,Nursing Care,P11,"Adult Care, Health & Wellbeing",CHOLWELL HOUSE NURSING HOME,09/07/2018,316.32
Bath and North East Somerset Council,80781615,LM6,Nursing Care,P11,"Adult Care, Health & Wellbeing",CHOLWELL HOUSE NURSING HOME,09/07/2018,316.32
Bath and North East Somerset Council,80781615,LM6,Nursing Care,P11,"Adult Care, Health & Wellbeing",CHOLWELL HOUSE NURSING HOME,09/07/2018,316.32
Bath and North East Somerset Council,80781763,LM6,Nursing Care,P11,"Adult Care, Health & Wellbeing",CHOLWELL HOUSE NURSING HOME,09/07/2018,1258.40
Bath and North East Somerset Council,80781763,LM6,Nursing Care,P11,"Adult Care, Health & Wellbeing",CHOLWELL HOUSE NURSING HOME,09/07/2018,1442.40
Bath and North East Somerset Council,80781763,LM6,Nursing Care,P11,"Adult Care, Health & Wellbeing",CHOLWELL HOUSE NURSING HOME,09/07/2018,1478.40
Bath and North East Somerset Council,80781763,LM6,Nursing Care,P11,"Adult Care, Health & Wellbeing",CHOLWELL HOUSE NURSING HOME,09/07/2018,1502.40
Bath and North East Somerset Council,80781763,LM6,Nursing Care,P11,"Adult Care, Health & Wellbeing",CHOLWELL HOUSE NURSING HOME,09/07/2018,1502.50
Bath and North East Somerset Council,80781245,LM6,Nursing Care,P11,"Adult Care, Health & Wellbeing",CHOLWELL HOUSE NURSING HOME,09/07/2018,1700.00
Bath and North East Somerset Council,80781245,LM6,Nursing Care,P11,"Adult Care, Health & Wellbeing",CHOLWELL HOUSE NURSING HOME,09/07/2018,1812.00
Bath and North East Somerset Council,80781615,LM6,Nursing Care,P11,"Adult Care, Health & Wellbeing",CHOLWELL HOUSE NURSING HOME,09/07/2018,2146.46
Bath and North East Somerset Council,80781245,LM6,Nursing Care,P11,"Adult Care, Health & Wellbeing",CHOLWELL HOUSE NURSING HOME,09/07/2018,2522.10
Bath and North East Somerset Council,80781245,LM6,Nursing Care,P11,"Adult Care, Health & Wellbeing",CHOLWELL HOUSE NURSING HOME,09/07/2018,4052.00
Bath and North East Somerset Council,80781637,LM6,Nursing Care,P11,"Adult Care, Health & Wellbeing",ST MONICAS GENERAL ACCOUNT,09/07/2018,316.32
Bath and North East Somerset Council,80781637,LM6,Nursing Care,P11,"Adult Care, Health & Wellbeing",ST MONICAS GENERAL ACCOUNT,09/07/2018,316.32
Bath and North East Somerset Council,80781637,LM6,Nursing Care,P11,"Adult Care, Health & Wellbeing",ST MONICAS GENERAL ACCOUNT,09/07/2018,316.32
Bath and North East Somerset Council,80781637,LM6,Nursing Care,P11,"Adult Care, Health & Wellbeing",ST MONICAS GENERAL ACCOUNT,09/07/2018,316.32
Bath and North East Somerset Council,80781637,LM6,Nursing Care,P11,"Adult Care, Health & Wellbeing",ST MONICAS GENERAL ACCOUNT,09/07/2018,316.32
Bath and North East Somerset Council,80781637,LM6,Nursing Care,P11,"Adult Care, Health & Wellbeing",ST MONICAS GENERAL ACCOUNT,09/07/2018,316.32
Bath and North East Somerset Council,80781325,LL8,Individualised Budget,P11,"Adult Care, Health & Wellbeing",REDACTED,09/07/2018,1025.16
Bath and North East Somerset Council,80781659,LM3,Residential Care,P11,"Adult Care, Health & Wellbeing",COCKLEBURY FARMHOUSE,09/07/2018,3835.78
Bath and North East Somerset Council,80781263,LM6,Nursing Care,P11,"Adult Care, Health & Wellbeing",COMMUNITY OF ST ANTONY & ST ELIAS & REV,09/07/2018,3330.00
Bath and North East Somerset Council,80781813,LL3,Supported Living,P11,"Adult Care, Health & Wellbeing",COMMUNITY OF ST ANTONY & ST ELIAS & REV,09/07/2018,3910.48
Bath and North East Somerset Council,80781789,LM3,Residential Care,P11,"Adult Care, Health & Wellbeing",CONSENSUS SUPPORT SERVICES LTD,09/07/2018,4058.30
Bath and North East Somerset Council,80781789,LM3,Residential Care,P11,"Adult Care, Health & Wellbeing",CONSENSUS SUPPORT SERVICES LTD,09/07/2018,4141.24
Bath and North East Somerset Council,80781789,LM3,Residential Care,P11,"Adult Care, Health & Wellbeing",CONSENSUS SUPPORT SERVICES LTD,09/07/2018,4224.20
Bath and North East Somerset Council,80781789,LM3,Residential Care,P11,"Adult Care, Health & Wellbeing",CONSENSUS SUPPORT SERVICES LTD,09/07/2018,4224.20
Bath and North East Somerset Council,80781789,LM3,Residential Care,P11,"Adult Care, Health & Wellbeing",CONSENSUS SUPPORT SERVICES LTD,09/07/2018,8297.00
Bath and North East Somerset Council,80781661,LM3,Residential Care,P11,"Adult Care, Health & Wellbeing",CORNERSTONES UK LTD,09/07/2018,1572.20
Bath and North East Somerset Council,80781681,LM3,Residential Care,P11,"Adult Care, Health & Wellbeing",CORNERSTONES UK LTD,09/07/2018,3059.00
Bath and North East Somerset Council,80781683,LM3,Residential Care,P11,"Adult Care, Health & Wellbeing",CRAEGMOOR FACILITIES - REDACTED,09/07/2018,3527.42
Bath and North East Somerset Council,80781697,LM3,Residential Care,P11,"Adult Care, Health & Wellbeing",CRAEGMOOR FACILITIES - CHERRYWOOD HOU,09/07/2018,1658.98
Bath and North East Somerset Council,80781762,LM3,Residential Care,P11,"Adult Care, Health & Wellbeing",CRAEGMOOR FACILITIES - ELM TREE HOUSE,09/07/2018,2094.88
Bath and North East Somerset Council,80781762,LM3,Residential Care,P11,"Adult Care, Health & Wellbeing",CRAEGMOOR FACILITIES - ELM TREE HOUSE,09/07/2018,2391.76
Bath and North East Somerset Council,80781660,LM3,Residential Care,P11,"Adult Care, Health & Wellbeing",CRAEGMOOR FACILITIES - OLD VICARAGE,09/07/2018,2575.58
Bath and North East Somerset Council,80781727,LM3,Residential Care,P11,"Adult Care, Health & Wellbeing",CRAEGMOOR FACILITIES CO LTD,09/07/2018,3286.86
Bath and North East Somerset Council,80781618,LM6,Nursing Care,P11,"Adult Care, Health & Wellbeing",CRANHILL NURSING HOME LTD,09/07/2018,45.19
Bath and North East Somerset Council,80781767,XD3,Client Contributions,P11,"Adult Care, Health & Wellbeing",CRANHILL NURSING HOME LTD,09/07/2018,64.16
Bath and North East Somerset Council,80781767,LM6,Nursing Care,P11,"Adult Care, Health & Wellbeing",CRANHILL NURSING HOME LTD,09/07/2018,160.43
Bath and North East Somerset Council,80781618,LM6,Nursing Care,P11,"Adult Care, Health & Wellbeing",CRANHILL NURSING HOME LTD,09/07/2018,316.32
Bath and North East Somerset Council,80781618,LM6,Nursing Care,P11,"Adult Care, Health & Wellbeing",CRANHILL NURSING HOME LTD,09/07/2018,316.32
Bath and North East Somerset Council,80781618,LM6,Nursing Care,P11,"Adult Care, Health & Wellbeing",CRANHILL NURSING HOME LTD,09/07/2018,316.32
Bath and North East Somerset Council,80781618,LM6,Nursing Care,P11,"Adult Care, Health & Wellbeing",CRANHILL NURSING HOME LTD,09/07/2018,316.32
Bath and North East Somerset Council,80781618,LM6,Nursing Care,P11,"Adult Care, Health & Wellbeing",CRANHILL NURSING HOME LTD,09/07/2018,316.32
Bath and North East Somerset Council,80781618,LM6,Nursing Care,P11,"Adult Care, Health & Wellbeing",CRANHILL NURSING HOME LTD,09/07/2018,316.32
Bath and North East Somerset Council,80781618,LM6,Nursing Care,P11,"Adult Care, Health & Wellbeing",CRANHILL NURSING HOME LTD,09/07/2018,316.32
Bath and North East Somerset Council,80781618,LM6,Nursing Care,P11,"Adult Care, Health & Wellbeing",CRANHILL NURSING HOME LTD,09/07/2018,316.32
Bath and North East Somerset Council,80781618,LM6,Nursing Care,P11,"Adult Care, Health & Wellbeing",CRANHILL NURSING HOME LTD,09/07/2018,316.32
Bath and North East Somerset Council,80781618,LM6,Nursing Care,P11,"Adult Care, Health & Wellbeing",CRANHILL NURSING HOME LTD,09/07/2018,316.32
Bath and North East Somerset Council,80781618,LM6,Nursing Care,P11,"Adult Care, Health & Wellbeing",CRANHILL NURSING HOME LTD,09/07/2018,316.32
Bath and North East Somerset Council,80781618,LM6,Nursing Care,P11,"Adult Care, Health & Wellbeing",CRANHILL NURSING HOME LTD,09/07/2018,316.32
Bath and North East Somerset Council,80781618,LM6,Nursing Care,P11,"Adult Care, Health & Wellbeing",CRANHILL NURSING HOME LTD,09/07/2018,316.32
Bath and North East Somerset Council,80781618,LM6,Nursing Care,P11,"Adult Care, Health & Wellbeing",CRANHILL NURSING HOME LTD,09/07/2018,316.32
Bath and North East Somerset Council,80781767,LM6,Nursing Care,P11,"Adult Care, Health & Wellbeing",CRANHILL NURSING HOME LTD,09/07/2018,1496.40
Bath and North East Somerset Council,80781767,LM6,Nursing Care,P11,"Adult Care, Health & Wellbeing",CRANHILL NURSING HOME LTD,09/07/2018,1496.40
Bath and North East Somerset Council,80781248,LM6,Nursing Care,P11,"Adult Care, Health & Wellbeing",CRANHILL NURSING HOME LTD,09/07/2018,1790.00
Bath and North East Somerset Council,80781707,LM3,Residential Care,P11,"Adult Care, Health & Wellbeing",CREAM HOLDING (TAUNTON) LTD,09/07/2018,5252.76
Bath and North East Somerset Council,80781693,LM3,Residential Care,P11,"Adult Care, Health & Wellbeing",CREAM I LTD,09/07/2018,5422.84
Bath and North East Somerset Council,80781724,LM3,Residential Care,P11,"Adult Care, Health & Wellbeing",CREAM III LTD,09/07/2018,5111.76
Bath and North East Somerset Council,80781621,LM6,Nursing Care,P11,"Adult Care, Health & Wellbeing",CULVERHAY NURSING HOME,09/07/2018,316.32
Bath and North East Somerset Council,80781621,LM6,Nursing Care,P11,"Adult Care, Health & Wellbeing",CULVERHAY NURSING HOME,09/07/2018,316.32
Bath and North East Somerset Council,80781621,LM6,Nursing Care,P11,"Adult Care, Health & Wellbeing",CULVERHAY NURSING HOME,09/07/2018,316.32
Bath and North East Somerset Council,80781621,LM6,Nursing Care,P11,"Adult Care, Health & Wellbeing",CULVERHAY NURSING HOME,09/07/2018,316.32
Bath and North East Somerset Council,80781621,LM6,Nursing Care,P11,"Adult Care, Health & Wellbeing",CULVERHAY NURSING HOME,09/07/2018,316.32
Bath and North East Somerset Council,80781621,LM6,Nursing Care,P11,"Adult Care, Health & Wellbeing",CULVERHAY NURSING HOME,09/07/2018,316.32
Bath and North East Somerset Council,80781621,LM6,Nursing Care,P11,"Adult Care, Health & Wellbeing",CULVERHAY NURSING HOME,09/07/2018,316.32
Bath and North East Somerset Council,80781621,LM6,Nursing Care,P11,"Adult Care, Health & Wellbeing",CULVERHAY NURSING HOME,09/07/2018,316.32
Bath and North East Somerset Council,80781621,LM6,Nursing Care,P11,"Adult Care, Health & Wellbeing",CULVERHAY NURSING HOME,09/07/2018,316.32
Bath and North East Somerset Council,80781621,LM6,Nursing Care,P11,"Adult Care, Health & Wellbeing",CULVERHAY NURSING HOME,09/07/2018,316.32
Bath and North East Somerset Council,80781621,LM6,Nursing Care,P11,"Adult Care, Health & Wellbeing",CULVERHAY NURSING HOME,09/07/2018,316.32
Bath and North East Somerset Council,80781621,LM6,Nursing Care,P11,"Adult Care, Health & Wellbeing",CULVERHAY NURSING HOME,09/07/2018,316.32
Bath and North East Somerset Council,80781621,LM6,Nursing Care,P11,"Adult Care, Health & Wellbeing",CULVERHAY NURSING HOME,09/07/2018,316.32
Bath and North East Somerset Council,80781621,LM6,Nursing Care,P11,"Adult Care, Health & Wellbeing",CULVERHAY NURSING HOME,09/07/2018,316.32
Bath and North East Somerset Council,80781621,LM6,Nursing Care,P11,"Adult Care, Health & Wellbeing",CULVERHAY NURSING HOME,09/07/2018,316.32
Bath and North East Somerset Council,80781621,LM6,Nursing Care,P11,"Adult Care, Health & Wellbeing",CULVERHAY NURSING HOME,09/07/2018,316.32
Bath and North East Somerset Council,80781621,LM6,Nursing Care,P11,"Adult Care, Health & Wellbeing",CULVERHAY NURSING HOME,09/07/2018,316.32
Bath and North East Somerset Council,80781621,LM6,Nursing Care,P11,"Adult Care, Health & Wellbeing",CULVERHAY NURSING HOME,09/07/2018,316.32
Bath and North East Somerset Council,80781621,LM6,Nursing Care,P11,"Adult Care, Health & Wellbeing",CULVERHAY NURSING HOME,09/07/2018,316.32
Bath and North East Somerset Council,80781621,LM6,Nursing Care,P11,"Adult Care, Health & Wellbeing",CULVERHAY NURSING HOME,09/07/2018,316.32
Bath and North East Somerset Council,80781621,LM6,Nursing Care,P11,"Adult Care, Health & Wellbeing",CULVERHAY NURSING HOME,09/07/2018,316.32
Bath and North East Somerset Council,80781621,LM6,Nursing Care,P11,"Adult Care, Health & Wellbeing",CULVERHAY NURSING HOME,09/07/2018,316.32
Bath and North East Somerset Council,80781621,LM6,Nursing Care,P11,"Adult Care, Health & Wellbeing",CULVERHAY NURSING HOME,09/07/2018,316.32
Bath and North East Somerset Council,80781621,LM6,Nursing Care,P11,"Adult Care, Health & Wellbeing",CULVERHAY NURSING HOME,09/07/2018,316.32
Bath and North East Somerset Council,80781621,LM6,Nursing Care,P11,"Adult Care, Health & Wellbeing",CULVERHAY NURSING HOME,09/07/2018,316.32
Bath and North East Somerset Council,80781621,LM6,Nursing Care,P11,"Adult Care, Health & Wellbeing",CULVERHAY NURSING HOME,09/07/2018,316.32
Bath and North East Somerset Council,80781621,LM6,Nursing Care,P11,"Adult Care, Health & Wellbeing",CULVERHAY NURSING HOME,09/07/2018,316.32
Bath and North East Somerset Council,80781621,LM6,Nursing Care,P11,"Adult Care, Health & Wellbeing",CULVERHAY NURSING HOME,09/07/2018,316.32
Bath and North East Somerset Council,80781621,LM6,Nursing Care,P11,"Adult Care, Health & Wellbeing",CULVERHAY NURSING HOME,09/07/2018,316.32
Bath and North East Somerset Council,80781621,LM6,Nursing Care,P11,"Adult Care, Health & Wellbeing",CULVERHAY NURSING HOME,09/07/2018,316.32
Bath and North East Somerset Council,80781621,LM6,Nursing Care,P11,"Adult Care, Health & Wellbeing",CULVERHAY NURSING HOME,09/07/2018,316.32
Bath and North East Somerset Council,80781621,LM6,Nursing Care,P11,"Adult Care, Health & Wellbeing",CULVERHAY NURSING HOME,09/07/2018,316.32
Bath and North East Somerset Council,80781621,LM6,Nursing Care,P11,"Adult Care, Health & Wellbeing",CULVERHAY NURSING HOME,09/07/2018,316.32
Bath and North East Somerset Council,80781621,LM6,Nursing Care,P11,"Adult Care, Health & Wellbeing",CULVERHAY NURSING HOME,09/07/2018,316.32
Bath and North East Somerset Council,80781621,LM6,Nursing Care,P11,"Adult Care, Health & Wellbeing",CULVERHAY NURSING HOME,09/07/2018,316.32
Bath and North East Somerset Council,80781621,LM6,Nursing Care,P11,"Adult Care, Health & Wellbeing",CULVERHAY NURSING HOME,09/07/2018,316.32
Bath and North East Somerset Council,80781621,LM6,Nursing Care,P11,"Adult Care, Health & Wellbeing",CULVERHAY NURSING HOME,09/07/2018,316.32
Bath and North East Somerset Council,80781621,LM6,Nursing Care,P11,"Adult Care, Health & Wellbeing",CULVERHAY NURSING HOME,09/07/2018,316.32
Bath and North East Somerset Council,80781621,LM6,Nursing Care,P11,"Adult Care, Health & Wellbeing",CULVERHAY NURSING HOME,09/07/2018,316.32
Bath and North East Somerset Council,80781621,LM6,Nursing Care,P11,"Adult Care, Health & Wellbeing",CULVERHAY NURSING HOME,09/07/2018,316.32
Bath and North East Somerset Council,80781621,LM6,Nursing Care,P11,"Adult Care, Health & Wellbeing",CULVERHAY NURSING HOME,09/07/2018,316.32
Bath and North East Somerset Council,80781621,LM6,Nursing Care,P11,"Adult Care, Health & Wellbeing",CULVERHAY NURSING HOME,09/07/2018,316.32
Bath and North East Somerset Council,80781621,LM6,Nursing Care,P11,"Adult Care, Health & Wellbeing",CULVERHAY NURSING HOME,09/07/2018,316.32
Bath and North East Somerset Council,80781621,LM6,Nursing Care,P11,"Adult Care, Health & Wellbeing",CULVERHAY NURSING HOME,09/07/2018,316.32
Bath and North East Somerset Council,80781621,LM6,Nursing Care,P11,"Adult Care, Health & Wellbeing",CULVERHAY NURSING HOME,09/07/2018,316.32
Bath and North East Somerset Council,80781621,LM6,Nursing Care,P11,"Adult Care, Health & Wellbeing",CULVERHAY NURSING HOME,09/07/2018,316.32
Bath and North East Somerset Council,80781621,LM6,Nursing Care,P11,"Adult Care, Health & Wellbeing",CULVERHAY NURSING HOME,09/07/2018,316.32
Bath and North East Somerset Council,80781621,LM6,Nursing Care,P11,"Adult Care, Health & Wellbeing",CULVERHAY NURSING HOME,09/07/2018,316.32
Bath and North East Somerset Council,10877846,HA1,Responsive Maintenance,P10,Finance & Efficiency,MANNINGS FACILITIES MANAGEMENT LTD,09/07/2018,438.63
Bath and North East Somerset Council,10877909,LW9,Other Expenses,P04,Leader,DAWSON STEEPLEJACKS LTD,09/07/2018,440.00
Bath and North East Somerset Council,10877961,3F7,PCB External Fees,P12,Children & Young People,CAPITA SYMONDS,09/07/2018,450.00
Bath and North East Somerset Council,10877962,3F7,PCB External Fees,P10,Finance & Efficiency,CAPITA SYMONDS,09/07/2018,450.00
Bath and North East Somerset Council,10877850,HA1,Responsive Maintenance,P10,Finance & Efficiency,MANNINGS FACILITIES MANAGEMENT LTD,09/07/2018,450.85
Bath and North East Somerset Council,10877933,LK1,Fees,P04,Leader,VEALE WASBROUGH VIZARDS,09/07/2018,470.00
Bath and North East Somerset Council,10877800,HK1,Highway Maintenance,P18,Transport & Environment,CHEW VALLEY GAZETTE PUBLISHING LTD,09/07/2018,472.60
Bath and North East Somerset Council,80781621,LM6,Nursing Care,P11,"Adult Care, Health & Wellbeing",CULVERHAY NURSING HOME,09/07/2018,587.45
Bath and North East Somerset Council,80781769,LM6,Nursing Care,P11,"Adult Care, Health & Wellbeing",CULVERHAY NURSING HOME,09/07/2018,1679.90
Bath and North East Somerset Council,80781769,LM6,Nursing Care,P11,"Adult Care, Health & Wellbeing",CULVERHAY NURSING HOME,09/07/2018,1679.90
Bath and North East Somerset Council,80781769,LM6,Nursing Care,P11,"Adult Care, Health & Wellbeing",CULVERHAY NURSING HOME,09/07/2018,1679.90
Bath and North East Somerset Council,80781769,LM6,Nursing Care,P11,"Adult Care, Health & Wellbeing",CULVERHAY NURSING HOME,09/07/2018,1679.90
Bath and North East Somerset Council,80781769,LM6,Nursing Care,P11,"Adult Care, Health & Wellbeing",CULVERHAY NURSING HOME,09/07/2018,1679.90
Bath and North East Somerset Council,80781769,LM6,Nursing Care,P11,"Adult Care, Health & Wellbeing",CULVERHAY NURSING HOME,09/07/2018,1679.90
Bath and North East Somerset Council,80781769,LM6,Nursing Care,P11,"Adult Care, Health & Wellbeing",CULVERHAY NURSING HOME,09/07/2018,1679.90
Bath and North East Somerset Council,80781769,LM6,Nursing Care,P11,"Adult Care, Health & Wellbeing",CULVERHAY NURSING HOME,09/07/2018,1679.90
Bath and North East Somerset Council,80781769,LM6,Nursing Care,P11,"Adult Care, Health & Wellbeing",CULVERHAY NURSING HOME,09/07/2018,1679.90
Bath and North East Somerset Council,80781769,LM6,Nursing Care,P11,"Adult Care, Health & Wellbeing",CULVERHAY NURSING HOME,09/07/2018,1679.90
Bath and North East Somerset Council,80781769,LM6,Nursing Care,P11,"Adult Care, Health & Wellbeing",CULVERHAY NURSING HOME,09/07/2018,1679.90
Bath and North East Somerset Council,80781769,LM6,Nursing Care,P11,"Adult Care, Health & Wellbeing",CULVERHAY NURSING HOME,09/07/2018,1679.90
Bath and North East Somerset Council,80781769,LM6,Nursing Care,P11,"Adult Care, Health & Wellbeing",CULVERHAY NURSING HOME,09/07/2018,1679.90
Bath and North East Somerset Council,80781769,LM6,Nursing Care,P11,"Adult Care, Health & Wellbeing",CULVERHAY NURSING HOME,09/07/2018,1679.90
Bath and North East Somerset Council,80781769,LM6,Nursing Care,P11,"Adult Care, Health & Wellbeing",CULVERHAY NURSING HOME,09/07/2018,1679.90
Bath and North East Somerset Council,80781769,LM6,Nursing Care,P11,"Adult Care, Health & Wellbeing",CULVERHAY NURSING HOME,09/07/2018,1679.90
Bath and North East Somerset Council,80781769,LM6,Nursing Care,P11,"Adult Care, Health & Wellbeing",CULVERHAY NURSING HOME,09/07/2018,1679.90
Bath and North East Somerset Council,80781769,LM6,Nursing Care,P11,"Adult Care, Health & Wellbeing",CULVERHAY NURSING HOME,09/07/2018,1679.90
Bath and North East Somerset Council,80781769,LM6,Nursing Care,P11,"Adult Care, Health & Wellbeing",CULVERHAY NURSING HOME,09/07/2018,1679.90
Bath and North East Somerset Council,80781769,LM6,Nursing Care,P11,"Adult Care, Health & Wellbeing",CULVERHAY NURSING HOME,09/07/2018,1679.90
Bath and North East Somerset Council,80781769,LM6,Nursing Care,P11,"Adult Care, Health & Wellbeing",CULVERHAY NURSING HOME,09/07/2018,1679.90
Bath and North East Somerset Council,80781769,LM6,Nursing Care,P11,"Adult Care, Health & Wellbeing",CULVERHAY NURSING HOME,09/07/2018,1679.90
Bath and North East Somerset Council,80781769,LM6,Nursing Care,P11,"Adult Care, Health & Wellbeing",CULVERHAY NURSING HOME,09/07/2018,1679.90
Bath and North East Somerset Council,80781769,LM6,Nursing Care,P11,"Adult Care, Health & Wellbeing",CULVERHAY NURSING HOME,09/07/2018,1679.90
Bath and North East Somerset Council,80781769,LM6,Nursing Care,P11,"Adult Care, Health & Wellbeing",CULVERHAY NURSING HOME,09/07/2018,1679.90
Bath and North East Somerset Council,80781769,LM6,Nursing Care,P11,"Adult Care, Health & Wellbeing",CULVERHAY NURSING HOME,09/07/2018,1679.90
Bath and North East Somerset Council,80781769,LM6,Nursing Care,P11,"Adult Care, Health & Wellbeing",CULVERHAY NURSING HOME,09/07/2018,1679.90
Bath and North East Somerset Council,80781769,LM6,Nursing Care,P11,"Adult Care, Health & Wellbeing",CULVERHAY NURSING HOME,09/07/2018,1679.90
Bath and North East Somerset Council,80781769,LM6,Nursing Care,P11,"Adult Care, Health & Wellbeing",CULVERHAY NURSING HOME,09/07/2018,1679.90
Bath and North East Somerset Council,10877851,HA1,Responsive Maintenance,P10,Finance & Efficiency,MANNINGS FACILITIES MANAGEMENT LTD,09/07/2018,497.28
Bath and North East Somerset Council,80781769,LM6,Nursing Care,P11,"Adult Care, Health & Wellbeing",CULVERHAY NURSING HOME,09/07/2018,1679.90
Bath and North East Somerset Council,80781769,LM6,Nursing Care,P11,"Adult Care, Health & Wellbeing",CULVERHAY NURSING HOME,09/07/2018,1679.90
Bath and North East Somerset Council,80781769,LM6,Nursing Care,P11,"Adult Care, Health & Wellbeing",CULVERHAY NURSING HOME,09/07/2018,1679.90
Bath and North East Somerset Council,10877966,LF6,Subscriptions,P10,Finance & Efficiency,PRENAX LTD,09/07/2018,502.65
Bath and North East Somerset Council,80781250,LM6,Nursing Care,P11,"Adult Care, Health & Wellbeing",CULVERHAY NURSING HOME,09/07/2018,1990.00
Bath and North East Somerset Council,80781250,LM6,Nursing Care,P11,"Adult Care, Health & Wellbeing",CULVERHAY NURSING HOME,09/07/2018,1990.00
Bath and North East Somerset Council,80781250,LM6,Nursing Care,P11,"Adult Care, Health & Wellbeing",CULVERHAY NURSING HOME,09/07/2018,1990.00
Bath and North East Somerset Council,80781769,LM6,Nursing Care,P11,"Adult Care, Health & Wellbeing",CULVERHAY NURSING HOME,09/07/2018,1990.00
Bath and North East Somerset Council,80781769,LM6,Nursing Care,P11,"Adult Care, Health & Wellbeing",CULVERHAY NURSING HOME,09/07/2018,3740.60
Bath and North East Somerset Council,10877949,LD1,Protective & Safety Clothing,P15,Development & Neighbourhoods,ARCO SOUTH WEST,09/07/2018,520.80
Bath and North East Somerset Council,80781423,LL8,Individualised Budget,P11,"Adult Care, Health & Wellbeing",REDACTED,09/07/2018,884.40
Bath and North East Somerset Council,80781365,LL8,Individualised Budget,P11,"Adult Care, Health & Wellbeing",REDACTED,09/07/2018,1262.60
Bath and North East Somerset Council,80781536,LL8,Individualised Budget,P11,"Adult Care, Health & Wellbeing",REDACTED,09/07/2018,3180.40
Bath and North East Somerset Council,80781797,LM3,Residential Care,P11,"Adult Care, Health & Wellbeing",DAVID NERY LTD T/A BEECHCROFT RESIDENTIAL HOME,09/07/2018,1370.00
Bath and North East Somerset Council,80781797,LM3,Residential Care,P11,"Adult Care, Health & Wellbeing",DAVID NERY LTD T/A BEECHCROFT RESIDENTIAL HOME,09/07/2018,9296.43
Bath and North East Somerset Council,80781456,LL8,Individualised Budget,P11,"Adult Care, Health & Wellbeing",REDACTED - CARE ACCOUNT,09/07/2018,3146.00
Bath and North East Somerset Council,80781394,LL8,Individualised Budget,P11,"Adult Care, Health & Wellbeing",REDACTED,09/07/2018,858.00
Bath and North East Somerset Council,80781812,LL3,Supported Living,P11,"Adult Care, Health & Wellbeing",DEVON SHELTERED HOMES TRUST - REDACTED,09/07/2018,883.80
Bath and North East Somerset Council,80781808,LM9,Day Care,P11,"Adult Care, Health & Wellbeing",DIMENSIONS (UK) LTD,09/07/2018,32.00
Bath and North East Somerset Council,80781808,LL3,Supported Living,P11,"Adult Care, Health & Wellbeing",DIMENSIONS (UK) LTD,09/07/2018,158.26
Bath and North East Somerset Council,80781808,LL3,Supported Living,P11,"Adult Care, Health & Wellbeing",DIMENSIONS (UK) LTD,09/07/2018,400.78
Bath and North East Somerset Council,80781808,LL3,Supported Living,P11,"Adult Care, Health & Wellbeing",DIMENSIONS (UK) LTD,09/07/2018,469.38
Bath and North East Somerset Council,80781808,LL3,Supported Living,P11,"Adult Care, Health & Wellbeing",DIMENSIONS (UK) LTD,09/07/2018,550.94
Bath and North East Somerset Council,80781808,LL3,Supported Living,P11,"Adult Care, Health & Wellbeing",DIMENSIONS (UK) LTD,09/07/2018,634.28
Bath and North East Somerset Council,80781808,LL3,Supported Living,P11,"Adult Care, Health & Wellbeing",DIMENSIONS (UK) LTD,09/07/2018,638.98
Bath and North East Somerset Council,80781808,LL3,Supported Living,P11,"Adult Care, Health & Wellbeing",DIMENSIONS (UK) LTD,09/07/2018,718.38
Bath and North East Somerset Council,80781808,LL3,Supported Living,P11,"Adult Care, Health & Wellbeing",DIMENSIONS (UK) LTD,09/07/2018,731.52
Bath and North East Somerset Council,80781808,LL3,Supported Living,P11,"Adult Care, Health & Wellbeing",DIMENSIONS (UK) LTD,09/07/2018,795.04
Bath and North East Somerset Council,80781778,LM3,Residential Care,P11,"Adult Care, Health & Wellbeing",DIMENSIONS (UK) LTD,09/07/2018,830.02
Bath and North East Somerset Council,80781778,LM3,Residential Care,P11,"Adult Care, Health & Wellbeing",DIMENSIONS (UK) LTD,09/07/2018,830.02
Bath and North East Somerset Council,10877031,HV4,Cleaning Materials,P16,Economic & Community Regeneration,AVANTI HYGIENE LTD,09/07/2018,536.75
Bath and North East Somerset Council,80781778,LM3,Residential Care,P11,"Adult Care, Health & Wellbeing",DIMENSIONS (UK) LTD,09/07/2018,830.02
Bath and North East Somerset Council,80781778,LM3,Residential Care,P11,"Adult Care, Health & Wellbeing",DIMENSIONS (UK) LTD,09/07/2018,830.02
Bath and North East Somerset Council,80781808,LL3,Supported Living,P11,"Adult Care, Health & Wellbeing",DIMENSIONS (UK) LTD,09/07/2018,858.54
Bath and North East Somerset Council,80781808,LL3,Supported Living,P11,"Adult Care, Health & Wellbeing",DIMENSIONS (UK) LTD,09/07/2018,873.74
Bath and North East Somerset Council,80781808,LL3,Supported Living,P11,"Adult Care, Health & Wellbeing",DIMENSIONS (UK) LTD,09/07/2018,874.42
Bath and North East Somerset Council,80781808,LL3,Supported Living,P11,"Adult Care, Health & Wellbeing",DIMENSIONS (UK) LTD,09/07/2018,1017.34
Bath and North East Somerset Council,80781181,LK4,Nursery/Childcare Vouchers,P12,Children & Young People,QUEENS ROAD CHURCH PRE SCHOOL,09/07/2018,540.06
Bath and North East Somerset Council,80781808,LL3,Supported Living,P11,"Adult Care, Health & Wellbeing",DIMENSIONS (UK) LTD,09/07/2018,1030.02
Bath and North East Somerset Council,80781808,LL3,Supported Living,P11,"Adult Care, Health & Wellbeing",DIMENSIONS (UK) LTD,09/07/2018,1086.00
Bath and North East Somerset Council,80781808,LL3,Supported Living,P11,"Adult Care, Health & Wellbeing",DIMENSIONS (UK) LTD,09/07/2018,1128.48
Bath and North East Somerset Council,80781808,LL3,Supported Living,P11,"Adult Care, Health & Wellbeing",DIMENSIONS (UK) LTD,09/07/2018,1164.60
Bath and North East Somerset Council,80781778,LM3,Residential Care,P11,"Adult Care, Health & Wellbeing",DIMENSIONS (UK) LTD,09/07/2018,1233.52
Bath and North East Somerset Council,80781778,LM3,Residential Care,P11,"Adult Care, Health & Wellbeing",DIMENSIONS (UK) LTD,09/07/2018,1233.52
Bath and North East Somerset Council,80781778,LM3,Residential Care,P11,"Adult Care, Health & Wellbeing",DIMENSIONS (UK) LTD,09/07/2018,1233.52
Bath and North East Somerset Council,80781778,LM3,Residential Care,P11,"Adult Care, Health & Wellbeing",DIMENSIONS (UK) LTD,09/07/2018,1233.52
Bath and North East Somerset Council,80781808,LL3,Supported Living,P11,"Adult Care, Health & Wellbeing",DIMENSIONS (UK) LTD,09/07/2018,1243.22
Bath and North East Somerset Council,80781778,LM3,Residential Care,P11,"Adult Care, Health & Wellbeing",DIMENSIONS (UK) LTD,09/07/2018,1375.11
Bath and North East Somerset Council,80781778,LM3,Residential Care,P11,"Adult Care, Health & Wellbeing",DIMENSIONS (UK) LTD,09/07/2018,1463.70
Bath and North East Somerset Council,80781808,LL3,Supported Living,P11,"Adult Care, Health & Wellbeing",DIMENSIONS (UK) LTD,09/07/2018,1522.00
Bath and North East Somerset Council,80781808,LL3,Supported Living,P11,"Adult Care, Health & Wellbeing",DIMENSIONS (UK) LTD,09/07/2018,1550.36
Bath and North East Somerset Council,80781808,LL3,Supported Living,P11,"Adult Care, Health & Wellbeing",DIMENSIONS (UK) LTD,09/07/2018,1683.38
Bath and North East Somerset Council,80781808,LL3,Supported Living,P11,"Adult Care, Health & Wellbeing",DIMENSIONS (UK) LTD,09/07/2018,1763.68
Bath and North East Somerset Council,80781255,LM3,Residential Care,P11,"Adult Care, Health & Wellbeing",DIMENSIONS (UK) LTD,09/07/2018,1854.66
Bath and North East Somerset Council,80781808,LL3,Supported Living,P11,"Adult Care, Health & Wellbeing",DIMENSIONS (UK) LTD,09/07/2018,1890.44
Bath and North East Somerset Council,80781808,LL3,Supported Living,P11,"Adult Care, Health & Wellbeing",DIMENSIONS (UK) LTD,09/07/2018,1938.92
Bath and North East Somerset Council,80781778,LM3,Residential Care,P11,"Adult Care, Health & Wellbeing",DIMENSIONS (UK) LTD,09/07/2018,1975.10
Bath and North East Somerset Council,10877934,LJ4,Contracts,P18,Transport & Environment,1ST AVENUE TRAVEL,09/07/2018,550.21
Bath and North East Somerset Council,80781808,LL3,Supported Living,P11,"Adult Care, Health & Wellbeing",DIMENSIONS (UK) LTD,09/07/2018,1997.22
Bath and North East Somerset Council,80781808,LL3,Supported Living,P11,"Adult Care, Health & Wellbeing",DIMENSIONS (UK) LTD,09/07/2018,2054.64
Bath and North East Somerset Council,80781778,LM3,Residential Care,P11,"Adult Care, Health & Wellbeing",DIMENSIONS (UK) LTD,09/07/2018,2073.98
Bath and North East Somerset Council,80781808,LL3,Supported Living,P11,"Adult Care, Health & Wellbeing",DIMENSIONS (UK) LTD,09/07/2018,2091.60
Bath and North East Somerset Council,80781808,LL3,Supported Living,P11,"Adult Care, Health & Wellbeing",DIMENSIONS (UK) LTD,09/07/2018,2255.94
Bath and North East Somerset Council,80781808,LL3,Supported Living,P11,"Adult Care, Health & Wellbeing",DIMENSIONS (UK) LTD,09/07/2018,2256.52
Bath and North East Somerset Council,80781808,LL3,Supported Living,P11,"Adult Care, Health & Wellbeing",DIMENSIONS (UK) LTD,09/07/2018,2308.92
Bath and North East Somerset Council,80781778,LM3,Residential Care,P11,"Adult Care, Health & Wellbeing",DIMENSIONS (UK) LTD,09/07/2018,2375.16
Bath and North East Somerset Council,80781808,LL3,Supported Living,P11,"Adult Care, Health & Wellbeing",DIMENSIONS (UK) LTD,09/07/2018,2398.14
Bath and North East Somerset Council,80781778,LM3,Residential Care,P11,"Adult Care, Health & Wellbeing",DIMENSIONS (UK) LTD,09/07/2018,2416.86
Bath and North East Somerset Council,10877889,3J2,PCB Consultants,P10,Finance & Efficiency,EXPERIS,09/07/2018,556.08
Bath and North East Somerset Council,80781778,LM3,Residential Care,P11,"Adult Care, Health & Wellbeing",DIMENSIONS (UK) LTD,09/07/2018,2538.16
Bath and North East Somerset Council,80781778,LM3,Residential Care,P11,"Adult Care, Health & Wellbeing",DIMENSIONS (UK) LTD,09/07/2018,2565.28
Bath and North East Somerset Council,80781808,LL3,Supported Living,P11,"Adult Care, Health & Wellbeing",DIMENSIONS (UK) LTD,09/07/2018,2601.04
Bath and North East Somerset Council,80781778,LM3,Residential Care,P11,"Adult Care, Health & Wellbeing",DIMENSIONS (UK) LTD,09/07/2018,2697.02
